Workbook

Sheet INICIO
C3: MINISTERIO DE SALUD | G3: CENTRO NACIONAL DE ALIMENTACIÓN Y NUTRICIÓN
C4: INSTITUTO NACIONAL DE SALUD | G4: DIRECCIÓN EJECUTIVA DE VIGILANCIA ALIMENTARIA Y NUTRICIONAL
C6: PERÚ: INDICADORES NUTRICIONALES EN NIÑOS EXTRANJEROS MENORES DE 3 Y 5 AÑOS
C7: SISTEMA DE INFORMACIÓN DEL ESTADO NUTRICIONAL
C8: PERIODO: ENERO - DICIEMBRE 2021
C10: 1 | D10: ESTADO NUTRICIONAL EN NIÑOS EXTRANJEROS MENORES DE 3 AÑOS SEGÚN DEPARTAMENTO DEL ESTABLECIMIENTO DE SALUD
C11: 2 | D11: ESTADO NUTRICIONAL EN NIÑOS EXTRANJEROS MENORES DE 3 AÑOS SEGÚN DIRESA/GERESA/DIRIS
C12: 3 | D12: ESTADO NUTRICIONAL EN NIÑOS EXTRANJEROS MENORES DE 3 AÑOS SEGÚN DEPARTAMENTO/PROVINCIA/DISTRITO DEL ESTABLECIMIENTO DE SALUD
C13: 4 | D13: ESTADO NUTRICIONAL EN NIÑOS EXTRANJEROS MENORES DE 5 AÑOS SEGÚN DEPARTAMENTO DEL ESTABLECIMIENTO DE SALUD
C14: 5 | D14: ESTADO NUTRICIONAL EN NIÑOS EXTRANJEROS MENORES DE 5 AÑOS SEGÚN DIRESA/GERESA/DIRIS
C15: 6 | D15: ESTADO NUTRICIONAL EN NIÑOS EXTRANJEROS MENORES DE 5 AÑOS SEGÚN DEPARTAMENTO/PROVINCIA/DISTRITO DEL ESTABLECIMIENTO DE SALUD
C16: 7 | D16: ANEMIA EN NIÑOS EXTRANJEROS ENTRE 6 A 35 MESES SEGÚN DEPARTAMENTO DEL ESTABLECIMIENTO DE SALUD
C17: 8 | D17: ANEMIA EN NIÑOS EXTRANJEROS ENTRE 6 A 35 MESES SEGÚN DIRESA/GERESA/DIRIS
C18: 9 | D18: ANEMIA EN NIÑOS EXTRANJEROS ENTRE 6 A 35 MESES SEGÚN DEPARTAMENTO/PROVINCIA/DISTRITO DEL ESTABLECIMIENTO DE SALUD
C19: 10 | D19: ANEMIA EN NIÑOS EXTRANJEROS ENTRE 6 A 59 MESES SEGÚN DEPARTAMENTO DEL ESTABLECIMIENTO DE SALUD
C20: 11 | D20: ANEMIA EN NIÑOS EXTRANJEROS ENTRE 6 A 59 MESES SEGÚN DIRESA/GERESA/DIRIS
C21: 12 | D21: ANEMIA EN NIÑOS EXTRANJEROS ENTRE 6 A 59 MESES SEGÚN DEPARTAMENTO/PROVINCIA/DISTRITO DEL ESTABLECIMIENTO DE SALUD

Sheet EN 0-35m x DEP
B2: CUADRO N°01 PERÚ: ESTADO NUTRICIONAL EN NIÑOS EXTRANJEROS MENORES DE 3 AÑOS QUE ACCEDIERON A LOS ESTABLECIMIENTOS DE SALUD POR INDICADORES ANTROPOMÉTRICOS, SEGÚN DEPARTAMENTO DEL ESTABLECIMIENTO DE SALUD
B3: =INICIO!C$8 -> PERIODO: ENERO - DICIEMBRE 2021
B5: DEPARTAMENTO | C5: INDICADOR TALLA / EDAD1 | I5: INDICADOR PESO / EDAD2 | L5: INDICADOR PESO / TALLA3
C6: N° DE EVALUADOS | D6: DESNUTRICIÓN CRÓNICA | F6: N° DE EVALUADOS | G6: RIESGO DE D. CRÓNICA4 | I6: N° DE EVALUADOS | J6: DESNUTRICIÓN GLOBAL | L6: N° DE EVALUADOS | M6: DESNUTRICIÓN AGUDA | O6: N° DE EVALUADOS | P6: RIESGO DE D. AGUDA | R6: SOBREPESO | T6: OBESIDAD
D7: N° DE CASOS | E7: % | G7: N° DE CASOS | H7: % | J7: N° DE CASOS | K7: % | M7: N° DE CASOS | N7: % | P7: N° DE CASOS | Q7: % | R7: N° DE CASOS | S7: % | T7: N° DE CASOS | U7: %
B8: AMAZONAS | C8: 2 | D8: 1 | E8: 50 | F8: 1 | G8: 1 | H8: 100 | I8: 2 | J8: 0 | K8: 0 | L8: 2 | M8: 0 | N8: 0 | O8: 2 | P8: 0 | Q8: 0 | R8: 0 | S8: 0 | T8: 0 | U8: 0
B9: ANCASH | C9: 21 | D9: 4 | E9: 19.04761905 | F9: 17 | G9: 1 | H9: 5.882352941 | I9: 21 | J9: 1 | K9: 4.761904762 | L9: 21 | M9: 0 | N9: 0 | O9: 18 | P9: 2 | Q9: 9.523809524 | R9: 2 | S9: 9.523809524 | T9: 1 | U9: 4.761904762
B10: APURIMAC | C10: (SD) | D10: (SD) | E10: (SD) | F10: (SD) | G10: (SD) | H10: (SD) | I10: (SD) | J10: (SD) | K10: (SD) | L10: (SD) | M10: (SD) | N10: (SD) | O10: (SD) | P10: (SD) | Q10: (SD) | R10: (SD) | S10: (SD) | T10: (SD) | U10: (SD)
B11: AREQUIPA | C11: 30 | D11: 4 | E11: 13.33333333 | F11: 26 | G11: 8 | H11: 30.76923077 | I11: 30 | J11: 1 | K11: 3.333333333 | L11: 30 | M11: 1 | N11: 3.333333333 | O11: 26 | P11: 5 | Q11: 16.66666667 | R11: 1 | S11: 3.333333333 | T11: 2 | U11: 6.666666667
B12: AYACUCHO | C12: 2 | D12: 0 | E12: 0 | F12: 2 | G12: 1 | H12: 50 | I12: 2 | J12: 0 | K12: 0 | L12: 2 | M12: 0 | N12: 0 | O12: 2 | P12: 0 | Q12: 0 | R12: 0 | S12: 0 | T12: 0 | U12: 0
B13: CAJAMARCA | C13: 6 | D13: 1 | E13: 16.66666667 | F13: 5 | G13: 1 | H13: 20 | I13: 6 | J13: 1 | K13: 16.66666667 | L13: 6 | M13: 0 | N13: 0 | O13: 6 | P13: 2 | Q13: 33.33333333 | R13: 0 | S13: 0 | T13: 0 | U13: 0
B14: CALLAO | C14: 32 | D14: 5 | E14: 15.625 | F14: 27 | G14: 8 | H14: 29.62962963 | I14: 32 | J14: 1 | K14: 3.125 | L14: 32 | M14: 1 | N14: 3.125 | O14: 25 | P14: 2 | Q14: 6.25 | R14: 6 | S14: 18.75 | T14: 0 | U14: 0
B15: CUSCO | C15: 3 | D15: 1 | E15: 33.33333333 | F15: 2 | G15: 0 | H15: 0 | I15: 3 | J15: 0 | K15: 0 | L15: 3 | M15: 0 | N15: 0 | O15: 3 | P15: 0 | Q15: 0 | R15: 0 | S15: 0 | T15: 0 | U15: 0
B16: HUANCAVELICA | C16: (SD) | D16: (SD) | E16: (SD) | F16: (SD) | G16: (SD) | H16: (SD) | I16: (SD) | J16: (SD) | K16: (SD) | L16: (SD) | M16: (SD) | N16: (SD) | O16: (SD) | P16: (SD) | Q16: (SD) | R16: (SD) | S16: (SD) | T16: (SD) | U16: (SD)
B17: HUANUCO | C17: (SD) | D17: (SD) | E17: (SD) | F17: (SD) | G17: (SD) | H17: (SD) | I17: (SD) | J17: (SD) | K17: (SD) | L17: (SD) | M17: (SD) | N17: (SD) | O17: (SD) | P17: (SD) | Q17: (SD) | R17: (SD) | S17: (SD) | T17: (SD) | U17: (SD)
B18: ICA | C18: 58 | D18: 5 | E18: 8.620689655 | F18: 53 | G18: 13 | H18: 24.52830189 | I18: 58 | J18: 1 | K18: 1.724137931 | L18: 58 | M18: 1 | N18: 1.724137931 | O18: 54 | P18: 5 | Q18: 8.620689655 | R18: 2 | S18: 3.448275862 | T18: 1 | U18: 1.724137931
B19: JUNIN | C19: 1 | D19: 1 | E19: 100 | F19: 0 | G19: 0 | H19: 0 | I19: 1 | J19: 0 | K19: 0 | L19: 1 | M19: 0 | N19: 0 | O19: 1 | P19: 0 | Q19: 0 | R19: 0 | S19: 0 | T19: 0 | U19: 0
B20: LA LIBERTAD | C20: 72 | D20: 12 | E20: 16.66666667 | F20: 60 | G20: 15 | H20: 25 | I20: 72 | J20: 2 | K20: 2.777777778 | L20: 72 | M20: 3 | N20: 4.166666667 | O20: 59 | P20: 5 | Q20: 6.944444444 | R20: 7 | S20: 9.722222222 | T20: 3 | U20: 4.166666667
B21: LAMBAYEQUE | C21: 8 | D21: 1 | E21: 12.5 | F21: 7 | G21: 2 | H21: 28.57142857 | I21: 8 | J21: 0 | K21: 0 | L21: 8 | M21: 0 | N21: 0 | O21: 8 | P21: 0 | Q21: 0 | R21: 0 | S21: 0 | T21: 0 | U21: 0
B22: LIMA | C22: 795 | D22: 87 | E22: 10.94339623 | F22: 708 | G22: 156 | H22: 22.03389831 | I22: 795 | J22: 21 | K22: 2.641509434 | L22: 795 | M22: 39 | N22: 4.905660377 | O22: 666 | P22: 67 | Q22: 8.427672956 | R22: 67 | S22: 8.427672956 | T22: 23 | U22: 2.893081761
B23: LORETO | C23: 1 | D23: 0 | E23: 0 | F23: 1 | G23: 1 | H23: 100 | I23: 1 | J23: 0 | K23: 0 | L23: 1 | M23: 0 | N23: 0 | O23: 1 | P23: 0 | Q23: 0 | R23: 0 | S23: * | T23: 0 | U23: 0
B24: MADRE DE DIOS | C24: (SD) | D24: (SD) | E24: (SD) | F24: (SD) | G24: (SD) | H24: (SD) | I24: (SD) | J24: (SD) | K24: (SD) | L24: (SD) | M24: (SD) | N24: (SD) | O24: (SD) | P24: (SD) | Q24: (SD) | R24: (SD) | S24: (SD) | T24: (SD) | U24: (SD)
B25: MOQUEGUA | C25: 8 | D25: 0 | E25: 0 | F25: 8 | G25: 1 | H25: 12.5 | I25: 8 | J25: 0 | K25: 0 | L25: 8 | M25: 0 | N25: 0 | O25: 8 | P25: 1 | Q25: 12.5 | R25: 0 | S25: 0 | T25: 0 | U25: 0
B26: PASCO | C26: (SD) | D26: (SD) | E26: (SD) | F26: (SD) | G26: (SD) | H26: (SD) | I26: (SD) | J26: (SD) | K26: (SD) | L26: (SD) | M26: (SD) | N26: (SD) | O26: (SD) | P26: (SD) | Q26: (SD) | R26: (SD) | S26: (SD) | T26: (SD) | U26: (SD)
B27: PIURA | C27: 43 | D27: 3 | E27: 6.976744186 | F27: 40 | G27: 9 | H27: 22.5 | I27: 43 | J27: 4 | K27: 9.302325581 | L27: 43 | M27: 4 | N27: 9.302325581 | O27: 36 | P27: 3 | Q27: 6.976744186 | R27: 2 | S27: 4.651162791 | T27: 1 | U27: 2.325581395
B28: PUNO | C28: 1 | D28: 1 | E28: 100 | F28: 0 | G28: 0 | H28: 0 | I28: 1 | J28: 0 | K28: 0 | L28: 1 | M28: 0 | N28: 0 | O28: 1 | P28: 0 | Q28: 0 | R28: 0 | S28: 0 | T28: 0 | U28: 0
B29: SAN MARTIN | C29: 2 | D29: 0 | E29: 0 | F29: 2 | G29: 0 | H29: 0 | I29: 2 | J29: 0 | K29: 0 | L29: 2 | M29: 0 | N29: 0 | O29: 1 | P29: 0 | Q29: 0 | R29: 0 | S29: 0 | T29: 1 | U29: 50
B30: TACNA | C30: 8 | D30: 0 | E30: 0 | F30: 8 | G30: 2 | H30: 25 | I30: 8 | J30: 0 | K30: 0 | L30: 8 | M30: 1 | N30: 12.5 | O30: 7 | P30: 0 | Q30: 0 | R30: 0 | S30: 0 | T30: 0 | U30: 0
B31: TUMBES | C31: 70 | D31: 13 | E31: 18.57142857 | F31: 57 | G31: 15 | H31: 26.31578947 | I31: 70 | J31: 3 | K31: 4.285714286 | L31: 70 | M31: 5 | N31: 7.142857143 | O31: 60 | P31: 10 | Q31: 14.28571429 | R31: 4 | S31: 5.714285714 | T31: 1 | U31: 1.428571429
B32: UCAYALI | C32: 1 | D32: 0 | E32: 0 | F32: 1 | G32: 1 | H32: 100 | I32: 1 | J32: 0 | K32: 0 | L32: 1 | M32: 0 | N32: 0 | O32: 1 | P32: 0 | Q32: 0 | R32: 0 | S32: 0 | T32: 0 | U32: 0
B33: PERÚ | C33: =SUM(C8:C32) -> 1164 | D33: =SUM(D8:D32) -> 139 | E33: =D33/C33*100 -> 11.94158076 | F33: =SUM(F8:F32) -> 1025 | G33: =SUM(G8:G32) -> 235 | H33: =G33/F33*100 -> 22.92682927 | I33: =SUM(I8:I32) -> 1164 | J33: =SUM(J8:J32) -> 35 | K33: =J33/I33*100 -> 3.006872852 | L33: =SUM(L8:L32) -> 1164 | M33: =SUM(M8:M32) -> 55 | N33: =M33/L33*100 -> 4.725085911 | O33: =SUM(O8:O32) -> 985 | P33: =SUM(P8:P32) -> 102 | Q33: =P33/O33*100 -> 10.35532995 | R33: =SUM(R8:R32) -> 91 | S33: =R33/L33*100 -> 7.817869416 | T33: =SUM(T8:T32) -> 33 | U33: =T33/L33*100 -> 2.835051546
B34: Fuente: Sistema de Información SIEN - HIS, 2021.
B35: Instituto Nacional de Salud / Centro Nacional de Alimentación y Nutrición / Dirección Ejecutiva de Vigilancia Alimentaria y Nutricional.
B36: 1,2,3 Indicadores Nitricionales según OMS.
B37: 4 Riesgo de Desnutrición Crónica (T/E)se considera a todo niño que se encuentra con valor -2 <= Z < -1
B38: (SD) Departamentos sin registro de NIÑOS EXTRANJEROS.

Sheet EN 0-35m x DIRESA
B2: CUADRO N°02 PERÚ: ESTADO NUTRICIONAL EN NIÑOS EXTRANJEROS MENORES DE 3 AÑOS QUE ACCEDIERON A LOS ESTABLECIMIENTOS DE SALUD POR INDICADORES ANTROPOMÉTRICOS, SEGÚN DIRESA / GERESA / DIRIS
B3: =INICIO!C$8 -> PERIODO: ENERO - DICIEMBRE 2021
B5: DIRESA / GERESA / DIRIS | C5: INDICADOR TALLA / EDAD1 | I5: INDICADOR PESO / EDAD2 | L5: INDICADOR PESO / TALLA3
C6: N° DE EVALUADOS | D6: DESNUTRICIÓN CRÓNICA | F6: N° DE EVALUADOS | G6: RIESGO DE D. CRÓNICA4 | I6: N° DE EVALUADOS | J6: DESNUTRICIÓN GLOBAL | L6: N° DE EVALUADOS | M6: DESNUTRICIÓN AGUDA | O6: N° DE EVALUADOS | P6: RIESGO DE D. AGUDA | R6: SOBREPESO | T6: OBESIDAD
D7: N° DE CASOS | E7: % | G7: N° DE CASOS | H7: % | J7: N° DE CASOS | K7: % | M7: N° DE CASOS | N7: % | P7: N° DE CASOS | Q7: % | R7: N° DE CASOS | S7: % | T7: N° DE CASOS | U7: %
B8: AMAZONAS | C8: 2 | D8: 1 | E8: 50 | F8: 1 | G8: 1 | H8: 100 | I8: 2 | J8: 0 | K8: 0 | L8: 2 | M8: 0 | N8: 0 | O8: 2 | P8: 0 | Q8: 0 | R8: 0 | S8: 0 | T8: 0 | U8: 0
B9: ANCASH | C9: 21 | D9: 4 | E9: 19.04761905 | F9: 17 | G9: 1 | H9: 5.882352941 | I9: 21 | J9: 1 | K9: 4.761904762 | L9: 21 | M9: 0 | N9: 0 | O9: 18 | P9: 2 | Q9: 11.11111111 | R9: 2 | S9: 9.523809524 | T9: 1 | U9: 4.761904762
B10: APURIMAC | C10: (SD) | D10: (SD) | E10: (SD) | F10: (SD) | G10: (SD) | H10: (SD) | I10: (SD) | J10: (SD) | K10: (SD) | L10: (SD) | M10: (SD) | N10: (SD) | O10: (SD) | P10: (SD) | Q10: (SD) | R10: (SD) | S10: (SD) | T10: (SD) | U10: (SD)
B11: AREQUIPA | C11: 30 | D11: 4 | E11: 13.33333333 | F11: 26 | G11: 8 | H11: 30.76923077 | I11: 30 | J11: 1 | K11: 3.333333333 | L11: 30 | M11: 1 | N11: 3.333333333 | O11: 26 | P11: 5 | Q11: 19.23076923 | R11: 1 | S11: 3.333333333 | T11: 2 | U11: 6.666666667
B12: AYACUCHO | C12: 2 | D12: 0 | E12: 0 | F12: 2 | G12: 1 | H12: 50 | I12: 2 | J12: 0 | K12: 0 | L12: 2 | M12: 0 | N12: 0 | O12: 2 | P12: 0 | Q12: 0 | R12: 0 | S12: 0 | T12: 0 | U12: 0
B13: CAJAMARCA | C13: 6 | D13: 1 | E13: 16.66666667 | F13: 5 | G13: 1 | H13: 20 | I13: 6 | J13: 1 | K13: 16.66666667 | L13: 6 | M13: 0 | N13: 0 | O13: 6 | P13: 2 | Q13: 33.33333333 | R13: 0 | S13: 0 | T13: 0 | U13: 0
B14: CALLAO | C14: 32 | D14: 5 | E14: 15.625 | F14: 27 | G14: 8 | H14: 29.62962963 | I14: 32 | J14: 1 | K14: 3.125 | L14: 32 | M14: 1 | N14: 3.125 | O14: 25 | P14: 2 | Q14: 8 | R14: 6 | S14: 18.75 | T14: 0 | U14: 0
B15: CUSCO | C15: 3 | D15: 1 | E15: 33.33333333 | F15: 2 | G15: 0 | H15: 0 | I15: 3 | J15: 0 | K15: 0 | L15: 3 | M15: 0 | N15: 0 | O15: 3 | P15: 0 | Q15: 0 | R15: 0 | S15: 0 | T15: 0 | U15: 0
B16: HUANCAVELICA | C16: (SD) | D16: (SD) | E16: (SD) | F16: (SD) | G16: (SD) | H16: (SD) | I16: (SD) | J16: (SD) | K16: (SD) | L16: (SD) | M16: (SD) | N16: (SD) | O16: (SD) | P16: (SD) | Q16: (SD) | R16: (SD) | S16: (SD) | T16: (SD) | U16: (SD)
B17: HUANUCO | C17: (SD) | D17: (SD) | E17: (SD) | F17: (SD) | G17: (SD) | H17: (SD) | I17: (SD) | J17: (SD) | K17: (SD) | L17: (SD) | M17: (SD) | N17: (SD) | O17: (SD) | P17: (SD) | Q17: (SD) | R17: (SD) | S17: (SD) | T17: (SD) | U17: (SD)
B18: ICA | C18: 58 | D18: 5 | E18: 8.620689655 | F18: 53 | G18: 13 | H18: 24.52830189 | I18: 58 | J18: 1 | K18: 1.724137931 | L18: 58 | M18: 1 | N18: 1.724137931 | O18: 54 | P18: 5 | Q18: 9.259259259 | R18: 2 | S18: 3.448275862 | T18: 1 | U18: 1.724137931
B19: JUNIN | C19: 1 | D19: 1 | E19: 100 | F19: 0 | G19: 0 | H19: 0 | I19: 1 | J19: 0 | K19: 0 | L19: 1 | M19: 0 | N19: 0 | O19: 1 | P19: 0 | Q19: 0 | R19: 0 | S19: 0 | T19: 0 | U19: 0
B20: LA LIBERTAD | C20: 72 | D20: 12 | E20: 16.66666667 | F20: 60 | G20: 15 | H20: 25 | I20: 72 | J20: 2 | K20: 2.777777778 | L20: 72 | M20: 3 | N20: 4.166666667 | O20: 59 | P20: 5 | Q20: 8.474576271 | R20: 7 | S20: 9.722222222 | T20: 3 | U20: 4.166666667
B21: LAMBAYEQUE | C21: 8 | D21: 1 | E21: 12.5 | F21: 7 | G21: 2 | H21: 28.57142857 | I21: 8 | J21: 0 | K21: 0 | L21: 8 | M21: 0 | N21: 0 | O21: 8 | P21: 0 | Q21: 0 | R21: 0 | S21: 0 | T21: 0 | U21: 0
B22: LIMA | C22: 75 | D22: 6 | E22: 8 | F22: 69 | G22: 17 | H22: 24.63768116 | I22: 75 | J22: 1 | K22: 1.333333333 | L22: 75 | M22: 2 | N22: 2.666666667 | O22: 66 | P22: 11 | Q22: 16.66666667 | R22: 5 | S22: 6.666666667 | T22: 2 | U22: 2.666666667
B23: LIMA DIRIS CENTRO | C23: 165 | D23: 15 | E23: 9.090909091 | F23: 150 | G23: 37 | H23: 24.66666667 | I23: 165 | J23: 3 | K23: 1.818181818 | L23: 165 | M23: 5 | N23: 3.03030303 | O23: 150 | P23: 11 | Q23: 7.333333333 | R23: 9 | S23: 5.454545455 | T23: 1 | U23: 0.6060606061
B24: LIMA DIRIS ESTE | C24: 155 | D24: 16 | E24: 10.32258065 | F24: 139 | G24: 32 | H24: 23.02158273 | I24: 155 | J24: 5 | K24: 3.225806452 | L24: 155 | M24: 9 | N24: 5.806451613 | O24: 121 | P24: 13 | Q24: 10.74380165 | R24: 17 | S24: 10.96774194 | T24: 8 | U24: 5.161290323
B25: LIMA DIRIS NORTE | C25: 273 | D25: 38 | E25: 13.91941392 | F25: 235 | G25: 48 | H25: 20.42553191 | I25: 273 | J25: 8 | K25: 2.93040293 | L25: 273 | M25: 17 | N25: 6.227106227 | O25: 220 | P25: 23 | Q25: 10.45454545 | R25: 26 | S25: 9.523809524 | T25: 10 | U25: 3.663003663
B26: LIMA DIRIS SUR | C26: 127 | D26: 12 | E26: 9.448818898 | F26: 115 | G26: 22 | H26: 19.13043478 | I26: 127 | J26: 4 | K26: 3.149606299 | L26: 127 | M26: 6 | N26: 4.724409449 | O26: 109 | P26: 9 | Q26: 8.256880734 | R26: 10 | S26: 7.874015748 | T26: 2 | U26: 1.57480315
B27: LORETO | C27: 1 | D27: 0 | E27: 0 | F27: 1 | G27: 1 | H27: 100 | I27: 1 | J27: 0 | K27: 0 | L27: 1 | M27: 0 | N27: 0 | O27: 1 | P27: 0 | Q27: 0 | R27: 0 | S27: 0 | T27: 0 | U27: 0
B28: MADRE DE DIOS | C28: (SD) | D28: (SD) | E28: (SD) | F28: (SD) | G28: (SD) | H28: (SD) | I28: (SD) | J28: (SD) | K28: (SD) | L28: (SD) | M28: (SD) | N28: (SD) | O28: (SD) | P28: (SD) | Q28: (SD) | R28: (SD) | S28: (SD) | T28: (SD) | U28: (SD)
B29: MOQUEGUA | C29: 8 | D29: 0 | E29: 0 | F29: 8 | G29: 1 | H29: 12.5 | I29: 8 | J29: 0 | K29: 0 | L29: 8 | M29: 0 | N29: 0 | O29: 8 | P29: 1 | Q29: 12.5 | R29: 0 | S29: 0 | T29: 0 | U29: 0
B30: PASCO | C30: (SD) | D30: (SD) | E30: (SD) | F30: (SD) | G30: (SD) | H30: (SD) | I30: (SD) | J30: (SD) | K30: (SD) | L30: (SD) | M30: (SD) | N30: (SD) | O30: (SD) | P30: (SD) | Q30: (SD) | R30: (SD) | S30: (SD) | T30: (SD) | U30: (SD)
B31: PIURA | C31: 43 | D31: 3 | E31: 6.976744186 | F31: 40 | G31: 9 | H31: 22.5 | I31: 43 | J31: 4 | K31: 9.302325581 | L31: 43 | M31: 4 | N31: 9.302325581 | O31: 36 | P31: 3 | Q31: 8.333333333 | R31: 2 | S31: 4.651162791 | T31: 1 | U31: 2.325581395
B32: PUNO | C32: 1 | D32: 1 | E32: 100 | F32: 0 | G32: 0 | H32: 0 | I32: 1 | J32: 0 | K32: 0 | L32: 1 | M32: 0 | N32: 0 | O32: 1 | P32: 0 | Q32: 0 | R32: 0 | S32: 0 | T32: 0 | U32: 0
B33: SAN MARTIN | C33: 2 | D33: 0 | E33: 0 | F33: 2 | G33: 0 | H33: 0 | I33: 2 | J33: 0 | K33: 0 | L33: 2 | M33: 0 | N33: 0 | O33: 1 | P33: 0 | Q33: 0 | R33: 0 | S33: 0 | T33: 1 | U33: 50
B34: TACNA | C34: 8 | D34: 0 | E34: 0 | F34: 8 | G34: 2 | H34: 25 | I34: 8 | J34: 0 | K34: 0 | L34: 8 | M34: 1 | N34: 12.5 | O34: 7 | P34: 0 | Q34: 0 | R34: 0 | S34: 0 | T34: 0 | U34: 0
B35: TUMBES | C35: 70 | D35: 13 | E35: 18.57142857 | F35: 57 | G35: 15 | H35: 26.31578947 | I35: 70 | J35: 3 | K35: 4.285714286 | L35: 70 | M35: 5 | N35: 7.142857143 | O35: 60 | P35: 10 | Q35: 16.66666667 | R35: 4 | S35: 5.714285714 | T35: 1 | U35: 1.428571429
B36: UCAYALI | C36: 1 | D36: 0 | E36: 0 | F36: 1 | G36: 1 | H36: 100 | I36: 1 | J36: 0 | K36: 0 | L36: 1 | M36: 0 | N36: 0 | O36: 1 | P36: 0 | Q36: 0 | R36: 0 | S36: 0 | T36: 0 | U36: 0
B37: PERÚ | C37: =SUM(C8:C36) -> 1164 | D37: =SUM(D8:D36) -> 139 | E37: =D37/C37*100 -> 11.94158076 | F37: =SUM(F8:F36) -> 1025 | G37: =SUM(G8:G36) -> 235 | H37: =G37/F37*100 -> 22.92682927 | I37: =SUM(I8:I36) -> 1164 | J37: =SUM(J8:J36) -> 35 | K37: =J37/I37*100 -> 3.006872852 | L37: =SUM(L8:L36) -> 1164 | M37: =SUM(M8:M36) -> 55 | N37: =M37/L37*100 -> 4.725085911 | O37: =SUM(O8:O36) -> 985 | P37: =SUM(P8:P36) -> 102 | Q37: =P37/O37*100 -> 10.35532995 | R37: =SUM(R8:R36) -> 91 | S37: =R37/L37*100 -> 7.817869416 | T37: =SUM(T8:T36) -> 33 | U37: =T37/L37*100 -> 2.835051546
B38: Fuente: Sistema de Información SIEN - HIS, 2021.
B39: Instituto Nacional de Salud / Centro Nacional de Alimentación y Nutrición / Dirección Ejecutiva de Vigilancia Alimentaria y Nutricional.
B40: 1,2,3 Indicadores Nitricionales según OMS.
B41: 4 Riesgo de Desnutrición Crónica (T/E)se considera a todo niño que se encuentra con valor -2 <= Z < -1
B42: (SD) Diresas sin registro de NIÑOS EXTRANJEROS.

Sheet EN 0-35m x DISTRITO
B2: CUADRO N°03 PERÚ: ESTADO NUTRICIONAL EN NIÑOS EXTRANJEROS MENORES DE 3 AÑOS QUE ACCEDIERON A LOS ESTABLECIMIENTOS DE SALUD POR INDICADORES ANTROPOMÉTRICOS, SEGÚN DEPARTAMENTO, PROVINCIA Y DISTRITO DEL ESTABLECIMIENTO DE SALUD
B3: =INICIO!C$8 -> PERIODO: ENERO - DICIEMBRE 2021
B5: DEPARTAMENTO | C5: PROVINCIA | D5: DISTRITO | E5: UBIGEO | F5: INDICADOR TALLA / EDAD1 | L5: INDICADOR PESO / EDAD2 | O5: INDICADOR PESO / TALLA3
F6: N° DE EVALUADOS | G6: DESNUTRICIÓN CRÓNICA | I6: N° DE EVALUADOS | J6: RIESGO DE D. CRÓNICA4 | L6: N° DE EVALUADOS | M6: DESNUTRICIÓN GLOBAL | O6: N° DE EVALUADOS | P6: DESNUTRICIÓN AGUDA | R6: N° DE EVALUADOS | S6: RIESGO DE D. AGUDA | U6: SOBREPESO | W6: OBESIDAD
G7: N° DE CASOS | H7: % | J7: N° DE CASOS | K7: % | M7: N° DE CASOS | N7: % | P7: N° DE CASOS | Q7: % | S7: N° DE CASOS | T7: % | U7: N° DE CASOS | V7: % | W7: N° DE CASOS | X7: %
B8: AMAZONAS | C8: BAGUA | D8: BAGUA | E8: 010201 | F8: 1 | G8: 1 | H8: 100 | I8: =F8-G8 -> 0 | J8: 0 | K8: 0 | L8: 1 | M8: 0 | N8: 0 | O8: 1 | P8: 0 | Q8: 0 | R8: 1 | S8: 0 | T8: 0 | U8: 0 | V8: 0 | W8: 0 | X8: 0
C9: UTCUBAMBA | D9: CAJARURO | E9: 010702 | F9: 1 | G9: 0 | H9: 0 | I9: =F9-G9 -> 1 | J9: 1 | K9: =J9/I9*100 -> 100 | L9: 1 | M9: 0 | N9: 0 | O9: 1 | P9: 0 | Q9: 0 | R9: 1 | S9: 0 | T9: 0 | U9: 0 | V9: 0 | W9: 0 | X9: 0
B10: ANCASH | C10: CASMA | D10: CASMA | E10: 020801 | F10: 8 | G10: 0 | H10: 0 | I10: 8 | J10: 1 | K10: 12.5 | L10: 8 | M10: 0 | N10: 0 | O10: 8 | P10: 0 | Q10: 0 | R10: 6 | S10: 1 | T10: 16.66666667 | U10: 1 | V10: 12.5 | W10: 1 | X10: 12.5
C11: HUARAZ | D11: INDEPENDENCIA | E11: 020105 | F11: 1 | G11: 0 | H11: 0 | I11: 1 | J11: 0 | K11: 0 | L11: 1 | M11: 0 | N11: 0 | O11: 1 | P11: 0 | Q11: 0 | R11: 1 | S11: 0 | T11: 0 | U11: 0 | V11: 0 | W11: 0 | X11: 0
C12: HUARMEY | D12: HUARMEY | E12: 021101 | F12: 1 | G12: 0 | H12: 0 | I12: 1 | J12: 0 | K12: 0 | L12: 1 | M12: 0 | N12: 0 | O12: 1 | P12: 0 | Q12: 0 | R12: 1 | S12: 0 | T12: 0 | U12: 0 | V12: 0 | W12: 0 | X12: 0
C13: SANTA | D13: CHIMBOTE | E13: 021801 | F13: 2 | G13: 1 | H13: 50 | I13: 1 | J13: 0 | K13: 0 | L13: 2 | M13: 0 | N13: 0 | O13: 2 | P13: 0 | Q13: 0 | R13: 2 | S13: 1 | T13: 50 | U13: 0 | V13: 0 | W13: 0 | X13: 0
D14: NUEVO CHIMBOTE | E14: 021809 | F14: 7 | G14: 2 | H14: 28.57142857 | I14: 5 | J14: 0 | K14: 0 | L14: 7 | M14: 1 | N14: 14.28571429 | O14: 7 | P14: 0 | Q14: 0 | R14: 7 | S14: 0 | T14: 0 | U14: 0 | V14: 0 | W14: 0 | X14: 0
D15: SANTA | E15: 021808 | F15: 2 | G15: 1 | H15: 50 | I15: 1 | J15: 0 | K15: 0 | L15: 2 | M15: 0 | N15: 0 | O15: 2 | P15: 0 | Q15: 0 | R15: 1 | S15: 0 | T15: 0 | U15: 1 | V15: 50 | W15: 0 | X15: 0
B16: AREQUIPA | C16: AREQUIPA | D16: ALTO SELVA ALEGRE | E16: 040102 | F16: 1 | G16: 0 | H16: 0 | I16: 1 | J16: 0 | K16: 0 | L16: 1 | M16: 0 | N16: 0 | O16: 1 | P16: 0 | Q16: 0 | R16: 1 | S16: 0 | T16: 0 | U16: 0 | V16: 0 | W16: 0 | X16: 0
D17: AREQUIPA | E17: 040101 | F17: 1 | G17: 0 | H17: 0 | I17: 1 | J17: 1 | K17: 100 | L17: 1 | M17: 0 | N17: 0 | O17: 1 | P17: 0 | Q17: 0 | R17: 1 | S17: 0 | T17: 0 | U17: 0 | V17: 0 | W17: 0 | X17: 0
D18: CERRO COLORADO | E18: 040104 | F18: 4 | G18: 1 | H18: 25 | I18: 3 | J18: 1 | K18: 33.33333333 | L18: 4 | M18: 0 | N18: 0 | O18: 4 | P18: 0 | Q18: 0 | R18: 3 | S18: 0 | T18: 0 | U18: 0 | V18: 0 | W18: 1 | X18: 25
D19: CHARACATO | E19: 040105 | F19: 1 | G19: 1 | H19: 100 | I19: 0 | J19: 0 | K19: 0 | L19: 1 | M19: 0 | N19: 0 | O19: 1 | P19: 0 | Q19: 0 | R19: 0 | S19: 0 | T19: 0 | U19: 1 | V19: 100 | W19: 0 | X19: 0
D20: JACOBO HUNTER | E20: 040107 | F20: 3 | G20: 0 | H20: 0 | I20: 3 | J20: 0 | K20: 0 | L20: 3 | M20: 0 | N20: 0 | O20: 3 | P20: 0 | Q20: 0 | R20: 3 | S20: 1 | T20: 33.33333333 | U20: 0 | V20: 0 | W20: 0 | X20: 0
D21: JOSE LUIS BUSTAMANTE Y RIVERO | E21: 040129 | F21: 1 | G21: 0 | H21: 0 | I21: 1 | J21: 0 | K21: 0 | L21: 1 | M21: 0 | N21: 0 | O21: 1 | P21: 0 | Q21: 0 | R21: 1 | S21: 0 | T21: 0 | U21: 0 | V21: 0 | W21: 0 | X21: 0
D22: MARIANO MELGAR | E22: 040109 | F22: 2 | G22: 0 | H22: 0 | I22: 2 | J22: 0 | K22: 0 | L22: 2 | M22: 0 | N22: 0 | O22: 2 | P22: 0 | Q22: 0 | R22: 2 | S22: 1 | T22: 50 | U22: 0 | V22: 0 | W22: 0 | X22: 0
D23: SABANDIA | E23: 040116 | F23: 1 | G23: 0 | H23: 0 | I23: 1 | J23: 1 | K23: 100 | L23: 1 | M23: 0 | N23: 0 | O23: 1 | P23: 0 | Q23: 0 | R23: 1 | S23: 1 | T23: 100 | U23: 0 | V23: 0 | W23: 0 | X23: 0
D24: SOCABAYA | E24: 040122 | F24: 2 | G24: 0 | H24: 0 | I24: 2 | J24: 0 | K24: 0 | L24: 2 | M24: 0 | N24: 0 | O24: 2 | P24: 0 | Q24: 0 | R24: 2 | S24: 1 | T24: 50 | U24: 0 | V24: 0 | W24: 0 | X24: 0
D25: YANAHUARA | E25: 040126 | F25: 2 | G25: 1 | H25: 50 | I25: 1 | J25: 0 | K25: 0 | L25: 2 | M25: 0 | N25: 0 | O25: 2 | P25: 0 | Q25: 0 | R25: 1 | S25: 0 | T25: 0 | U25: 0 | V25: 0 | W25: 1 | X25: 50
C26: CARAVELI | D26: ATICO | E26: 040303 | F26: 1 | G26: 0 | H26: 0 | I26: 1 | J26: 1 | K26: 100 | L26: 1 | M26: 0 | N26: 0 | O26: 1 | P26: 0 | Q26: 0 | R26: 1 | S26: 0 | T26: 0 | U26: 0 | V26: 0 | W26: 0 | X26: 0
D27: CHALA | E27: 040307 | F27: 1 | G27: 0 | H27: 0 | I27: 1 | J27: 0 | K27: 0 | L27: 1 | M27: 0 | N27: 0 | O27: 1 | P27: 0 | Q27: 0 | R27: 1 | S27: 0 | T27: 0 | U27: 0 | V27: 0 | W27: 0 | X27: 0
D28: YAUCA | E28: 040313 | F28: 2 | G28: 0 | H28: 0 | I28: 2 | J28: 2 | K28: 100 | L28: 2 | M28: 0 | N28: 0 | O28: 2 | P28: 0 | Q28: 0 | R28: 2 | S28: 0 | T28: 0 | U28: 0 | V28: 0 | W28: 0 | X28: 0
C29: ISLAY | D29: ISLAY | E29: 040704 | F29: 2 | G29: 1 | H29: 50 | I29: 1 | J29: 0 | K29: 0 | L29: 2 | M29: 1 | N29: 50 | O29: 2 | P29: 1 | Q29: 50 | R29: 1 | S29: 0 | T29: 0 | U29: 0 | V29: 0 | W29: 0 | X29: 0
D30: MOLLENDO | E30: 040701 | F30: 3 | G30: 0 | H30: 0 | I30: 3 | J30: 0 | K30: 0 | L30: 3 | M30: 0 | N30: 0 | O30: 3 | P30: 0 | Q30: 0 | R30: 3 | S30: 0 | T30: 0 | U30: 0 | V30: 0 | W30: 0 | X30: 0
D31: PUNTA DE BOMBON | E31: 040706 | F31: 3 | G31: 0 | H31: 0 | I31: 3 | J31: 2 | K31: 66.66666667 | L31: 3 | M31: 0 | N31: 0 | O31: 3 | P31: 0 | Q31: 0 | R31: 3 | S31: 1 | T31: 33.33333333 | U31: 0 | V31: 0 | W31: 0 | X31: 0
B32: AYACUCHO | C32: HUAMANGA | D32: JESUS NAZARENO | E32: 050115 | F32: 1 | G32: 0 | H32: 0 | I32: 1 | J32: 0 | K32: 0 | L32: 1 | M32: 0 | N32: 0 | O32: 1 | P32: 0 | Q32: 0 | R32: 1 | S32: 0 | T32: 0 | U32: 0 | V32: 0 | W32: 0 | X32: 0
C33: LA MAR | D33: ANCO | E33: 050502 | F33: 1 | G33: 0 | H33: 0 | I33: 1 | J33: 1 | K33: 100 | L33: 1 | M33: 0 | N33: 0 | O33: 1 | P33: 0 | Q33: 0 | R33: 1 | S33: 0 | T33: 0 | U33: 0 | V33: 0 | W33: 0 | X33: 0
B34: CAJAMARCA | C34: CAJABAMBA | D34: CAJABAMBA | E34: 060201 | F34: 1 | G34: 1 | H34: 100 | I34: 0 | J34: 0 | K34: 0 | L34: 1 | M34: 1 | N34: 100 | O34: 1 | P34: 0 | Q34: 0 | R34: 1 | S34: 1 | T34: 100 | U34: 0 | V34: 0 | W34: 0 | X34: 0
C35: CAJAMARCA | D35: CAJAMARCA | E35: 060101 | F35: 1 | G35: 0 | H35: 0 | I35: 1 | J35: 0 | K35: 0 | L35: 1 | M35: 0 | N35: 0 | O35: 1 | P35: 0 | Q35: 0 | R35: 1 | S35: 0 | T35: 0 | U35: 0 | V35: 0 | W35: 0 | X35: 0
C36: JAEN | D36: BELLAVISTA | E36: 060802 | F36: 1 | G36: 0 | H36: 0 | I36: 1 | J36: 1 | K36: 100 | L36: 1 | M36: 0 | N36: 0 | O36: 1 | P36: 0 | Q36: 0 | R36: 1 | S36: 0 | T36: 0 | U36: 0 | V36: 0 | W36: 0 | X36: 0
D37: JAEN | E37: 060801 | F37: 1 | G37: 0 | H37: 0 | I37: 1 | J37: 0 | K37: 0 | L37: 1 | M37: 0 | N37: 0 | O37: 1 | P37: 0 | Q37: 0 | R37: 1 | S37: 0 | T37: 0 | U37: 0 | V37: 0 | W37: 0 | X37: 0
C38: SAN IGNACIO | D38: SAN IGNACIO | E38: 060901 | F38: 2 | G38: 0 | H38: 0 | I38: 2 | J38: 0 | K38: 0 | L38: 2 | M38: 0 | N38: 0 | O38: 2 | P38: 0 | Q38: 0 | R38: 2 | S38: 1 | T38: 50 | U38: 0 | V38: 0 | W38: 0 | X38: 0
B39: CALLAO | C39: CALLAO | D39: CALLAO | E39: 070101 | F39: 21 | G39: 2 | H39: 9.523809524 | I39: 19 | J39: 6 | K39: 31.57894737 | L39: 21 | M39: 0 | N39: 0 | O39: 21 | P39: 1 | Q39: 4.761904762 | R39: 16 | S39: 0 | T39: 0 | U39: 4 | V39: 19.04761905 | W39: 0 | X39: 0
D40: CARMEN DE LA LEGUA-REYNOSO | E40: 070103 | F40: 1 | G40: 1 | H40: 100 | I40: 0 | J40: 0 | K40: 0 | L40: 1 | M40: 1 | N40: 100 | O40: 1 | P40: 0 | Q40: 0 | R40: 1 | S40: 1 | T40: 100 | U40: 0 | V40: 0 | W40: 0 | X40: 0
D41: LA PERLA | E41: 070104 | F41: 3 | G41: 0 | H41: 0 | I41: 3 | J41: 1 | K41: 33.33333333 | L41: 3 | M41: 0 | N41: 0 | O41: 3 | P41: 0 | Q41: 0 | R41: 2 | S41: 1 | T41: 50 | U41: 1 | V41: 33.33333333 | W41: 0 | X41: 0
D42: VENTANILLA | E42: 070106 | F42: 7 | G42: 2 | H42: 28.57142857 | I42: 5 | J42: 1 | K42: 20 | L42: 7 | M42: 0 | N42: 0 | O42: 7 | P42: 0 | Q42: 0 | R42: 6 | S42: 0 | T42: 0 | U42: 1 | V42: 14.28571429 | W42: 0 | X42: 0
B43: CUSCO | C43: CUSCO | D43: WANCHAQ | E43: 080108 | F43: 3 | G43: 1 | H43: 33.33333333 | I43: 2 | J43: 0 | K43: 0 | L43: 3 | M43: 0 | N43: 0 | O43: 3 | P43: 0 | Q43: 0 | R43: 3 | S43: 0 | T43: 0 | U43: 0 | V43: 0 | W43: 0 | X43: 0
B44: ICA | C44: CHINCHA | D44: GROCIO PRADO | E44: 110206 | F44: 7 | G44: 0 | H44: 0 | I44: 7 | J44: 2 | K44: 28.57142857 | L44: 7 | M44: 0 | N44: 0 | O44: 7 | P44: 0 | Q44: 0 | R44: 6 | S44: 0 | T44: 0 | U44: 1 | V44: 14.28571429 | W44: 0 | X44: 0
D45: PUEBLO NUEVO | E45: 110207 | F45: 3 | G45: 0 | H45: 0 | I45: 3 | J45: 1 | K45: 33.33333333 | L45: 3 | M45: 0 | N45: 0 | O45: 3 | P45: 0 | Q45: 0 | R45: 3 | S45: 1 | T45: 33.33333333 | U45: 0 | V45: 0 | W45: 0 | X45: 0
C46: ICA | D46: ICA | E46: 110101 | F46: 12 | G46: 0 | H46: 0 | I46: 12 | J46: 2 | K46: 16.66666667 | L46: 12 | M46: 0 | N46: 0 | O46: 12 | P46: 0 | Q46: 0 | R46: 12 | S46: 3 | T46: 25 | U46: 0 | V46: 0 | W46: 0 | X46: 0
D47: PARCONA | E47: 110106 | F47: 1 | G47: 1 | H47: 100 | I47: 0 | J47: 0 | K47: 0 | L47: 1 | M47: 0 | N47: 0 | O47: 1 | P47: 0 | Q47: 0 | R47: 1 | S47: 0 | T47: 0 | U47: 0 | V47: 0 | W47: 0 | X47: 0
D48: PUEBLO NUEVO | E48: 110107 | F48: 1 | G48: 0 | H48: 0 | I48: 1 | J48: 1 | K48: 100 | L48: 1 | M48: 0 | N48: 0 | O48: 1 | P48: 0 | Q48: 0 | R48: 1 | S48: 0 | T48: 0 | U48: 0 | V48: 0 | W48: 0 | X48: 0
D49: SALAS | E49: 110108 | F49: 1 | G49: 0 | H49: 0 | I49: 1 | J49: 0 | K49: 0 | L49: 1 | M49: 0 | N49: 0 | O49: 1 | P49: 0 | Q49: 0 | R49: 1 | S49: 0 | T49: 0 | U49: 0 | V49: 0 | W49: 0 | X49: 0
D50: SANTIAGO | E50: 110111 | F50: 1 | G50: 1 | H50: 100 | I50: 0 | J50: 0 | K50: 0 | L50: 1 | M50: 0 | N50: 0 | O50: 1 | P50: 0 | Q50: 0 | R50: 1 | S50: 0 | T50: 0 | U50: 0 | V50: 0 | W50: 0 | X50: 0
D51: SUBTANJALLA | E51: 110112 | F51: 9 | G51: 1 | H51: 11.11111111 | I51: 8 | J51: 2 | K51: 25 | L51: 9 | M51: 1 | N51: 11.11111111 | O51: 9 | P51: 1 | Q51: 11.11111111 | R51: 7 | S51: 1 | T51: 14.28571429 | U51: 1 | V51: 11.11111111 | W51: 0 | X51: 0
C52: NAZCA | D52: MARCONA | E52: 110304 | F52: 3 | G52: 0 | H52: 0 | I52: 3 | J52: 1 | K52: 33.33333333 | L52: 3 | M52: 0 | N52: 0 | O52: 3 | P52: 0 | Q52: 0 | R52: 2 | S52: 0 | T52: 0 | U52: 0 | V52: 0 | W52: 1 | X52: 33.33333333
D53: NAZCA | E53: 110301 | F53: 3 | G53: 1 | H53: 33.33333333 | I53: 2 | J53: 0 | K53: 0 | L53: 3 | M53: 0 | N53: 0 | O53: 3 | P53: 0 | Q53: 0 | R53: 3 | S53: 0 | T53: 0 | U53: 0 | V53: 0 | W53: 0 | X53: 0
D54: VISTA ALEGRE | E54: 110305 | F54: 1 | G54: 0 | H54: 0 | I54: 1 | J54: 0 | K54: 0 | L54: 1 | M54: 0 | N54: 0 | O54: 1 | P54: 0 | Q54: 0 | R54: 1 | S54: 0 | T54: 0 | U54: 0 | V54: 0 | W54: 0 | X54: 0
C55: PISCO | D55: PISCO | E55: 110501 | F55: 2 | G55: 0 | H55: 0 | I55: 2 | J55: 0 | K55: 0 | L55: 2 | M55: 0 | N55: 0 | O55: 2 | P55: 0 | Q55: 0 | R55: 2 | S55: 0 | T55: 0 | U55: 0 | V55: 0 | W55: 0 | X55: 0
D56: SAN ANDRES | E56: 110506 | F56: 14 | G56: 1 | H56: 7.142857143 | I56: 13 | J56: 4 | K56: 30.76923077 | L56: 14 | M56: 0 | N56: 0 | O56: 14 | P56: 0 | Q56: 0 | R56: 14 | S56: 0 | T56: 0 | U56: 0 | V56: 0 | W56: 0 | X56: 0
B57: JUNIN | C57: SATIPO | D57: PANGOA | E57: 120606 | F57: 1 | G57: 1 | H57: 100 | I57: 0 | J57: 0 | K57: 0 | L57: 1 | M57: 0 | N57: 0 | O57: 1 | P57: 0 | Q57: 0 | R57: 1 | S57: 0 | T57: 0 | U57: 0 | V57: 0 | W57: 0 | X57: 0
B58: LA LIBERTAD | C58: ASCOPE | D58: ASCOPE | E58: 130201 | F58: 1 | G58: 0 | H58: 0 | I58: 1 | J58: 0 | K58: 0 | L58: 1 | M58: 0 | N58: 0 | O58: 1 | P58: 0 | Q58: 0 | R58: 1 | S58: 0 | T58: 0 | U58: 0 | V58: 0 | W58: 0 | X58: 0
D59: CHOCOPE | E59: 130203 | F59: 1 | G59: 0 | H59: 0 | I59: 1 | J59: 0 | K59: 0 | L59: 1 | M59: 0 | N59: 0 | O59: 1 | P59: 0 | Q59: 0 | R59: 1 | S59: 0 | T59: 0 | U59: 0 | V59: 0 | W59: 0 | X59: 0
D60: MAGDALENA DE CAO | E60: 130204 | F60: 1 | G60: 0 | H60: 0 | I60: 1 | J60: 0 | K60: 0 | L60: 1 | M60: 0 | N60: 0 | O60: 1 | P60: 0 | Q60: 0 | R60: 1 | S60: 0 | T60: 0 | U60: 0 | V60: 0 | W60: 0 | X60: 0
D61: PAIJAN | E61: 130205 | F61: 9 | G61: 3 | H61: 33.33333333 | I61: 6 | J61: 0 | K61: 0 | L61: 9 | M61: 0 | N61: 0 | O61: 9 | P61: 1 | Q61: 11.11111111 | R61: 5 | S61: 0 | T61: 0 | U61: 1 | V61: 11.11111111 | W61: 2 | X61: 22.22222222
D62: RAZURI | E62: 130206 | F62: 3 | G62: 0 | H62: 0 | I62: 3 | J62: 0 | K62: 0 | L62: 3 | M62: 0 | N62: 0 | O62: 3 | P62: 0 | Q62: 0 | R62: 3 | S62: 0 | T62: 0 | U62: 0 | V62: 0 | W62: 0 | X62: 0
C63: CHEPEN | D63: CHEPEN | E63: 130401 | F63: 4 | G63: 0 | H63: 0 | I63: 4 | J63: 2 | K63: 50 | L63: 4 | M63: 1 | N63: 25 | O63: 4 | P63: 1 | Q63: 25 | R63: 3 | S63: 0 | T63: 0 | U63: 0 | V63: 0 | W63: 0 | X63: 0
D64: PACANGA | E64: 130402 | F64: 1 | G64: 0 | H64: 0 | I64: 1 | J64: 1 | K64: 100 | L64: 1 | M64: 0 | N64: 0 | O64: 1 | P64: 0 | Q64: 0 | R64: 1 | S64: 1 | T64: 100 | U64: 0 | V64: 0 | W64: 0 | X64: 0
D65: PUEBLO NUEVO | E65: 130403 | F65: 1 | G65: 0 | H65: 0 | I65: 1 | J65: 1 | K65: 100 | L65: 1 | M65: 0 | N65: 0 | O65: 1 | P65: 0 | Q65: 0 | R65: 1 | S65: 0 | T65: 0 | U65: 0 | V65: 0 | W65: 0 | X65: 0
C66: OTUZCO | D66: OTUZCO | E66: 130601 | F66: 1 | G66: 0 | H66: 0 | I66: 1 | J66: 0 | K66: 0 | L66: 1 | M66: 0 | N66: 0 | O66: 1 | P66: 0 | Q66: 0 | R66: 1 | S66: 0 | T66: 0 | U66: 0 | V66: 0 | W66: 0 | X66: 0
C67: PACASMAYO | D67: GUADALUPE | E67: 130702 | F67: 6 | G67: 1 | H67: 16.66666667 | I67: 5 | J67: 3 | K67: 60 | L67: 6 | M67: 0 | N67: 0 | O67: 6 | P67: 0 | Q67: 0 | R67: 6 | S67: 0 | T67: 0 | U67: 0 | V67: 0 | W67: 0 | X67: 0
D68: PACASMAYO | E68: 130704 | F68: 8 | G68: 0 | H68: 0 | I68: 8 | J68: 1 | K68: 12.5 | L68: 8 | M68: 0 | N68: 0 | O68: 8 | P68: 0 | Q68: 0 | R68: 6 | S68: 2 | T68: 33.33333333 | U68: 2 | V68: 25 | W68: 0 | X68: 0
C69: TRUJILLO | D69: LA ESPERANZA | E69: 130105 | F69: 2 | G69: 0 | H69: 0 | I69: 2 | J69: 0 | K69: 0 | L69: 2 | M69: 0 | N69: 0 | O69: 2 | P69: 0 | Q69: 0 | R69: 1 | S69: 0 | T69: 0 | U69: 1 | V69: 50 | W69: 0 | X69: 0
D70: MOCHE | E70: 130107 | F70: 2 | G70: 0 | H70: 0 | I70: 2 | J70: 0 | K70: 0 | L70: 2 | M70: 0 | N70: 0 | O70: 2 | P70: 1 | Q70: 50 | R70: 1 | S70: 0 | T70: 0 | U70: 0 | V70: 0 | W70: 0 | X70: 0
D71: TRUJILLO | E71: 130101 | F71: 21 | G71: 6 | H71: 28.57142857 | I71: 15 | J71: 4 | K71: 26.66666667 | L71: 21 | M71: 0 | N71: 0 | O71: 21 | P71: 0 | Q71: 0 | R71: 18 | S71: 1 | T71: 5.555555556 | U71: 3 | V71: 14.28571429 | W71: 0 | X71: 0
D72: VICTOR LARCO HERRERA | E72: 130111 | F72: 1 | G72: 0 | H72: 0 | I72: 1 | J72: 1 | K72: =J72/I72*100 -> 100 | L72: 1 | M72: 0 | N72: 0 | O72: 1 | P72: 0 | Q72: 0 | R72: 1 | S72: 0 | T72: 0 | U72: 0 | V72: 0 | W72: 0 | X72: 0
C73: VIRU | D73: CHAO | E73: 131202 | F73: 6 | G73: 2 | H73: 33.33333333 | I73: =F73-G73 -> 4 | J73: 1 | K73: 25 | L73: 6 | M73: 1 | N73: 16.66666667 | O73: 6 | P73: 0 | Q73: 0 | R73: 6 | S73: 1 | T73: 16.66666667 | U73: 0 | V73: 0 | W73: 0 | X73: 0
D74: VIRU | E74: 131201 | F74: 4 | G74: 0 | H74: 0 | I74: 4 | J74: 1 | K74: 25 | L74: 4 | M74: 0 | N74: 0 | O74: 4 | P74: 0 | Q74: 0 | R74: 3 | S74: 0 | T74: 0 | U74: 0 | V74: 0 | W74: 1 | X74: 25
B75: LAMBAYEQUE | C75: CHICLAYO | D75: CHICLAYO | E75: 140101 | F75: 1 | G75: 0 | H75: 0 | I75: 1 | J75: 0 | K75: 0 | L75: 1 | M75: 0 | N75: 0 | O75: 1 | P75: 0 | Q75: 0 | R75: 1 | S75: 0 | T75: 0 | U75: 0 | V75: 0 | W75: 0 | X75: 0
D76: ETEN PUERTO | E76: 140104 | F76: 1 | G76: 0 | H76: 0 | I76: 1 | J76: 1 | K76: 100 | L76: 1 | M76: 0 | N76: 0 | O76: 1 | P76: 0 | Q76: 0 | R76: 1 | S76: 0 | T76: 0 | U76: 0 | V76: 0 | W76: 0 | X76: 0
D77: JOSE LEONARDO ORTIZ | E77: 140105 | F77: 1 | G77: 0 | H77: 0 | I77: 1 | J77: 0 | K77: 0 | L77: 1 | M77: 0 | N77: 0 | O77: 1 | P77: 0 | Q77: 0 | R77: 1 | S77: 0 | T77: 0 | U77: 0 | V77: 0 | W77: 0 | X77: 0
D78: LA VICTORIA | E78: 140106 | F78: 2 | G78: 0 | H78: 0 | I78: 2 | J78: 0 | K78: 0 | L78: 2 | M78: 0 | N78: 0 | O78: 2 | P78: 0 | Q78: 0 | R78: 2 | S78: 0 | T78: 0 | U78: 0 | V78: 0 | W78: 0 | X78: 0
D79: REQUE | E79: 140113 | F79: 1 | G79: 1 | H79: 100 | I79: 0 | J79: 0 | K79: 0 | L79: 1 | M79: 0 | N79: 0 | O79: 1 | P79: 0 | Q79: 0 | R79: 1 | S79: 0 | T79: 0 | U79: 0 | V79: 0 | W79: 0 | X79: 0
C80: LAMBAYEQUE | D80: SAN JOSE | E80: 140311 | F80: 2 | G80: 0 | H80: 0 | I80: 2 | J80: 1 | K80: 50 | L80: 2 | M80: 0 | N80: 0 | O80: 2 | P80: 0 | Q80: 0 | R80: 2 | S80: 0 | T80: 0 | U80: 0 | V80: 0 | W80: 0 | X80: 0
B81: LIMA | C81: BARRANCA | D81: BARRANCA | E81: 150201 | F81: 5 | G81: 0 | H81: 0 | I81: 5 | J81: 1 | K81: 20 | L81: 5 | M81: 0 | N81: 0 | O81: 5 | P81: 0 | Q81: 0 | R81: 5 | S81: 1 | T81: 20 | U81: 0 | V81: 0 | W81: 0 | X81: 0
D82: SUPE | E82: 150204 | F82: 9 | G82: 0 | H82: 0 | I82: 9 | J82: 3 | K82: 33.33333333 | L82: 9 | M82: 0 | N82: 0 | O82: 9 | P82: 0 | Q82: 0 | R82: 7 | S82: 1 | T82: 14.28571429 | U82: 2 | V82: 22.22222222 | W82: 0 | X82: 0
D83: SUPE PUERTO | E83: 150205 | F83: 3 | G83: 1 | H83: 33.33333333 | I83: 2 | J83: 0 | K83: 0 | L83: 3 | M83: 0 | N83: 0 | O83: 3 | P83: 0 | Q83: 0 | R83: 3 | S83: 1 | T83: 33.33333333 | U83: 0 | V83: 0 | W83: 0 | X83: 0
C84: CAÑETE | D84: CHILCA | E84: 150505 | F84: 6 | G84: 0 | H84: 0 | I84: 6 | J84: 2 | K84: 33.33333333 | L84: 6 | M84: 0 | N84: 0 | O84: 6 | P84: 1 | Q84: 16.66666667 | R84: 5 | S84: 2 | T84: 40 | U84: 0 | V84: 0 | W84: 0 | X84: 0
D85: IMPERIAL | E85: 150507 | F85: 1 | G85: 0 | H85: 0 | I85: 1 | J85: 0 | K85: 0 | L85: 1 | M85: 0 | N85: 0 | O85: 1 | P85: 0 | Q85: 0 | R85: 1 | S85: 0 | T85: 0 | U85: 0 | V85: 0 | W85: 0 | X85: 0
D86: MALA | E86: 150509 | F86: 5 | G86: 0 | H86: 0 | I86: 5 | J86: 0 | K86: 0 | L86: 5 | M86: 0 | N86: 0 | O86: 5 | P86: 0 | Q86: 0 | R86: 5 | S86: 0 | T86: 0 | U86: 0 | V86: 0 | W86: 0 | X86: 0
C87: HUARAL | D87: AUCALLAMA | E87: 150604 | F87: 2 | G87: 0 | H87: 0 | I87: 2 | J87: 1 | K87: 50 | L87: 2 | M87: 0 | N87: 0 | O87: 2 | P87: 0 | Q87: 0 | R87: 2 | S87: 0 | T87: 0 | U87: 0 | V87: 0 | W87: 0 | X87: 0
D88: CHANCAY | E88: 150605 | F88: 6 | G88: 0 | H88: 0 | I88: 6 | J88: 4 | K88: 66.66666667 | L88: 6 | M88: 0 | N88: 0 | O88: 6 | P88: 0 | Q88: 0 | R88: 6 | S88: 1 | T88: 16.66666667 | U88: 0 | V88: 0 | W88: 0 | X88: 0
D89: HUARAL | E89: 150601 | F89: 5 | G89: 1 | H89: 20 | I89: 4 | J89: 0 | K89: 0 | L89: 5 | M89: 0 | N89: 0 | O89: 5 | P89: 0 | Q89: 0 | R89: 5 | S89: 0 | T89: 0 | U89: 0 | V89: 0 | W89: 0 | X89: 0
C90: HUAURA | D90: HUACHO | E90: 150801 | F90: 6 | G90: 0 | H90: 0 | I90: 6 | J90: 2 | K90: 33.33333333 | L90: 6 | M90: 0 | N90: 0 | O90: 6 | P90: 0 | Q90: 0 | R90: 6 | S90: 3 | T90: 50 | U90: 0 | V90: 0 | W90: 0 | X90: 0
D91: HUALMAY | E91: 150805 | F91: 6 | G91: 0 | H91: 0 | I91: 6 | J91: 1 | K91: 16.66666667 | L91: 6 | M91: 0 | N91: 0 | O91: 6 | P91: 0 | Q91: 0 | R91: 5 | S91: 1 | T91: 20 | U91: 0 | V91: 0 | W91: 1 | X91: 16.66666667
D92: HUAURA | E92: 150806 | F92: 6 | G92: 3 | H92: 50 | I92: 3 | J92: 0 | K92: 0 | L92: 6 | M92: 0 | N92: 0 | O92: 6 | P92: 0 | Q92: 0 | R92: 5 | S92: 0 | T92: 0 | U92: 1 | V92: 16.66666667 | W92: 0 | X92: 0
D93: SANTA MARIA | E93: 150810 | F93: 10 | G93: 1 | H93: 10 | I93: 9 | J93: 2 | K93: 22.22222222 | L93: 10 | M93: 1 | N93: 10 | O93: 10 | P93: 1 | Q93: 10 | R93: 8 | S93: 1 | T93: 12.5 | U93: 1 | V93: 10 | W93: 0 | X93: 0
D94: VEGUETA | E94: 150812 | F94: 5 | G94: 0 | H94: 0 | I94: 5 | J94: 1 | K94: 20 | L94: 5 | M94: 0 | N94: 0 | O94: 5 | P94: 0 | Q94: 0 | R94: 3 | S94: 0 | T94: 0 | U94: 1 | V94: 20 | W94: 1 | X94: 20
C95: LIMA | D95: ANCON | E95: 150102 | F95: 7 | G95: 1 | H95: 14.28571429 | I95: 6 | J95: 1 | K95: 16.66666667 | L95: 7 | M95: 0 | N95: 0 | O95: 7 | P95: 0 | Q95: 0 | R95: 7 | S95: 0 | T95: 0 | U95: 0 | V95: 0 | W95: 0 | X95: 0
D96: ATE | E96: 150103 | F96: 39 | G96: 4 | H96: 10.25641026 | I96: 35 | J96: 8 | K96: 22.85714286 | L96: 39 | M96: 1 | N96: 2.564102564 | O96: 39 | P96: 1 | Q96: 2.564102564 | R96: 32 | S96: 4 | T96: 12.5 | U96: 6 | V96: 15.38461538 | W96: 0 | X96: 0
D97: CARABAYLLO | E97: 150106 | F97: 18 | G97: 1 | H97: 5.555555556 | I97: 17 | J97: 3 | K97: 17.64705882 | L97: 18 | M97: 0 | N97: 0 | O97: 18 | P97: 0 | Q97: 0 | R97: 18 | S97: 1 | T97: 5.555555556 | U97: 0 | V97: 0 | W97: 0 | X97: 0
D98: CHACLACAYO | E98: 150107 | F98: 2 | G98: 0 | H98: 0 | I98: 2 | J98: 1 | K98: 50 | L98: 2 | M98: 0 | N98: 0 | O98: 2 | P98: 0 | Q98: 0 | R98: 2 | S98: 1 | T98: 50 | U98: 0 | V98: 0 | W98: 0 | X98: 0
D99: CHORRILLOS | E99: 150108 | F99: 11 | G99: 0 | H99: 0 | I99: 11 | J99: 3 | K99: 27.27272727 | L99: 11 | M99: 0 | N99: 0 | O99: 11 | P99: 0 | Q99: 0 | R99: 11 | S99: 1 | T99: 9.090909091 | U99: 0 | V99: 0 | W99: 0 | X99: 0
D100: CIENEGUILLA | E100: 150109 | F100: 1 | G100: 0 | H100: 0 | I100: 1 | J100: 1 | K100: 100 | L100: 1 | M100: 0 | N100: 0 | O100: 1 | P100: 0 | Q100: 0 | R100: 1 | S100: 1 | T100: 100 | U100: 0 | V100: 0 | W100: 0 | X100: 0
D101: COMAS | E101: 150110 | F101: 56 | G101: 6 | H101: 10.71428571 | I101: 50 | J101: 10 | K101: 20 | L101: 56 | M101: 2 | N101: 3.571428571 | O101: 56 | P101: 7 | Q101: 12.5 | R101: 41 | S101: 11 | T101: 26.82926829 | U101: 5 | V101: 8.928571429 | W101: 3 | X101: 5.357142857
D102: EL AGUSTINO | E102: 150111 | F102: 10 | G102: 1 | H102: 10 | I102: 9 | J102: 2 | K102: 22.22222222 | L102: 10 | M102: 1 | N102: 10 | O102: 10 | P102: 1 | Q102: 10 | R102: 8 | S102: 2 | T102: 25 | U102: 1 | V102: 10 | W102: 0 | X102: 0
D103: INDEPENDENCIA | E103: 150112 | F103: 20 | G103: 3 | H103: 15 | I103: 17 | J103: 2 | K103: 11.76470588 | L103: 20 | M103: 0 | N103: 0 | O103: 20 | P103: 1 | Q103: 5 | R103: 16 | S103: 2 | T103: 12.5 | U103: 0 | V103: 0 | W103: 3 | X103: 15
D104: JESUS MARIA | E104: 150113 | F104: 2 | G104: 0 | H104: 0 | I104: 2 | J104: 1 | K104: 50 | L104: 2 | M104: 0 | N104: 0 | O104: 2 | P104: 0 | Q104: 0 | R104: 2 | S104: 0 | T104: 0 | U104: 0 | V104: 0 | W104: 0 | X104: 0
D105: LA MOLINA | E105: 150114 | F105: 4 | G105: 1 | H105: 25 | I105: 3 | J105: 1 | K105: 33.33333333 | L105: 4 | M105: 1 | N105: 25 | O105: 4 | P105: 0 | Q105: 0 | R105: 4 | S105: 1 | T105: 25 | U105: 0 | V105: 0 | W105: 0 | X105: 0
D106: LA VICTORIA | E106: 150115 | F106: 28 | G106: 1 | H106: 3.571428571 | I106: 27 | J106: 6 | K106: 22.22222222 | L106: 28 | M106: 0 | N106: 0 | O106: 28 | P106: 1 | Q106: 3.571428571 | R106: 25 | S106: 1 | T106: 4 | U106: 2 | V106: 7.142857143 | W106: 0 | X106: 0
D107: LIMA | E107: 150101 | F107: 52 | G107: 6 | H107: 11.53846154 | I107: 46 | J107: 11 | K107: 23.91304348 | L107: 52 | M107: 0 | N107: 0 | O107: 52 | P107: 0 | Q107: 0 | R107: 50 | S107: 2 | T107: 4 | U107: 1 | V107: 1.923076923 | W107: 1 | X107: 1.923076923
D108: LINCE | E108: 150116 | F108: 3 | G108: 0 | H108: 0 | I108: 3 | J108: 1 | K108: 33.33333333 | L108: 3 | M108: 0 | N108: 0 | O108: 3 | P108: 0 | Q108: 0 | R108: 3 | S108: 1 | T108: 33.33333333 | U108: 0 | V108: 0 | W108: 0 | X108: 0
D109: LOS OLIVOS | E109: 150117 | F109: 63 | G109: 12 | H109: 19.04761905 | I109: 51 | J109: 13 | K109: 25.49019608 | L109: 63 | M109: 2 | N109: 3.174603175 | O109: 63 | P109: 4 | Q109: 6.349206349 | R109: 52 | S109: 3 | T109: 5.769230769 | U109: 6 | V109: 9.523809524 | W109: 1 | X109: 1.587301587
D110: LURIGANCHO | E110: 150118 | F110: 18 | G110: 1 | H110: 5.555555556 | I110: 17 | J110: 2 | K110: 11.76470588 | L110: 18 | M110: 0 | N110: 0 | O110: 18 | P110: 0 | Q110: 0 | R110: 16 | S110: 2 | T110: 12.5 | U110: 1 | V110: 5.555555556 | W110: 1 | X110: 5.555555556
D111: LURIN | E111: 150119 | F111: 9 | G111: 1 | H111: 11.11111111 | I111: 8 | J111: 2 | K111: 25 | L111: 9 | M111: 0 | N111: 0 | O111: 9 | P111: 0 | Q111: 0 | R111: 9 | S111: 0 | T111: 0 | U111: 0 | V111: 0 | W111: 0 | X111: 0
D112: MAGDALENA DEL MAR | E112: 150120 | F112: 1 | G112: 0 | H112: 0 | I112: 1 | J112: 0 | K112: 0 | L112: 1 | M112: 0 | N112: 0 | O112: 1 | P112: 0 | Q112: 0 | R112: 1 | S112: 0 | T112: 0 | U112: 0 | V112: 0 | W112: 0 | X112: 0
D113: MIRAFLORES | E113: 150122 | F113: 6 | G113: 0 | H113: 0 | I113: 6 | J113: 1 | K113: 16.66666667 | L113: 6 | M113: 0 | N113: 0 | O113: 6 | P113: 0 | Q113: 0 | R113: 5 | S113: 0 | T113: 0 | U113: 1 | V113: 16.66666667 | W113: 0 | X113: 0
D114: PACHACAMAC | E114: 150123 | F114: 17 | G114: 2 | H114: 11.76470588 | I114: 15 | J114: 1 | K114: 6.666666667 | L114: 17 | M114: 0 | N114: 0 | O114: 17 | P114: 0 | Q114: 0 | R114: 13 | S114: 0 | T114: 0 | U114: 4 | V114: 23.52941176 | W114: 0 | X114: 0
D115: PUCUSANA | E115: 150124 | F115: 1 | G115: 0 | H115: 0 | I115: 1 | J115: 0 | K115: 0 | L115: 1 | M115: 0 | N115: 0 | O115: 1 | P115: 0 | Q115: 0 | R115: 1 | S115: 0 | T115: 0 | U115: 0 | V115: 0 | W115: 0 | X115: 0
D116: PUENTE PIEDRA | E116: 150125 | F116: 9 | G116: 1 | H116: 11.11111111 | I116: 8 | J116: 1 | K116: 12.5 | L116: 9 | M116: 0 | N116: 0 | O116: 9 | P116: 0 | Q116: 0 | R116: 6 | S116: 1 | T116: 16.66666667 | U116: 2 | V116: 22.22222222 | W116: 1 | X116: 11.11111111
D117: PUNTA NEGRA | E117: 150127 | F117: 1 | G117: 0 | H117: 0 | I117: 1 | J117: 0 | K117: 0 | L117: 1 | M117: 0 | N117: 0 | O117: 1 | P117: 0 | Q117: 0 | R117: 1 | S117: 0 | T117: 0 | U117: 0 | V117: 0 | W117: 0 | X117: 0
D118: RIMAC | E118: 150128 | F118: 15 | G118: 3 | H118: 20 | I118: 12 | J118: 3 | K118: 25 | L118: 15 | M118: 0 | N118: 0 | O118: 15 | P118: 0 | Q118: 0 | R118: 12 | S118: 2 | T118: 16.66666667 | U118: 2 | V118: 13.33333333 | W118: 1 | X118: 6.666666667
D119: SAN BARTOLO | E119: 150129 | F119: 4 | G119: 0 | H119: 0 | I119: 4 | J119: 0 | K119: 0 | L119: 4 | M119: 0 | N119: 0 | O119: 4 | P119: 0 | Q119: 0 | R119: 4 | S119: 1 | T119: 25 | U119: 0 | V119: 0 | W119: 0 | X119: 0
D120: SAN JUAN DE LURIGANCHO | E120: 150132 | F120: 65 | G120: 8 | H120: 12.30769231 | I120: 57 | J120: 17 | K120: 29.8245614 | L120: 65 | M120: 3 | N120: 4.615384615 | O120: 65 | P120: 4 | Q120: 6.153846154 | R120: 56 | S120: 7 | T120: 12.5 | U120: 5 | V120: 7.692307692 | W120: 0 | X120: 0
D121: SAN JUAN DE MIRAFLORES | E121: 150133 | F121: 29 | G121: 2 | H121: 6.896551724 | I121: 27 | J121: 4 | K121: 14.81481481 | L121: 29 | M121: 2 | N121: 6.896551724 | O121: 29 | P121: 4 | Q121: 13.79310345 | R121: 23 | S121: 3 | T121: 13.04347826 | U121: 1 | V121: 3.448275862 | W121: 1 | X121: 3.448275862
D122: SAN MARTIN DE PORRES | E122: 150135 | F122: 84 | G122: 11 | H122: 13.0952381 | I122: 73 | J122: 15 | K122: 20.54794521 | L122: 84 | M122: 4 | N122: 4.761904762 | O122: 84 | P122: 5 | Q122: 5.952380952 | R122: 67 | S122: 3 | T122: 4.47761194 | U122: 11 | V122: 13.0952381 | W122: 1 | X122: 1.19047619
D123: SAN MIGUEL | E123: 150136 | F123: 5 | G123: 0 | H123: 0 | I123: 5 | J123: 0 | K123: 0 | L123: 5 | M123: 0 | N123: 0 | O123: 5 | P123: 0 | Q123: 0 | R123: 5 | S123: 0 | T123: 0 | U123: 0 | V123: 0 | W123: 0 | X123: 0
D124: SANTA ANITA | E124: 150137 | F124: 81 | G124: 9 | H124: 11.11111111 | I124: 72 | J124: 17 | K124: 23.61111111 | L124: 81 | M124: 2 | N124: 2.469135802 | O124: 81 | P124: 7 | Q124: 8.641975309 | R124: 58 | S124: 2 | T124: 3.448275862 | U124: 9 | V124: 11.11111111 | W124: 7 | X124: 8.641975309
D125: SANTA ROSA | E125: 150139 | F125: 1 | G125: 0 | H125: 0 | I125: 1 | J125: 0 | K125: 0 | L125: 1 | M125: 0 | N125: 0 | O125: 1 | P125: 0 | Q125: 0 | R125: 1 | S125: 0 | T125: 0 | U125: 0 | V125: 0 | W125: 0 | X125: 0
D126: SANTIAGO DE SURCO | E126: 150140 | F126: 25 | G126: 2 | H126: 8 | I126: 23 | J126: 4 | K126: 17.39130435 | L126: 25 | M126: 1 | N126: 4 | O126: 25 | P126: 1 | Q126: 4 | R126: 20 | S126: 2 | T126: 10 | U126: 3 | V126: 12 | W126: 1 | X126: 4
D127: SURQUILLO | E127: 150141 | F127: 3 | G127: 0 | H127: 0 | I127: 3 | J127: 0 | K127: 0 | L127: 3 | M127: 0 | N127: 0 | O127: 3 | P127: 0 | Q127: 0 | R127: 3 | S127: 0 | T127: 0 | U127: 0 | V127: 0 | W127: 0 | X127: 0
D128: VILLA EL SALVADOR | E128: 150142 | F128: 25 | G128: 4 | H128: 16 | I128: 21 | J128: 6 | K128: 28.57142857 | L128: 25 | M128: 1 | N128: 4 | O128: 25 | P128: 1 | Q128: 4 | R128: 22 | S128: 1 | T128: 4.545454545 | U128: 2 | V128: 8 | W128: 0 | X128: 0
D129: VILLA MARIA DEL TRIUNFO | E129: 150143 | F129: 5 | G129: 1 | H129: 20 | I129: 4 | J129: 2 | K129: 50 | L129: 5 | M129: 0 | N129: 0 | O129: 5 | P129: 0 | Q129: 0 | R129: 5 | S129: 1 | T129: 20 | U129: 0 | V129: 0 | W129: 0 | X129: 0
B130: LORETO | C130: MAYNAS | D130: IQUITOS | E130: 160101 | F130: 1 | G130: 0 | H130: 0 | I130: 1 | J130: 1 | K130: 100 | L130: 1 | M130: 0 | N130: 0 | O130: 1 | P130: 0 | Q130: 0 | R130: 1 | S130: 0 | T130: 0 | U130: 0 | V130: 0 | W130: 0 | X130: 0
B131: MOQUEGUA | C131: ILO | D131: ILO | E131: 180301 | F131: 4 | G131: 0 | H131: 0 | I131: 4 | J131: 1 | K131: 25 | L131: 4 | M131: 0 | N131: 0 | O131: 4 | P131: 0 | Q131: 0 | R131: 4 | S131: 1 | T131: 25 | U131: 0 | V131: 0 | W131: 0 | X131: 0
C132: MARISCAL NIETO | D132: MOQUEGUA | E132: 180101 | F132: 4 | G132: 0 | H132: 0 | I132: 4 | J132: 0 | K132: 0 | L132: 4 | M132: 0 | N132: 0 | O132: 4 | P132: 0 | Q132: 0 | R132: 4 | S132: 0 | T132: 0 | U132: 0 | V132: 0 | W132: 0 | X132: 0
B133: PIURA | C133: MORROPON | D133: CHULUCANAS | E133: 200401 | F133: 2 | G133: 0 | H133: 0 | I133: 2 | J133: 0 | K133: 0 | L133: 2 | M133: 0 | N133: 0 | O133: 2 | P133: 0 | Q133: 0 | R133: 2 | S133: 0 | T133: 0 | U133: 0 | V133: 0 | W133: 0 | X133: 0
D134: MORROPON | E134: 200405 | F134: 1 | G134: 0 | H134: 0 | I134: 1 | J134: 1 | K134: 100 | L134: 1 | M134: 0 | N134: 0 | O134: 1 | P134: 0 | Q134: 0 | R134: 1 | S134: 0 | T134: 0 | U134: 0 | V134: 0 | W134: 0 | X134: 0
C135: PAITA | D135: COLAN | E135: 200504 | F135: 1 | G135: 0 | H135: 0 | I135: 1 | J135: 0 | K135: 0 | L135: 1 | M135: 0 | N135: 0 | O135: 1 | P135: 0 | Q135: 0 | R135: 1 | S135: 0 | T135: 0 | U135: 0 | V135: 0 | W135: 0 | X135: 0
D136: PAITA | E136: 200501 | F136: 8 | G136: 2 | H136: 25 | I136: 6 | J136: 0 | K136: =J136/I136*100 -> 0 | L136: 8 | M136: 2 | N136: 25 | O136: 8 | P136: 2 | Q136: 25 | R136: 5 | S136: 1 | T136: 20 | U136: 1 | V136: 12.5 | W136: 0 | X136: 0
D137: VICHAYAL | E137: 200507 | F137: 3 | G137: 0 | H137: 0 | I137: =F137-G137 -> 3 | J137: 0 | K137: 0 | L137: 3 | M137: 1 | N137: 33.33333333 | O137: 3 | P137: 1 | Q137: 33.33333333 | R137: 2 | S137: 0 | T137: 0 | U137: 0 | V137: 0 | W137: 0 | X137: 0
C138: PIURA | D138: CASTILLA | E138: 200104 | F138: 1 | G138: 0 | H138: 0 | I138: 1 | J138: 0 | K138: 0 | L138: 1 | M138: 0 | N138: 0 | O138: 1 | P138: 0 | Q138: 0 | R138: 1 | S138: 0 | T138: 0 | U138: 0 | V138: 0 | W138: 0 | X138: 0
D139: CATACAOS | E139: 200105 | F139: 1 | G139: 0 | H139: 0 | I139: 1 | J139: 0 | K139: 0 | L139: 1 | M139: 0 | N139: 0 | O139: 1 | P139: 0 | Q139: 0 | R139: 1 | S139: 0 | T139: 0 | U139: 0 | V139: 0 | W139: 0 | X139: 0
D140: CURA MORI | E140: 200107 | F140: 1 | G140: 0 | H140: 0 | I140: 1 | J140: 0 | K140: 0 | L140: 1 | M140: 0 | N140: 0 | O140: 1 | P140: 0 | Q140: 0 | R140: 1 | S140: 1 | T140: 100 | U140: 0 | V140: 0 | W140: 0 | X140: 0
D141: LAS LOMAS | E141: 200111 | F141: 1 | G141: 0 | H141: 0 | I141: 1 | J141: 0 | K141: 0 | L141: 1 | M141: 0 | N141: 0 | O141: 1 | P141: 0 | Q141: 0 | R141: 0 | S141: 0 | T141: 0 | U141: 1 | V141: 100 | W141: 0 | X141: 0
D142: PIURA | E142: 200101 | F142: 4 | G142: 0 | H142: 0 | I142: 4 | J142: 1 | K142: 25 | L142: 4 | M142: 0 | N142: 0 | O142: 4 | P142: 0 | Q142: 0 | R142: 4 | S142: 1 | T142: 25 | U142: 0 | V142: 0 | W142: 0 | X142: 0
D143: VEINTISEIS DE OCTUBRE | E143: 200115 | F143: 3 | G143: 0 | H143: 0 | I143: 3 | J143: 1 | K143: 33.33333333 | L143: 3 | M143: 0 | N143: 0 | O143: 3 | P143: 0 | Q143: 0 | R143: 3 | S143: 0 | T143: 0 | U143: 0 | V143: 0 | W143: 0 | X143: 0
C144: SECHURA | D144: SECHURA | E144: 200801 | F144: 4 | G144: 0 | H144: 0 | I144: 4 | J144: 3 | K144: 75 | L144: 4 | M144: 0 | N144: 0 | O144: 4 | P144: 0 | Q144: 0 | R144: 4 | S144: 0 | T144: 0 | U144: 0 | V144: 0 | W144: 0 | X144: 0
C145: SULLANA | D145: QUERECOTILLO | E145: 200607 | F145: 1 | G145: 0 | H145: 0 | I145: 1 | J145: 0 | K145: 0 | L145: 1 | M145: 0 | N145: 0 | O145: 1 | P145: 0 | Q145: 0 | R145: 1 | S145: 0 | T145: 0 | U145: 0 | V145: 0 | W145: 0 | X145: 0
D146: SULLANA | E146: 200601 | F146: 3 | G146: 0 | H146: 0 | I146: 3 | J146: 1 | K146: 33.33333333 | L146: 3 | M146: 1 | N146: 33.33333333 | O146: 3 | P146: 1 | Q146: 33.33333333 | R146: 2 | S146: 0 | T146: 0 | U146: 0 | V146: 0 | W146: 0 | X146: 0
C147: TALARA | D147: LOS ORGANOS | E147: 200705 | F147: 2 | G147: 0 | H147: 0 | I147: 2 | J147: 1 | K147: 50 | L147: 2 | M147: 0 | N147: 0 | O147: 2 | P147: 0 | Q147: 0 | R147: 2 | S147: 0 | T147: 0 | U147: 0 | V147: 0 | W147: 0 | X147: 0
D148: MANCORA | E148: 200706 | F148: 6 | G148: 1 | H148: 16.66666667 | I148: 5 | J148: 1 | K148: 20 | L148: 6 | M148: 0 | N148: 0 | O148: 6 | P148: 0 | Q148: 0 | R148: 5 | S148: 0 | T148: 0 | U148: 0 | V148: 0 | W148: 1 | X148: 16.66666667
D149: PARIÑAS | E149: 200701 | F149: 1 | G149: 0 | H149: 0 | I149: 1 | J149: 0 | K149: 0 | L149: 1 | M149: 0 | N149: 0 | O149: 1 | P149: 0 | Q149: 0 | R149: 1 | S149: 0 | T149: 0 | U149: 0 | V149: 0 | W149: 0 | X149: 0
B150: PUNO | C150: PUNO | D150: PUNO | E150: 210101 | F150: 1 | G150: 1 | H150: 100 | I150: 0 | J150: 0 | K150: 0 | L150: 1 | M150: 0 | N150: 0 | O150: 1 | P150: 0 | Q150: 0 | R150: 1 | S150: 0 | T150: 0 | U150: 0 | V150: 0 | W150: 0 | X150: 0
B151: SAN MARTIN | C151: MOYOBAMBA | D151: MOYOBAMBA | E151: 220101 | F151: 1 | G151: 0 | H151: 0 | I151: 1 | J151: 0 | K151: 0 | L151: 1 | M151: 0 | N151: 0 | O151: 1 | P151: 0 | Q151: 0 | R151: 0 | S151: 0 | T151: 0 | U151: 0 | V151: 0 | W151: 1 | X151: 100
C152: SAN MARTIN | D152: TARAPOTO | E152: 220901 | F152: 1 | G152: 0 | H152: 0 | I152: 1 | J152: 0 | K152: 0 | L152: 1 | M152: 0 | N152: 0 | O152: 1 | P152: 0 | Q152: 0 | R152: 1 | S152: 0 | T152: 0 | U152: 0 | V152: 0 | W152: 0 | X152: 0
B153: TACNA | C153: JORGE BASADRE | D153: ITE | E153: 230303 | F153: 1 | G153: 0 | H153: 0 | I153: 1 | J153: 0 | K153: 0 | L153: 1 | M153: 0 | N153: 0 | O153: 1 | P153: 0 | Q153: 0 | R153: 1 | S153: 0 | T153: 0 | U153: 0 | V153: 0 | W153: 0 | X153: 0
C154: TACNA | D154: ALTO DE LA ALIANZA | E154: 230102 | F154: 1 | G154: 0 | H154: 0 | I154: 1 | J154: 0 | K154: 0 | L154: 1 | M154: 0 | N154: 0 | O154: 1 | P154: 0 | Q154: 0 | R154: 1 | S154: 0 | T154: 0 | U154: 0 | V154: 0 | W154: 0 | X154: 0
D155: CORONEL GREGORIO ALBARRACIN L. | E155: 230110 | F155: 3 | G155: 0 | H155: 0 | I155: 3 | J155: 1 | K155: 33.33333333 | L155: 3 | M155: 0 | N155: 0 | O155: 3 | P155: 1 | Q155: 33.33333333 | R155: 2 | S155: 0 | T155: 0 | U155: 0 | V155: 0 | W155: 0 | X155: 0
D156: LA YARADA LOS PALOS | E156: 230111 | F156: 1 | G156: 0 | H156: 0 | I156: 1 | J156: 0 | K156: 0 | L156: 1 | M156: 0 | N156: 0 | O156: 1 | P156: 0 | Q156: 0 | R156: 1 | S156: 0 | T156: 0 | U156: 0 | V156: 0 | W156: 0 | X156: 0
D157: TACNA | E157: 230101 | F157: 2 | G157: 0 | H157: 0 | I157: 2 | J157: 1 | K157: 50 | L157: 2 | M157: 0 | N157: 0 | O157: 2 | P157: 0 | Q157: 0 | R157: 2 | S157: 0 | T157: 0 | U157: 0 | V157: 0 | W157: 0 | X157: 0
B158: TUMBES | C158: CONTRALMIRANTE VILLAR | D158: CANOAS DE PUNTA SAL | E158: 240203 | F158: 1 | G158: 1 | H158: 100 | I158: 0 | J158: 0 | K158: 0 | L158: 1 | M158: 0 | N158: 0 | O158: 1 | P158: 0 | Q158: 0 | R158: 1 | S158: 0 | T158: 0 | U158: 0 | V158: 0 | W158: 0 | X158: 0
D159: ZORRITOS | E159: 240201 | F159: 10 | G159: 0 | H159: 0 | I159: 10 | J159: 4 | K159: 40 | L159: 10 | M159: 2 | N159: 20 | O159: 10 | P159: 1 | Q159: 10 | R159: 9 | S159: 3 | T159: 33.33333333 | U159: 0 | V159: 0 | W159: 0 | X159: 0
C160: TUMBES | D160: CORRALES | E160: 240102 | F160: 3 | G160: 1 | H160: 33.33333333 | I160: 2 | J160: 1 | K160: 50 | L160: 3 | M160: 1 | N160: 33.33333333 | O160: 3 | P160: 0 | Q160: 0 | R160: 3 | S160: 1 | T160: 33.33333333 | U160: 0 | V160: 0 | W160: 0 | X160: 0
D161: LA CRUZ | E161: 240103 | F161: 3 | G161: 0 | H161: 0 | I161: 3 | J161: 0 | K161: 0 | L161: 3 | M161: 0 | N161: 0 | O161: 3 | P161: 1 | Q161: 33.33333333 | R161: 2 | S161: 0 | T161: 0 | U161: 0 | V161: 0 | W161: 0 | X161: 0
D162: PAMPAS DE HOSPITAL | E162: 240104 | F162: 2 | G162: 2 | H162: 100 | I162: 0 | J162: 0 | K162: 0 | L162: 2 | M162: 0 | N162: 0 | O162: 2 | P162: 0 | Q162: 0 | R162: 2 | S162: 0 | T162: 0 | U162: 0 | V162: 0 | W162: 0 | X162: 0
D163: SAN JACINTO | E163: 240105 | F163: 3 | G163: 0 | H163: 0 | I163: 3 | J163: 0 | K163: 0 | L163: 3 | M163: 0 | N163: 0 | O163: 3 | P163: 0 | Q163: 0 | R163: 3 | S163: 0 | T163: 0 | U163: 0 | V163: 0 | W163: 0 | X163: 0
D164: TUMBES | E164: 240101 | F164: 38 | G164: 7 | H164: 18.42105263 | I164: 31 | J164: 8 | K164: 25.80645161 | L164: 38 | M164: 0 | N164: 0 | O164: 38 | P164: 3 | Q164: 7.894736842 | R164: 30 | S164: 5 | T164: 16.66666667 | U164: 4 | V164: 10.52631579 | W164: 1 | X164: 2.631578947
C165: ZARUMILLA | D165: PAPAYAL | E165: 240304 | F165: 3 | G165: 0 | H165: 0 | I165: 3 | J165: 0 | K165: 0 | L165: 3 | M165: 0 | N165: 0 | O165: 3 | P165: 0 | Q165: 0 | R165: 3 | S165: 0 | T165: 0 | U165: 0 | V165: 0 | W165: 0 | X165: 0
D166: ZARUMILLA | E166: 240301 | F166: 7 | G166: 2 | H166: 28.57142857 | I166: 5 | J166: 2 | K166: 40 | L166: 7 | M166: 0 | N166: 0 | O166: 7 | P166: 0 | Q166: 0 | R166: 7 | S166: 1 | T166: 14.28571429 | U166: 0 | V166: 0 | W166: 0 | X166: 0
B167: UCAYALI | C167: CORONEL PORTILLO | D167: CAMPOVERDE | E167: 250102 | F167: 1 | G167: 0 | H167: 0 | I167: 1 | J167: 1 | K167: 100 | L167: 1 | M167: 0 | N167: 0 | O167: 1 | P167: 0 | Q167: 0 | R167: 1 | S167: 0 | T167: 0 | U167: 0 | V167: 0 | W167: 0 | X167: 0
B168: PERÚ | F168: =SUM(F8:F167) -> 1164 | G168: =SUM(G8:G167) -> 139 | H168: =G168/F168*100 -> 11.94158076 | I168: =SUM(I8:I167) -> 1025 | J168: =SUM(J8:J167) -> 235 | K168: =J168/I168*100 -> 22.92682927 | L168: =SUM(L8:L167) -> 1164 | M168: =SUM(M8:M167) -> 35 | N168: =M168/L168*100 -> 3.006872852 | O168: =SUM(O8:O167) -> 1164 | P168: =SUM(P8:P167) -> 55 | Q168: =P168/O168*100 -> 4.725085911 | R168: =SUM(R8:R167) -> 985 | S168: =SUM(S8:S167) -> 102 | T168: =S168/R168*100 -> 10.35532995 | U168: =SUM(U8:U167) -> 91 | V168: =U168/O168*100 -> 7.817869416 | W168: =SUM(W8:W167) -> 33 | X168: =W168/O168*100 -> 2.835051546
B169: Fuente: Sistema de Información SIEN - HIS, 2021.
B170: Instituto Nacional de Salud / Centro Nacional de Alimentación y Nutrición / Dirección Ejecutiva de Vigilancia Alimentaria y Nutricional.
B171: 1,2,3 Indicadores Nitricionales según OMS.
B172: 4 Riesgo de Desnutrición Crónica (T/E)se considera a todo niño que se encuentra con valor -2 <= Z < -1

Sheet EN 0-59m x DEP
B2: CUADRO N°04 PERÚ: ESTADO NUTRICIONAL EN NIÑOS EXTRANJEROS MENORES DE 5 AÑOS QUE ACCEDIERON A LOS ESTABLECIMIENTOS DE SALUD POR INDICADORES ANTROPOMÉTRICOS, SEGÚN DEPARTAMENTO DEL ESTABLECIMIENTO DE SALUD
B3: =INICIO!C$8 -> PERIODO: ENERO - DICIEMBRE 2021
B5: DEPARTAMENTO | C5: INDICADOR TALLA / EDAD1 | I5: INDICADOR PESO / EDAD2 | L5: INDICADOR PESO / TALLA3
C6: N° DE EVALUADOS | D6: DESNUTRICIÓN CRÓNICA | F6: N° DE EVALUADOS | G6: RIESGO DE D. CRÓNICA4 | I6: N° DE EVALUADOS | J6: DESNUTRICIÓN GLOBAL | L6: N° DE EVALUADOS | M6: DESNUTRICIÓN AGUDA | O6: N° DE EVALUADOS | P6: RIESGO DE D. AGUDA | R6: SOBREPESO | T6: OBESIDAD
D7: N° DE CASOS | E7: % | G7: N° DE CASOS | H7: % | J7: N° DE CASOS | K7: % | M7: N° DE CASOS | N7: % | P7: N° DE CASOS | Q7: % | R7: N° DE CASOS | S7: % | T7: N° DE CASOS | U7: %
B8: AMAZONAS | C8: 4 | D8: 1 | E8: 25 | F8: 3 | G8: 1 | H8: 33.33333333 | I8: 4 | J8: 0 | K8: 0 | L8: 4 | M8: 0 | N8: 0 | O8: 4 | P8: 0 | Q8: 0 | R8: 0 | S8: 0 | T8: 0 | U8: 0
B9: ANCASH | C9: 34 | D9: 4 | E9: 11.76470588 | F9: 30 | G9: 4 | H9: 13.33333333 | I9: 34 | J9: 2 | K9: 5.882352941 | L9: 34 | M9: 1 | N9: 2.941176471 | O9: 30 | P9: 4 | Q9: 13.33333333 | R9: 2 | S9: 5.882352941 | T9: 1 | U9: 2.941176471
B10: APURIMAC | C10: (SD) | D10: (SD) | E10: (SD) | F10: (SD) | G10: (SD) | H10: (SD) | I10: (SD) | J10: (SD) | K10: (SD) | L10: (SD) | M10: (SD) | N10: (SD) | O10: (SD) | P10: (SD) | Q10: (SD) | R10: (SD) | S10: (SD) | T10: (SD) | U10: (SD)
B11: AREQUIPA | C11: 76 | D11: 9 | E11: 11.84210526 | F11: 67 | G11: 22 | H11: 32.8358209 | I11: 76 | J11: 4 | K11: 5.263157895 | L11: 76 | M11: 2 | N11: 2.631578947 | O11: 67 | P11: 12 | Q11: 17.91044776 | R11: 5 | S11: 6.578947368 | T11: 2 | U11: 2.631578947
B12: AYACUCHO | C12: 6 | D12: 0 | E12: 0 | F12: 6 | G12: 2 | H12: 33.33333333 | I12: 6 | J12: 0 | K12: 0 | L12: 6 | M12: 0 | N12: 0 | O12: 6 | P12: 0 | Q12: 0 | R12: 0 | S12: 0 | T12: 0 | U12: 0
B13: CAJAMARCA | C13: 10 | D13: 1 | E13: 10 | F13: 9 | G13: 2 | H13: 22.22222222 | I13: 10 | J13: 1 | K13: 10 | L13: 10 | M13: 0 | N13: 0 | O13: 10 | P13: 2 | Q13: 20 | R13: 0 | S13: 0 | T13: 0 | U13: 0
B14: CALLAO | C14: 77 | D14: 8 | E14: 10.38961039 | F14: 69 | G14: 16 | H14: 23.1884058 | I14: 77 | J14: 1 | K14: 1.298701299 | L14: 77 | M14: 1 | N14: 1.298701299 | O14: 66 | P14: 9 | Q14: 13.63636364 | R14: 7 | S14: 9.090909091 | T14: 3 | U14: 3.896103896
B15: CUSCO | C15: 7 | D15: 1 | E15: 14.28571429 | F15: 6 | G15: 3 | H15: 50 | I15: 7 | J15: 1 | K15: 14.28571429 | L15: 7 | M15: 0 | N15: 0 | O15: 7 | P15: 2 | Q15: 28.57142857 | R15: 0 | S15: 0 | T15: 0 | U15: 0
B16: HUANCAVELICA | C16: (SD) | D16: (SD) | E16: (SD) | F16: (SD) | G16: (SD) | H16: (SD) | I16: (SD) | J16: (SD) | K16: (SD) | L16: (SD) | M16: (SD) | N16: (SD) | O16: (SD) | P16: (SD) | Q16: (SD) | R16: (SD) | S16: (SD) | T16: (SD) | U16: (SD)
B17: HUANUCO | C17: 7 | D17: 1 | E17: 14.28571429 | F17: 6 | G17: 2 | H17: 33.33333333 | I17: 7 | J17: 0 | K17: 0 | L17: 7 | M17: 0 | N17: 0 | O17: 6 | P17: 1 | Q17: 16.66666667 | R17: 1 | S17: 14.28571429 | T17: 0 | U17: 0
B18: ICA | C18: 136 | D18: 9 | E18: 6.617647059 | F18: 127 | G18: 25 | H18: 19.68503937 | I18: 136 | J18: 1 | K18: 0.7352941176 | L18: 136 | M18: 1 | N18: 0.7352941176 | O18: 127 | P18: 15 | Q18: 11.81102362 | R18: 3 | S18: 2.205882353 | T18: 5 | U18: 3.676470588
B19: JUNIN | C19: 2 | D19: 1 | E19: 50 | F19: 1 | G19: 0 | H19: 0 | I19: 2 | J19: 0 | K19: 0 | L19: 2 | M19: 0 | N19: 0 | O19: 2 | P19: 0 | Q19: 0 | R19: 0 | S19: 0 | T19: 0 | U19: 0
B20: LA LIBERTAD | C20: 127 | D20: 21 | E20: 16.53543307 | F20: 106 | G20: 26 | H20: 24.52830189 | I20: 127 | J20: 8 | K20: 6.299212598 | L20: 127 | M20: 5 | N20: 3.937007874 | O20: 109 | P20: 11 | Q20: 10.09174312 | R20: 9 | S20: 7.086614173 | T20: 4 | U20: 3.149606299
B21: LAMBAYEQUE | C21: 13 | D21: 2 | E21: 15.38461538 | F21: 11 | G21: 3 | H21: 27.27272727 | I21: 13 | J21: 0 | K21: 0 | L21: 13 | M21: 0 | N21: 0 | O21: 13 | P21: 0 | Q21: 0 | R21: 0 | S21: 0 | T21: 0 | U21: 0
B22: LIMA | C22: 1712 | D22: 176 | E22: 10.28037383 | F22: 1536 | G22: 341 | H22: 22.20052083 | I22: 1712 | J22: 53 | K22: 3.095794393 | L22: 1712 | M22: 89 | N22: 5.198598131 | O22: 1458 | P22: 187 | Q22: 12.82578875 | R22: 120 | S22: 7.009345794 | T22: 45 | U22: 2.628504673
B23: LORETO | C23: 1 | D23: 0 | E23: 0 | F23: 1 | G23: 1 | H23: 100 | I23: 1 | J23: 0 | K23: 0 | L23: 1 | M23: 0 | N23: 0 | O23: 1 | P23: 0 | Q23: 0 | R23: 0 | S23: 0 | T23: 0 | U23: 0
B24: MADRE DE DIOS | C24: 1 | D24: 0 | E24: 0 | F24: 1 | G24: 0 | H24: 0 | I24: 1 | J24: 0 | K24: 0 | L24: 1 | M24: 0 | N24: 0 | O24: 1 | P24: 0 | Q24: 0 | R24: 0 | S24: 0 | T24: 0 | U24: 0
B25: MOQUEGUA | C25: 26 | D25: 2 | E25: 7.692307692 | F25: 24 | G25: 2 | H25: 8.333333333 | I25: 26 | J25: 1 | K25: 3.846153846 | L25: 26 | M25: 4 | N25: 15.38461538 | O25: 21 | P25: 2 | Q25: 9.523809524 | R25: 1 | S25: 3.846153846 | T25: 0 | U25: 0
B26: PASCO | C26: (SD) | D26: (SD) | E26: (SD) | F26: (SD) | G26: (SD) | H26: (SD) | I26: (SD) | J26: (SD) | K26: (SD) | L26: (SD) | M26: (SD) | N26: (SD) | O26: (SD) | P26: (SD) | Q26: (SD) | R26: (SD) | S26: (SD) | T26: (SD) | U26: (SD)
B27: PIURA | C27: 95 | D27: 8 | E27: 8.421052632 | F27: 87 | G27: 22 | H27: 25.28735632 | I27: 95 | J27: 5 | K27: 5.263157895 | L27: 95 | M27: 5 | N27: 5.263157895 | O27: 84 | P27: 5 | Q27: 5.952380952 | R27: 3 | S27: 3.157894737 | T27: 3 | U27: 3.157894737
B28: PUNO | C28: 2 | D28: 1 | E28: 50 | F28: 1 | G28: 0 | H28: 0 | I28: 2 | J28: 0 | K28: 0 | L28: 2 | M28: 0 | N28: 0 | O28: 2 | P28: 0 | Q28: 0 | R28: 0 | S28: 0 | T28: 0 | U28: 0
B29: SAN MARTIN | C29: 11 | D29: 1 | E29: 9.090909091 | F29: 10 | G29: 4 | H29: 40 | I29: 11 | J29: 0 | K29: 0 | L29: 11 | M29: 0 | N29: 0 | O29: 10 | P29: 2 | Q29: 20 | R29: 0 | S29: 0 | T29: 1 | U29: 9.090909091
B30: TACNA | C30: 19 | D30: 0 | E30: 0 | F30: 19 | G30: 3 | H30: 15.78947368 | I30: 19 | J30: 0 | K30: 0 | L30: 19 | M30: 1 | N30: 5.263157895 | O30: 16 | P30: 0 | Q30: 0 | R30: 1 | S30: 5.263157895 | T30: 1 | U30: 5.263157895
B31: TUMBES | C31: 109 | D31: 17 | E31: 15.59633028 | F31: 92 | G31: 24 | H31: 26.08695652 | I31: 109 | J31: 6 | K31: 5.504587156 | L31: 109 | M31: 7 | N31: 6.422018349 | O31: 93 | P31: 16 | Q31: 17.20430108 | R31: 6 | S31: 5.504587156 | T31: 3 | U31: 2.752293578
B32: UCAYALI | C32: 1 | D32: 0 | E32: 0 | F32: 1 | G32: 1 | H32: 100 | I32: 1 | J32: 0 | K32: 0 | L32: 1 | M32: 0 | N32: 0 | O32: 1 | P32: 0 | Q32: 0 | R32: 0 | S32: 0 | T32: 0 | U32: 0
B33: PERÚ | C33: =SUM(C8:C32) -> 2476 | D33: =SUM(D8:D32) -> 263 | E33: =D33/C33*100 -> 10.62197092 | F33: =SUM(F8:F32) -> 2213 | G33: =SUM(G8:G32) -> 504 | H33: =G33/F33*100 -> 22.77451423 | I33: =SUM(I8:I32) -> 2476 | J33: =SUM(J8:J32) -> 83 | K33: =J33/I33*100 -> 3.352180937 | L33: =SUM(L8:L32) -> 2476 | M33: =SUM(M8:M32) -> 116 | N33: =M33/L33*100 -> 4.684975767 | O33: =SUM(O8:O32) -> 2134 | P33: =SUM(P8:P32) -> 268 | Q33: =P33/O33*100 -> 12.55857545 | R33: =SUM(R8:R32) -> 158 | S33: =R33/L33*100 -> 6.381260097 | T33: =SUM(T8:T32) -> 68 | U33: =T33/L33*100 -> 2.746365105
B34: Fuente: Sistema de Información SIEN - HIS, 2021.
B35: Instituto Nacional de Salud / Centro Nacional de Alimentación y Nutrición / Dirección Ejecutiva de Vigilancia Alimentaria y Nutricional.
B36: 1,2,3 Indicadores Nitricionales según OMS.
B37: 4 Riesgo de Desnutrición Crónica (T/E)se considera a todo niño que se encuentra con valor -2 <= Z < -1
B38: (SD) Departamentos sin registro de NIÑOS EXTRANJEROS.

Sheet EN 0-59m x DIRESA
B2: CUADRO N°05 PERÚ: ESTADO NUTRICIONAL EN NIÑOS EXTRANJEROS MENORES DE 5 AÑOS QUE ACCEDIERON A LOS ESTABLECIMIENTOS DE SALUD POR INDICADORES ANTROPOMÉTRICOS, SEGÚN DIRESA / GERESA / DIRIS
B3: =INICIO!C$8 -> PERIODO: ENERO - DICIEMBRE 2021
B5: DIRESA / GERESA / DIRIS | C5: INDICADOR TALLA / EDAD1 | I5: INDICADOR PESO / EDAD2 | L5: INDICADOR PESO / TALLA3
C6: N° DE EVALUADOS | D6: DESNUTRICIÓN CRÓNICA | F6: N° DE EVALUADOS | G6: RIESGO DE D. CRÓNICA4 | I6: N° DE EVALUADOS | J6: DESNUTRICIÓN GLOBAL | L6: N° DE EVALUADOS | M6: DESNUTRICIÓN AGUDA | O6: N° DE EVALUADOS | P6: RIESGO DE D. AGUDA | R6: SOBREPESO | T6: OBESIDAD
D7: N° DE CASOS | E7: % | G7: N° DE CASOS | H7: % | J7: N° DE CASOS | K7: % | M7: N° DE CASOS | N7: % | P7: N° DE CASOS | Q7: % | R7: N° DE CASOS | S7: % | T7: N° DE CASOS | U7: %
B8: AMAZONAS | C8: 4 | D8: 1 | E8: 25 | F8: 3 | G8: 1 | H8: 33.33333333 | I8: 4 | J8: 0 | K8: 0 | L8: 4 | M8: 0 | N8: 0 | O8: 4 | P8: 0 | Q8: 0 | R8: 0 | S8: 0 | T8: 0 | U8: 0
B9: ANCASH | C9: 34 | D9: 4 | E9: 11.76470588 | F9: 30 | G9: 4 | H9: 13.33333333 | I9: 34 | J9: 2 | K9: 5.882352941 | L9: 34 | M9: 1 | N9: 2.941176471 | O9: 30 | P9: 4 | Q9: 13.33333333 | R9: 2 | S9: 5.882352941 | T9: 1 | U9: 2.941176471
B10: APURIMAC | C10: (SD) | D10: (SD) | E10: (SD) | F10: (SD) | G10: (SD) | H10: (SD) | I10: (SD) | J10: (SD) | K10: (SD) | L10: (SD) | M10: (SD) | N10: (SD) | O10: (SD) | P10: (SD) | Q10: (SD) | R10: (SD) | S10: (SD) | T10: (SD) | U10: (SD)
B11: AREQUIPA | C11: 76 | D11: 9 | E11: 11.84210526 | F11: 67 | G11: 22 | H11: 32.8358209 | I11: 76 | J11: 4 | K11: 5.263157895 | L11: 76 | M11: 2 | N11: 2.631578947 | O11: 67 | P11: 12 | Q11: 17.91044776 | R11: 5 | S11: 6.578947368 | T11: 2 | U11: 2.631578947
B12: AYACUCHO | C12: 6 | D12: 0 | E12: 0 | F12: 6 | G12: 2 | H12: 33.33333333 | I12: 6 | J12: 0 | K12: 0 | L12: 6 | M12: 0 | N12: 0 | O12: 6 | P12: 0 | Q12: 0 | R12: 0 | S12: 0 | T12: 0 | U12: 0
B13: CAJAMARCA | C13: 10 | D13: 1 | E13: 10 | F13: 9 | G13: 2 | H13: 22.22222222 | I13: 10 | J13: 1 | K13: 10 | L13: 10 | M13: 0 | N13: 0 | O13: 10 | P13: 2 | Q13: 20 | R13: 0 | S13: 0 | T13: 0 | U13: 0
B14: CALLAO | C14: 77 | D14: 8 | E14: 10.38961039 | F14: 69 | G14: 16 | H14: 23.1884058 | I14: 77 | J14: 1 | K14: 1.298701299 | L14: 77 | M14: 1 | N14: 1.298701299 | O14: 66 | P14: 9 | Q14: 13.63636364 | R14: 7 | S14: 9.090909091 | T14: 3 | U14: 3.896103896
B15: CUSCO | C15: 7 | D15: 1 | E15: 14.28571429 | F15: 6 | G15: 3 | H15: 50 | I15: 7 | J15: 1 | K15: 14.28571429 | L15: 7 | M15: 0 | N15: 0 | O15: 7 | P15: 2 | Q15: 28.57142857 | R15: 0 | S15: 0 | T15: 0 | U15: 0
B16: HUANCAVELICA | C16: (SD) | D16: (SD) | E16: (SD) | F16: (SD) | G16: (SD) | H16: (SD) | I16: (SD) | J16: (SD) | K16: (SD) | L16: (SD) | M16: (SD) | N16: (SD) | O16: (SD) | P16: (SD) | Q16: (SD) | R16: (SD) | S16: (SD) | T16: (SD) | U16: (SD)
B17: HUANUCO | C17: 7 | D17: 1 | E17: 14.28571429 | F17: 6 | G17: 2 | H17: 33.33333333 | I17: 7 | J17: 0 | K17: 0 | L17: 7 | M17: 0 | N17: 0 | O17: 6 | P17: 1 | Q17: 16.66666667 | R17: 1 | S17: 14.28571429 | T17: 0 | U17: 0
B18: ICA | C18: 136 | D18: 9 | E18: 6.617647059 | F18: 127 | G18: 25 | H18: 19.68503937 | I18: 136 | J18: 1 | K18: 0.7352941176 | L18: 136 | M18: 1 | N18: 0.7352941176 | O18: 127 | P18: 15 | Q18: 11.81102362 | R18: 3 | S18: 2.205882353 | T18: 5 | U18: 3.676470588
B19: JUNIN | C19: 2 | D19: 1 | E19: 50 | F19: 1 | G19: 0 | H19: 0 | I19: 2 | J19: 0 | K19: 0 | L19: 2 | M19: 0 | N19: 0 | O19: 2 | P19: 0 | Q19: 0 | R19: 0 | S19: 0 | T19: 0 | U19: 0
B20: LA LIBERTAD | C20: 127 | D20: 21 | E20: 16.53543307 | F20: 106 | G20: 26 | H20: 24.52830189 | I20: 127 | J20: 8 | K20: 6.299212598 | L20: 127 | M20: 5 | N20: 3.937007874 | O20: 109 | P20: 11 | Q20: 10.09174312 | R20: 9 | S20: 7.086614173 | T20: 4 | U20: 3.149606299
B21: LAMBAYEQUE | C21: 13 | D21: 2 | E21: 15.38461538 | F21: 11 | G21: 3 | H21: 27.27272727 | I21: 13 | J21: 0 | K21: 0 | L21: 13 | M21: 0 | N21: 0 | O21: 13 | P21: 0 | Q21: 0 | R21: 0 | S21: 0 | T21: 0 | U21: 0
B22: LIMA | C22: 147 | D22: 14 | E22: 9.523809524 | F22: 133 | G22: 33 | H22: 24.81203008 | I22: 147 | J22: 4 | K22: 2.721088435 | L22: 147 | M22: 4 | N22: 2.721088435 | O22: 131 | P22: 22 | Q22: 16.79389313 | R22: 7 | S22: 4.761904762 | T22: 5 | U22: 3.401360544
B23: LIMA DIRIS CENTRO | C23: 379 | D23: 34 | E23: 8.970976253 | F23: 345 | G23: 80 | H23: 23.1884058 | I23: 379 | J23: 10 | K23: 2.638522427 | L23: 379 | M23: 14 | N23: 3.693931398 | O23: 341 | P23: 38 | Q23: 11.14369501 | R23: 20 | S23: 5.277044855 | T23: 4 | U23: 1.055408971
B24: LIMA DIRIS ESTE | C24: 356 | D24: 29 | E24: 8.146067416 | F24: 327 | G24: 74 | H24: 22.62996942 | I24: 356 | J24: 10 | K24: 2.808988764 | L24: 356 | M24: 24 | N24: 6.741573034 | O24: 294 | P24: 36 | Q24: 12.24489796 | R24: 26 | S24: 7.303370787 | T24: 12 | U24: 3.370786517
B25: LIMA DIRIS NORTE | C25: 580 | D25: 77 | E25: 13.27586207 | F25: 503 | G25: 108 | H25: 21.47117296 | I25: 580 | J25: 20 | K25: 3.448275862 | L25: 580 | M25: 34 | N25: 5.862068966 | O25: 475 | P25: 62 | Q25: 13.05263158 | R25: 51 | S25: 8.793103448 | T25: 20 | U25: 3.448275862
B26: LIMA DIRIS SUR | C26: 250 | D26: 22 | E26: 8.8 | F26: 228 | G26: 46 | H26: 20.1754386 | I26: 250 | J26: 9 | K26: 3.6 | L26: 250 | M26: 13 | N26: 5.2 | O26: 217 | P26: 29 | Q26: 13.3640553 | R26: 16 | S26: 6.4 | T26: 4 | U26: 1.6
B27: LORETO | C27: 1 | D27: 0 | E27: 0 | F27: 1 | G27: 1 | H27: 100 | I27: 1 | J27: 0 | K27: 0 | L27: 1 | M27: 0 | N27: 0 | O27: 1 | P27: 0 | Q27: 0 | R27: 0 | S27: 0 | T27: 0 | U27: 0
B28: MADRE DE DIOS | C28: 1 | D28: 0 | E28: 0 | F28: 1 | G28: 0 | H28: 0 | I28: 1 | J28: 0 | K28: 0 | L28: 1 | M28: 0 | N28: 0 | O28: 1 | P28: 0 | Q28: 0 | R28: 0 | S28: 0 | T28: 0 | U28: 0
B29: MOQUEGUA | C29: 26 | D29: 2 | E29: 7.692307692 | F29: 24 | G29: 2 | H29: 8.333333333 | I29: 26 | J29: 1 | K29: 3.846153846 | L29: 26 | M29: 4 | N29: 15.38461538 | O29: 21 | P29: 2 | Q29: 9.523809524 | R29: 1 | S29: 3.846153846 | T29: 0 | U29: 0
B30: PASCO | C30: (SD) | D30: (SD) | E30: (SD) | F30: (SD) | G30: (SD) | H30: (SD) | I30: (SD) | J30: (SD) | K30: (SD) | L30: (SD) | M30: (SD) | N30: (SD) | O30: (SD) | P30: (SD) | Q30: (SD) | R30: (SD) | S30: (SD) | T30: (SD) | U30: (SD)
B31: PIURA | C31: 95 | D31: 8 | E31: 8.421052632 | F31: 87 | G31: 22 | H31: 25.28735632 | I31: 95 | J31: 5 | K31: 5.263157895 | L31: 95 | M31: 5 | N31: 5.263157895 | O31: 84 | P31: 5 | Q31: 5.952380952 | R31: 3 | S31: 3.157894737 | T31: 3 | U31: 3.157894737
B32: PUNO | C32: 2 | D32: 1 | E32: 50 | F32: 1 | G32: 0 | H32: 0 | I32: 2 | J32: 0 | K32: 0 | L32: 2 | M32: 0 | N32: 0 | O32: 2 | P32: 0 | Q32: 0 | R32: 0 | S32: 0 | T32: 0 | U32: 0
B33: SAN MARTIN | C33: 11 | D33: 1 | E33: 9.090909091 | F33: 10 | G33: 4 | H33: 40 | I33: 11 | J33: 0 | K33: 0 | L33: 11 | M33: 0 | N33: 0 | O33: 10 | P33: 2 | Q33: 20 | R33: 0 | S33: 0 | T33: 1 | U33: 9.090909091
B34: TACNA | C34: 19 | D34: 0 | E34: 0 | F34: 19 | G34: 3 | H34: 15.78947368 | I34: 19 | J34: 0 | K34: 0 | L34: 19 | M34: 1 | N34: 5.263157895 | O34: 16 | P34: 0 | Q34: 0 | R34: 1 | S34: 5.263157895 | T34: 1 | U34: 5.263157895
B35: TUMBES | C35: 109 | D35: 17 | E35: 15.59633028 | F35: 92 | G35: 24 | H35: 26.08695652 | I35: 109 | J35: 6 | K35: 5.504587156 | L35: 109 | M35: 7 | N35: 6.422018349 | O35: 93 | P35: 16 | Q35: 17.20430108 | R35: 6 | S35: 5.504587156 | T35: 3 | U35: 2.752293578
B36: UCAYALI | C36: 1 | D36: 0 | E36: 0 | F36: 1 | G36: 1 | H36: 100 | I36: 1 | J36: 0 | K36: 0 | L36: 1 | M36: 0 | N36: 0 | O36: 1 | P36: 0 | Q36: 0 | R36: 0 | S36: 0 | T36: 0 | U36: 0
B37: PERÚ | C37: =SUM(C8:C36) -> 2476 | D37: =SUM(D8:D36) -> 263 | E37: =D37/C37*100 -> 10.62197092 | F37: =SUM(F8:F36) -> 2213 | G37: =SUM(G8:G36) -> 504 | H37: =G37/F37*100 -> 22.77451423 | I37: =SUM(I8:I36) -> 2476 | J37: =SUM(J8:J36) -> 83 | K37: =J37/I37*100 -> 3.352180937 | L37: =SUM(L8:L36) -> 2476 | M37: =SUM(M8:M36) -> 116 | N37: =M37/L37*100 -> 4.684975767 | O37: =SUM(O8:O36) -> 2134 | P37: =SUM(P8:P36) -> 268 | Q37: =P37/O37*100 -> 12.55857545 | R37: =SUM(R8:R36) -> 158 | S37: =R37/L37*100 -> 6.381260097 | T37: =SUM(T8:T36) -> 68 | U37: =T37/L37*100 -> 2.746365105
B38: Fuente: Sistema de Información SIEN - HIS, 2021.
B39: Instituto Nacional de Salud / Centro Nacional de Alimentación y Nutrición / Dirección Ejecutiva de Vigilancia Alimentaria y Nutricional.
B40: 1,2,3 Indicadores Nitricionales según OMS.
B41: 4 Riesgo de Desnutrición Crónica (T/E)se considera a todo niño que se encuentra con valor -2 <= Z < -1
B42: (SD) Diresas sin registro de NIÑOS EXTRANJEROS.

Sheet EN 0-59m x DISTRITO
B2: CUADRO N°06 PERÚ: ESTADO NUTRICIONAL EN NIÑOS EXTRANJEROS MENORES DE 5 AÑOS QUE ACCEDIERON A LOS ESTABLECIMIENTOS DE SALUD POR INDICADORES ANTROPOMÉTRICOS, SEGÚN DEPARTAMENTO, PROVINCIA Y DISTRITO DEL ESTABLECIMIENTO DE SALUD
B3: =INICIO!C$8 -> PERIODO: ENERO - DICIEMBRE 2021
B5: DEPARTAMENTO | C5: PROVINCIA | D5: DISTRITO | E5: UBIGEO | F5: INDICADOR TALLA / EDAD1 | L5: INDICADOR PESO / EDAD2 | O5: INDICADOR PESO / TALLA3
F6: N° DE EVALUADOS | G6: DESNUTRICIÓN CRÓNICA | I6: N° DE EVALUADOS | J6: RIESGO DE D. CRÓNICA4 | L6: N° DE EVALUADOS | M6: DESNUTRICIÓN GLOBAL | O6: N° DE EVALUADOS | P6: DESNUTRICIÓN AGUDA | R6: N° DE EVALUADOS | S6: RIESGO DE D. AGUDA | U6: SOBREPESO | W6: OBESIDAD
G7: N° DE CASOS | H7: % | J7: N° DE CASOS | K7: % | M7: N° DE CASOS | N7: % | P7: N° DE CASOS | Q7: % | S7: N° DE CASOS | T7: % | U7: N° DE CASOS | V7: % | W7: N° DE CASOS | X7: %
B8: AMAZONAS | C8: BAGUA | D8: BAGUA | E8: 010201 | F8: 2 | G8: 1 | H8: 50 | I8: 1 | J8: 0 | K8: 0 | L8: 2 | M8: 0 | N8: 0 | O8: 2 | P8: 0 | Q8: 0 | R8: 2 | S8: 0 | T8: 0 | U8: 0 | V8: 0 | W8: 0 | X8: 0
D9: IMAZA | E9: 010205 | F9: 1 | G9: 0 | H9: 0 | I9: 1 | J9: 0 | K9: 0 | L9: 1 | M9: 0 | N9: 0 | O9: 1 | P9: 0 | Q9: 0 | R9: 1 | S9: 0 | T9: 0 | U9: 0 | V9: 0 | W9: 0 | X9: 0
C10: UTCUBAMBA | D10: CAJARURO | E10: 010702 | F10: 1 | G10: 0 | H10: 0 | I10: 1 | J10: 1 | K10: 100 | L10: 1 | M10: 0 | N10: 0 | O10: 1 | P10: 0 | Q10: 0 | R10: 1 | S10: 0 | T10: 0 | U10: 0 | V10: 0 | W10: 0 | X10: 0
B11: ANCASH | C11: CASMA | D11: CASMA | E11: 020801 | F11: 9 | G11: 0 | H11: 0 | I11: 9 | J11: 1 | K11: 11.11111111 | L11: 9 | M11: 0 | N11: 0 | O11: 9 | P11: 0 | Q11: 0 | R11: 7 | S11: 1 | T11: 14.28571429 | U11: 1 | V11: 11.11111111 | W11: 1 | X11: 11.11111111
C12: HUARAZ | D12: HUARAZ | E12: 020101 | F12: 1 | G12: 0 | H12: 0 | I12: 1 | J12: 0 | K12: 0 | L12: 1 | M12: 1 | N12: 100 | O12: 1 | P12: 1 | Q12: 100 | R12: 0 | S12: 0 | T12: 0 | U12: 0 | V12: 0 | W12: 0 | X12: 0
D13: INDEPENDENCIA | E13: 020105 | F13: 1 | G13: 0 | H13: 0 | I13: 1 | J13: 0 | K13: 0 | L13: 1 | M13: 0 | N13: 0 | O13: 1 | P13: 0 | Q13: 0 | R13: 1 | S13: 0 | T13: 0 | U13: 0 | V13: 0 | W13: 0 | X13: 0
C14: HUARMEY | D14: HUARMEY | E14: 021101 | F14: 3 | G14: 0 | H14: 0 | I14: 3 | J14: 1 | K14: 33.33333333 | L14: 3 | M14: 0 | N14: 0 | O14: 3 | P14: 0 | Q14: 0 | R14: 3 | S14: 0 | T14: 0 | U14: 0 | V14: 0 | W14: 0 | X14: 0
C15: HUAYLAS | D15: CARAZ | E15: 021201 | F15: 3 | G15: 0 | H15: 0 | I15: 3 | J15: 0 | K15: 0 | L15: 3 | M15: 0 | N15: 0 | O15: 3 | P15: 0 | Q15: 0 | R15: 3 | S15: 2 | T15: 66.66666667 | U15: 0 | V15: 0 | W15: 0 | X15: 0
C16: SANTA | D16: CHIMBOTE | E16: 021801 | F16: 6 | G16: 1 | H16: 16.66666667 | I16: 5 | J16: 1 | K16: 20 | L16: 6 | M16: 0 | N16: 0 | O16: 6 | P16: 0 | Q16: 0 | R16: 6 | S16: 1 | T16: 16.66666667 | U16: 0 | V16: 0 | W16: 0 | X16: 0
D17: COISHCO | E17: 021803 | F17: 1 | G17: 0 | H17: 0 | I17: 1 | J17: 1 | K17: 100 | L17: 1 | M17: 0 | N17: 0 | O17: 1 | P17: 0 | Q17: 0 | R17: 1 | S17: 0 | T17: 0 | U17: 0 | V17: 0 | W17: 0 | X17: 0
D18: NUEVO CHIMBOTE | E18: 021809 | F18: 7 | G18: 2 | H18: 28.57142857 | I18: 5 | J18: 0 | K18: 0 | L18: 7 | M18: 1 | N18: 14.28571429 | O18: 7 | P18: 0 | Q18: 0 | R18: 7 | S18: 0 | T18: 0 | U18: 0 | V18: 0 | W18: 0 | X18: 0
D19: SANTA | E19: 021808 | F19: 3 | G19: 1 | H19: 33.33333333 | I19: 2 | J19: 0 | K19: 0 | L19: 3 | M19: 0 | N19: 0 | O19: 3 | P19: 0 | Q19: 0 | R19: 2 | S19: 0 | T19: 0 | U19: 1 | V19: 33.33333333 | W19: 0 | X19: 0
B20: AREQUIPA | C20: AREQUIPA | D20: ALTO SELVA ALEGRE | E20: 040102 | F20: 6 | G20: 0 | H20: 0 | I20: 6 | J20: 1 | K20: 16.66666667 | L20: 6 | M20: 0 | N20: 0 | O20: 6 | P20: 0 | Q20: 0 | R20: 5 | S20: 0 | T20: 0 | U20: 1 | V20: 16.66666667 | W20: 0 | X20: 0
D21: AREQUIPA | E21: 040101 | F21: 3 | G21: 0 | H21: 0 | I21: 3 | J21: 1 | K21: 33.33333333 | L21: 3 | M21: 0 | N21: 0 | O21: 3 | P21: 0 | Q21: 0 | R21: 3 | S21: 0 | T21: 0 | U21: 0 | V21: 0 | W21: 0 | X21: 0
D22: CAYMA | E22: 040103 | F22: 1 | G22: 1 | H22: 100 | I22: 0 | J22: 0 | K22: 0 | L22: 1 | M22: 0 | N22: 0 | O22: 1 | P22: 0 | Q22: 0 | R22: 0 | S22: 0 | T22: 0 | U22: 1 | V22: 100 | W22: 0 | X22: 0
D23: CERRO COLORADO | E23: 040104 | F23: 10 | G23: 4 | H23: 40 | I23: 6 | J23: 1 | K23: 16.66666667 | L23: 10 | M23: 3 | N23: 30 | O23: 10 | P23: 0 | Q23: 0 | R23: 9 | S23: 3 | T23: 33.33333333 | U23: 0 | V23: 0 | W23: 1 | X23: 10
D24: CHARACATO | E24: 040105 | F24: 1 | G24: 1 | H24: 100 | I24: 0 | J24: 0 | K24: 0 | L24: 1 | M24: 0 | N24: 0 | O24: 1 | P24: 0 | Q24: 0 | R24: 0 | S24: 0 | T24: 0 | U24: 1 | V24: 100 | W24: 0 | X24: 0
D25: JACOBO HUNTER | E25: 040107 | F25: 4 | G25: 0 | H25: 0 | I25: 4 | J25: 0 | K25: 0 | L25: 4 | M25: 0 | N25: 0 | O25: 4 | P25: 0 | Q25: 0 | R25: 4 | S25: 1 | T25: 25 | U25: 0 | V25: 0 | W25: 0 | X25: 0
D26: JOSE LUIS BUSTAMANTE Y RIVERO | E26: 040129 | F26: 3 | G26: 0 | H26: 0 | I26: 3 | J26: 0 | K26: 0 | L26: 3 | M26: 0 | N26: 0 | O26: 3 | P26: 0 | Q26: 0 | R26: 2 | S26: 0 | T26: 0 | U26: 1 | V26: 33.33333333 | W26: 0 | X26: 0
D27: LA JOYA | E27: 040108 | F27: 1 | G27: 0 | H27: 0 | I27: 1 | J27: 0 | K27: 0 | L27: 1 | M27: 0 | N27: 0 | O27: 1 | P27: 0 | Q27: 0 | R27: 1 | S27: 0 | T27: 0 | U27: 0 | V27: 0 | W27: 0 | X27: 0
D28: MARIANO MELGAR | E28: 040109 | F28: 6 | G28: 0 | H28: 0 | I28: 6 | J28: 1 | K28: 16.66666667 | L28: 6 | M28: 0 | N28: 0 | O28: 6 | P28: 0 | Q28: 0 | R28: 6 | S28: 2 | T28: 33.33333333 | U28: 0 | V28: 0 | W28: 0 | X28: 0
D29: MIRAFLORES | E29: 040110 | F29: 2 | G29: 0 | H29: 0 | I29: 2 | J29: 1 | K29: 50 | L29: 2 | M29: 0 | N29: 0 | O29: 2 | P29: 0 | Q29: 0 | R29: 2 | S29: 1 | T29: 50 | U29: 0 | V29: 0 | W29: 0 | X29: 0
D30: PAUCARPATA | E30: 040112 | F30: 5 | G30: 0 | H30: 0 | I30: 5 | J30: 2 | K30: 40 | L30: 5 | M30: 0 | N30: 0 | O30: 5 | P30: 0 | Q30: 0 | R30: 5 | S30: 1 | T30: 20 | U30: 0 | V30: 0 | W30: 0 | X30: 0
D31: SABANDIA | E31: 040116 | F31: 2 | G31: 0 | H31: 0 | I31: 2 | J31: 2 | K31: 100 | L31: 2 | M31: 0 | N31: 0 | O31: 2 | P31: 0 | Q31: 0 | R31: 2 | S31: 2 | T31: 100 | U31: 0 | V31: 0 | W31: 0 | X31: 0
D32: SOCABAYA | E32: 040122 | F32: 3 | G32: 0 | H32: 0 | I32: 3 | J32: 1 | K32: 33.33333333 | L32: 3 | M32: 0 | N32: 0 | O32: 3 | P32: 0 | Q32: 0 | R32: 3 | S32: 1 | T32: 33.33333333 | U32: 0 | V32: 0 | W32: 0 | X32: 0
D33: YANAHUARA | E33: 040126 | F33: 8 | G33: 1 | H33: 12.5 | I33: 7 | J33: 4 | K33: 57.14285714 | L33: 8 | M33: 0 | N33: 0 | O33: 8 | P33: 1 | Q33: 12.5 | R33: 6 | S33: 0 | T33: 0 | U33: 0 | V33: 0 | W33: 1 | X33: 12.5
C34: CARAVELI | D34: ATICO | E34: 040303 | F34: 2 | G34: 0 | H34: 0 | I34: 2 | J34: 1 | K34: 50 | L34: 2 | M34: 0 | N34: 0 | O34: 2 | P34: 0 | Q34: 0 | R34: 2 | S34: 0 | T34: 0 | U34: 0 | V34: 0 | W34: 0 | X34: 0
D35: CARAVELI | E35: 040301 | F35: 2 | G35: 0 | H35: 0 | I35: 2 | J35: 1 | K35: 50 | L35: 2 | M35: 0 | N35: 0 | O35: 2 | P35: 0 | Q35: 0 | R35: 1 | S35: 0 | T35: 0 | U35: 1 | V35: 50 | W35: 0 | X35: 0
D36: CHALA | E36: 040307 | F36: 1 | G36: 0 | H36: 0 | I36: 1 | J36: 0 | K36: 0 | L36: 1 | M36: 0 | N36: 0 | O36: 1 | P36: 0 | Q36: 0 | R36: 1 | S36: 0 | T36: 0 | U36: 0 | V36: 0 | W36: 0 | X36: 0
D37: YAUCA | E37: 040313 | F37: 2 | G37: 0 | H37: 0 | I37: 2 | J37: 2 | K37: 100 | L37: 2 | M37: 0 | N37: 0 | O37: 2 | P37: 0 | Q37: 0 | R37: 2 | S37: 0 | T37: 0 | U37: 0 | V37: 0 | W37: 0 | X37: 0
C38: ISLAY | D38: ISLAY | E38: 040704 | F38: 3 | G38: 1 | H38: 33.33333333 | I38: 2 | J38: 1 | K38: 50 | L38: 3 | M38: 1 | N38: 33.33333333 | O38: 3 | P38: 1 | Q38: 33.33333333 | R38: 2 | S38: 0 | T38: 0 | U38: 0 | V38: 0 | W38: 0 | X38: 0
D39: MOLLENDO | E39: 040701 | F39: 8 | G39: 1 | H39: 12.5 | I39: 7 | J39: 1 | K39: 14.28571429 | L39: 8 | M39: 0 | N39: 0 | O39: 8 | P39: 0 | Q39: 0 | R39: 8 | S39: 0 | T39: 0 | U39: 0 | V39: 0 | W39: 0 | X39: 0
D40: PUNTA DE BOMBON | E40: 040706 | F40: 3 | G40: 0 | H40: 0 | I40: 3 | J40: 2 | K40: 66.66666667 | L40: 3 | M40: 0 | N40: 0 | O40: 3 | P40: 0 | Q40: 0 | R40: 3 | S40: 1 | T40: 33.33333333 | U40: 0 | V40: 0 | W40: 0 | X40: 0
B41: AYACUCHO | C41: HUAMANGA | D41: JESUS NAZARENO | E41: 050115 | F41: 1 | G41: 0 | H41: 0 | I41: 1 | J41: 0 | K41: 0 | L41: 1 | M41: 0 | N41: 0 | O41: 1 | P41: 0 | Q41: 0 | R41: 1 | S41: 0 | T41: 0 | U41: 0 | V41: 0 | W41: 0 | X41: 0
C42: HUANTA | D42: SIVIA | E42: 050407 | F42: 1 | G42: 0 | H42: 0 | I42: 1 | J42: 1 | K42: 100 | L42: 1 | M42: 0 | N42: 0 | O42: 1 | P42: 0 | Q42: 0 | R42: 1 | S42: 0 | T42: 0 | U42: 0 | V42: 0 | W42: 0 | X42: 0
C43: LA MAR | D43: ANCO | E43: 050502 | F43: 1 | G43: 0 | H43: 0 | I43: 1 | J43: 1 | K43: 100 | L43: 1 | M43: 0 | N43: 0 | O43: 1 | P43: 0 | Q43: 0 | R43: 1 | S43: 0 | T43: 0 | U43: 0 | V43: 0 | W43: 0 | X43: 0
C44: PARINACOCHAS | D44: PULLO | E44: 050705 | F44: 3 | G44: 0 | H44: 0 | I44: 3 | J44: 0 | K44: 0 | L44: 3 | M44: 0 | N44: 0 | O44: 3 | P44: 0 | Q44: 0 | R44: 3 | S44: 0 | T44: 0 | U44: 0 | V44: 0 | W44: 0 | X44: 0
B45: CAJAMARCA | C45: CAJABAMBA | D45: CAJABAMBA | E45: 060201 | F45: 1 | G45: 1 | H45: 100 | I45: 0 | J45: 0 | K45: 0 | L45: 1 | M45: 1 | N45: 100 | O45: 1 | P45: 0 | Q45: 0 | R45: 1 | S45: 1 | T45: 100 | U45: 0 | V45: 0 | W45: 0 | X45: 0
C46: CAJAMARCA | D46: CAJAMARCA | E46: 060101 | F46: 2 | G46: 0 | H46: 0 | I46: 2 | J46: 1 | K46: 50 | L46: 2 | M46: 0 | N46: 0 | O46: 2 | P46: 0 | Q46: 0 | R46: 2 | S46: 0 | T46: 0 | U46: 0 | V46: 0 | W46: 0 | X46: 0
C47: JAEN | D47: BELLAVISTA | E47: 060802 | F47: 1 | G47: 0 | H47: 0 | I47: 1 | J47: 1 | K47: 100 | L47: 1 | M47: 0 | N47: 0 | O47: 1 | P47: 0 | Q47: 0 | R47: 1 | S47: 0 | T47: 0 | U47: 0 | V47: 0 | W47: 0 | X47: 0
D48: JAEN | E48: 060801 | F48: 4 | G48: 0 | H48: 0 | I48: 4 | J48: 0 | K48: 0 | L48: 4 | M48: 0 | N48: 0 | O48: 4 | P48: 0 | Q48: 0 | R48: 4 | S48: 0 | T48: 0 | U48: 0 | V48: 0 | W48: 0 | X48: 0
C49: SAN IGNACIO | D49: SAN IGNACIO | E49: 060901 | F49: 2 | G49: 0 | H49: 0 | I49: 2 | J49: 0 | K49: 0 | L49: 2 | M49: 0 | N49: 0 | O49: 2 | P49: 0 | Q49: 0 | R49: 2 | S49: 1 | T49: 50 | U49: 0 | V49: 0 | W49: 0 | X49: 0
B50: CALLAO | C50: CALLAO | D50: CALLAO | E50: 070101 | F50: 51 | G50: 3 | H50: 5.882352941 | I50: 48 | J50: 12 | K50: 25 | L50: 51 | M50: 0 | N50: 0 | O50: 51 | P50: 1 | Q50: 1.960784314 | R50: 45 | S50: 7 | T50: 15.55555556 | U50: 4 | V50: 7.843137255 | W50: 1 | X50: 1.960784314
D51: CARMEN DE LA LEGUA-REYNOSO | E51: 070103 | F51: 3 | G51: 2 | H51: 66.66666667 | I51: 1 | J51: 0 | K51: 0 | L51: 3 | M51: 1 | N51: 33.33333333 | O51: 3 | P51: 0 | Q51: 0 | R51: 3 | S51: 1 | T51: 33.33333333 | U51: 0 | V51: 0 | W51: 0 | X51: 0
D52: LA PERLA | E52: 070104 | F52: 7 | G52: 0 | H52: 0 | I52: 7 | J52: 2 | K52: 28.57142857 | L52: 7 | M52: 0 | N52: 0 | O52: 7 | P52: 0 | Q52: 0 | R52: 6 | S52: 1 | T52: 16.66666667 | U52: 1 | V52: 14.28571429 | W52: 0 | X52: 0
D53: LA PUNTA | E53: 070105 | F53: 1 | G53: 0 | H53: 0 | I53: 1 | J53: 0 | K53: 0 | L53: 1 | M53: 0 | N53: 0 | O53: 1 | P53: 0 | Q53: 0 | R53: 0 | S53: 0 | T53: 0 | U53: 0 | V53: 0 | W53: 1 | X53: 100
D54: VENTANILLA | E54: 070106 | F54: 15 | G54: 3 | H54: 20 | I54: 12 | J54: 2 | K54: 16.66666667 | L54: 15 | M54: 0 | N54: 0 | O54: 15 | P54: 0 | Q54: 0 | R54: 12 | S54: 0 | T54: 0 | U54: 2 | V54: 13.33333333 | W54: 1 | X54: 6.666666667
B55: CUSCO | C55: CUSCO | D55: SAN JERONIMO | E55: 080104 | F55: 1 | G55: 0 | H55: 0 | I55: 1 | J55: 1 | K55: 100 | L55: 1 | M55: 1 | N55: 100 | O55: 1 | P55: 0 | Q55: 0 | R55: 1 | S55: 1 | T55: 100 | U55: 0 | V55: 0 | W55: 0 | X55: 0
D56: SAN SEBASTIAN | E56: 080105 | F56: 1 | G56: 0 | H56: 0 | I56: 1 | J56: 1 | K56: 100 | L56: 1 | M56: 0 | N56: 0 | O56: 1 | P56: 0 | Q56: 0 | R56: 1 | S56: 0 | T56: 0 | U56: 0 | V56: 0 | W56: 0 | X56: 0
D57: SANTIAGO | E57: 080106 | F57: 1 | G57: 0 | H57: 0 | I57: 1 | J57: 1 | K57: 100 | L57: 1 | M57: 0 | N57: 0 | O57: 1 | P57: 0 | Q57: 0 | R57: 1 | S57: 0 | T57: 0 | U57: 0 | V57: 0 | W57: 0 | X57: 0
D58: WANCHAQ | E58: 080108 | F58: 4 | G58: 1 | H58: 25 | I58: 3 | J58: 0 | K58: 0 | L58: 4 | M58: 0 | N58: 0 | O58: 4 | P58: 0 | Q58: 0 | R58: 4 | S58: 1 | T58: 25 | U58: 0 | V58: 0 | W58: 0 | X58: 0
B59: HUANUCO | C59: HUANUCO | D59: AMARILIS | E59: 100102 | F59: 3 | G59: 1 | H59: 33.33333333 | I59: 2 | J59: 0 | K59: 0 | L59: 3 | M59: 0 | N59: 0 | O59: 3 | P59: 0 | Q59: 0 | R59: 2 | S59: 1 | T59: 50 | U59: 1 | V59: 33.33333333 | W59: 0 | X59: 0
D60: HUANUCO | E60: 100101 | F60: 4 | G60: 0 | H60: 0 | I60: 4 | J60: 2 | K60: 50 | L60: 4 | M60: 0 | N60: 0 | O60: 4 | P60: 0 | Q60: 0 | R60: 4 | S60: 0 | T60: 0 | U60: 0 | V60: 0 | W60: 0 | X60: 0
B61: ICA | C61: CHINCHA | D61: ALTO LARAN | E61: 110202 | F61: 1 | G61: 0 | H61: 0 | I61: 1 | J61: 0 | K61: 0 | L61: 1 | M61: 0 | N61: 0 | O61: 1 | P61: 0 | Q61: 0 | R61: 1 | S61: 0 | T61: 0 | U61: 0 | V61: 0 | W61: 0 | X61: 0
D62: CHINCHA BAJA | E62: 110204 | F62: 3 | G62: 0 | H62: 0 | I62: 3 | J62: 0 | K62: 0 | L62: 3 | M62: 0 | N62: 0 | O62: 3 | P62: 0 | Q62: 0 | R62: 2 | S62: 0 | T62: 0 | U62: 0 | V62: 0 | W62: 1 | X62: 33.33333333
D63: GROCIO PRADO | E63: 110206 | F63: 12 | G63: 0 | H63: 0 | I63: 12 | J63: 3 | K63: 25 | L63: 12 | M63: 0 | N63: 0 | O63: 12 | P63: 0 | Q63: 0 | R63: 10 | S63: 0 | T63: 0 | U63: 1 | V63: 8.333333333 | W63: 1 | X63: 8.333333333
D64: PUEBLO NUEVO | E64: 110207 | F64: 13 | G64: 1 | H64: 7.692307692 | I64: 12 | J64: 3 | K64: 25 | L64: 13 | M64: 0 | N64: 0 | O64: 13 | P64: 0 | Q64: 0 | R64: 12 | S64: 3 | T64: 25 | U64: 0 | V64: 0 | W64: 1 | X64: 7.692307692
C65: ICA | D65: ICA | E65: 110101 | F65: 30 | G65: 1 | H65: 3.333333333 | I65: 29 | J65: 5 | K65: 17.24137931 | L65: 30 | M65: 0 | N65: 0 | O65: 30 | P65: 0 | Q65: 0 | R65: 28 | S65: 4 | T65: 14.28571429 | U65: 1 | V65: 3.333333333 | W65: 1 | X65: 3.333333333
D66: PARCONA | E66: 110106 | F66: 1 | G66: 1 | H66: 100 | I66: 0 | J66: 0 | K66: 0 | L66: 1 | M66: 0 | N66: 0 | O66: 1 | P66: 0 | Q66: 0 | R66: 1 | S66: 0 | T66: 0 | U66: 0 | V66: 0 | W66: 0 | X66: 0
D67: PUEBLO NUEVO | E67: 110107 | F67: 2 | G67: 0 | H67: 0 | I67: 2 | J67: 1 | K67: 50 | L67: 2 | M67: 0 | N67: 0 | O67: 2 | P67: 0 | Q67: 0 | R67: 2 | S67: 0 | T67: 0 | U67: 0 | V67: 0 | W67: 0 | X67: 0
D68: SALAS | E68: 110108 | F68: 1 | G68: 0 | H68: 0 | I68: 1 | J68: 0 | K68: 0 | L68: 1 | M68: 0 | N68: 0 | O68: 1 | P68: 0 | Q68: 0 | R68: 1 | S68: 0 | T68: 0 | U68: 0 | V68: 0 | W68: 0 | X68: 0
D69: SANTIAGO | E69: 110111 | F69: 2 | G69: 1 | H69: 50 | I69: 1 | J69: 0 | K69: 0 | L69: 2 | M69: 0 | N69: 0 | O69: 2 | P69: 0 | Q69: 0 | R69: 2 | S69: 0 | T69: 0 | U69: 0 | V69: 0 | W69: 0 | X69: 0
D70: SUBTANJALLA | E70: 110112 | F70: 15 | G70: 1 | H70: 6.666666667 | I70: 14 | J70: 3 | K70: 21.42857143 | L70: 15 | M70: 1 | N70: 6.666666667 | O70: 15 | P70: 1 | Q70: 6.666666667 | R70: 13 | S70: 1 | T70: 7.692307692 | U70: 1 | V70: 6.666666667 | W70: 0 | X70: 0
D71: TATE | E71: 110113 | F71: 2 | G71: 0 | H71: 0 | I71: 2 | J71: 0 | K71: 0 | L71: 2 | M71: 0 | N71: 0 | O71: 2 | P71: 0 | Q71: 0 | R71: 2 | S71: 1 | T71: 50 | U71: 0 | V71: 0 | W71: 0 | X71: 0
C72: NAZCA | D72: MARCONA | E72: 110304 | F72: 12 | G72: 2 | H72: 16.66666667 | I72: 10 | J72: 3 | K72: 30 | L72: 12 | M72: 0 | N72: 0 | O72: 12 | P72: 0 | Q72: 0 | R72: 11 | S72: 2 | T72: 18.18181818 | U72: 0 | V72: 0 | W72: 1 | X72: 8.333333333
D73: NAZCA | E73: 110301 | F73: 3 | G73: 1 | H73: 33.33333333 | I73: 2 | J73: 0 | K73: 0 | L73: 3 | M73: 0 | N73: 0 | O73: 3 | P73: 0 | Q73: 0 | R73: 3 | S73: 0 | T73: 0 | U73: 0 | V73: 0 | W73: 0 | X73: 0
D74: VISTA ALEGRE | E74: 110305 | F74: 1 | G74: 0 | H74: 0 | I74: 1 | J74: 0 | K74: 0 | L74: 1 | M74: 0 | N74: 0 | O74: 1 | P74: 0 | Q74: 0 | R74: 1 | S74: 0 | T74: 0 | U74: 0 | V74: 0 | W74: 0 | X74: 0
C75: PALPA | D75: PALPA | E75: 110401 | F75: 1 | G75: 0 | H75: 0 | I75: 1 | J75: 0 | K75: 0 | L75: 1 | M75: 0 | N75: 0 | O75: 1 | P75: 0 | Q75: 0 | R75: 1 | S75: 0 | T75: 0 | U75: 0 | V75: 0 | W75: 0 | X75: 0
C76: PISCO | D76: PARACAS | E76: 110505 | F76: 1 | G76: 0 | H76: 0 | I76: 1 | J76: 0 | K76: 0 | L76: 1 | M76: 0 | N76: 0 | O76: 1 | P76: 0 | Q76: 0 | R76: 1 | S76: 0 | T76: 0 | U76: 0 | V76: 0 | W76: 0 | X76: 0
D77: PISCO | E77: 110501 | F77: 3 | G77: 0 | H77: 0 | I77: 3 | J77: 0 | K77: 0 | L77: 3 | M77: 0 | N77: 0 | O77: 3 | P77: 0 | Q77: 0 | R77: 3 | S77: 0 | T77: 0 | U77: 0 | V77: 0 | W77: 0 | X77: 0
D78: SAN ANDRES | E78: 110506 | F78: 33 | G78: 1 | H78: 3.03030303 | I78: 32 | J78: 7 | K78: 21.875 | L78: 33 | M78: 0 | N78: 0 | O78: 33 | P78: 0 | Q78: 0 | R78: 33 | S78: 4 | T78: 12.12121212 | U78: 0 | V78: 0 | W78: 0 | X78: 0
B79: JUNIN | C79: CONCEPCION | D79: CONCEPCION | E79: 120201 | F79: 1 | G79: 0 | H79: 0 | I79: 1 | J79: 0 | K79: 0 | L79: 1 | M79: 0 | N79: 0 | O79: 1 | P79: 0 | Q79: 0 | R79: 1 | S79: 0 | T79: 0 | U79: 0 | V79: 0 | W79: 0 | X79: 0
C80: SATIPO | D80: PANGOA | E80: 120606 | F80: 1 | G80: 1 | H80: 100 | I80: 0 | J80: 0 | K80: 0 | L80: 1 | M80: 0 | N80: 0 | O80: 1 | P80: 0 | Q80: 0 | R80: 1 | S80: 0 | T80: 0 | U80: 0 | V80: 0 | W80: 0 | X80: 0
B81: LA LIBERTAD | C81: ASCOPE | D81: ASCOPE | E81: 130201 | F81: 1 | G81: 0 | H81: 0 | I81: 1 | J81: 0 | K81: 0 | L81: 1 | M81: 0 | N81: 0 | O81: 1 | P81: 0 | Q81: 0 | R81: 1 | S81: 0 | T81: 0 | U81: 0 | V81: 0 | W81: 0 | X81: 0
D82: CHOCOPE | E82: 130203 | F82: 1 | G82: 0 | H82: 0 | I82: 1 | J82: 0 | K82: 0 | L82: 1 | M82: 0 | N82: 0 | O82: 1 | P82: 0 | Q82: 0 | R82: 1 | S82: 0 | T82: 0 | U82: 0 | V82: 0 | W82: 0 | X82: 0
D83: MAGDALENA DE CAO | E83: 130204 | F83: 1 | G83: 0 | H83: 0 | I83: 1 | J83: 0 | K83: 0 | L83: 1 | M83: 0 | N83: 0 | O83: 1 | P83: 0 | Q83: 0 | R83: 1 | S83: 0 | T83: 0 | U83: 0 | V83: 0 | W83: 0 | X83: 0
D84: PAIJAN | E84: 130205 | F84: 17 | G84: 7 | H84: 41.17647059 | I84: 10 | J84: 1 | K84: 10 | L84: 17 | M84: 2 | N84: 11.76470588 | O84: 17 | P84: 2 | Q84: 11.76470588 | R84: 11 | S84: 1 | T84: 9.090909091 | U84: 2 | V84: 11.76470588 | W84: 2 | X84: 11.76470588
D85: RAZURI | E85: 130206 | F85: 7 | G85: 0 | H85: 0 | I85: 7 | J85: 1 | K85: 14.28571429 | L85: 7 | M85: 1 | N85: 14.28571429 | O85: 7 | P85: 0 | Q85: 0 | R85: 7 | S85: 1 | T85: 14.28571429 | U85: 0 | V85: 0 | W85: 0 | X85: 0
C86: CHEPEN | D86: CHEPEN | E86: 130401 | F86: 10 | G86: 0 | H86: 0 | I86: 10 | J86: 3 | K86: 30 | L86: 10 | M86: 1 | N86: 10 | O86: 10 | P86: 1 | Q86: 10 | R86: 9 | S86: 0 | T86: 0 | U86: 0 | V86: 0 | W86: 0 | X86: 0
D87: PACANGA | E87: 130402 | F87: 3 | G87: 0 | H87: 0 | I87: 3 | J87: 1 | K87: 33.33333333 | L87: 3 | M87: 0 | N87: 0 | O87: 3 | P87: 0 | Q87: 0 | R87: 3 | S87: 1 | T87: 33.33333333 | U87: 0 | V87: 0 | W87: 0 | X87: 0
D88: PUEBLO NUEVO | E88: 130403 | F88: 1 | G88: 0 | H88: 0 | I88: 1 | J88: 1 | K88: 100 | L88: 1 | M88: 0 | N88: 0 | O88: 1 | P88: 0 | Q88: 0 | R88: 1 | S88: 0 | T88: 0 | U88: 0 | V88: 0 | W88: 0 | X88: 0
C89: OTUZCO | D89: OTUZCO | E89: 130601 | F89: 1 | G89: 0 | H89: 0 | I89: 1 | J89: 0 | K89: 0 | L89: 1 | M89: 0 | N89: 0 | O89: 1 | P89: 0 | Q89: 0 | R89: 1 | S89: 0 | T89: 0 | U89: 0 | V89: 0 | W89: 0 | X89: 0
C90: PACASMAYO | D90: GUADALUPE | E90: 130702 | F90: 6 | G90: 1 | H90: 16.66666667 | I90: 5 | J90: 3 | K90: 60 | L90: 6 | M90: 0 | N90: 0 | O90: 6 | P90: 0 | Q90: 0 | R90: 6 | S90: 0 | T90: 0 | U90: 0 | V90: 0 | W90: 0 | X90: 0
D91: PACASMAYO | E91: 130704 | F91: 12 | G91: 0 | H91: 0 | I91: 12 | J91: 2 | K91: 16.66666667 | L91: 12 | M91: 0 | N91: 0 | O91: 12 | P91: 0 | Q91: 0 | R91: 10 | S91: 3 | T91: 30 | U91: 2 | V91: 16.66666667 | W91: 0 | X91: 0
C92: PATAZ | D92: TAYABAMBA | E92: 130801 | F92: 1 | G92: 0 | H92: 0 | I92: 1 | J92: 1 | K92: 100 | L92: 1 | M92: 0 | N92: 0 | O92: 1 | P92: 0 | Q92: 0 | R92: 1 | S92: 0 | T92: 0 | U92: 0 | V92: 0 | W92: 0 | X92: 0
C93: TRUJILLO | D93: EL PORVENIR | E93: 130102 | F93: 1 | G93: 1 | H93: 100 | I93: 0 | J93: 0 | K93: 0 | L93: 1 | M93: 0 | N93: 0 | O93: 1 | P93: 0 | Q93: 0 | R93: 1 | S93: 0 | T93: 0 | U93: 0 | V93: 0 | W93: 0 | X93: 0
D94: HUANCHACO | E94: 130104 | F94: 2 | G94: 0 | H94: 0 | I94: 2 | J94: 0 | K94: 0 | L94: 2 | M94: 0 | N94: 0 | O94: 2 | P94: 0 | Q94: 0 | R94: 2 | S94: 0 | T94: 0 | U94: 0 | V94: 0 | W94: 0 | X94: 0
D95: LA ESPERANZA | E95: 130105 | F95: 4 | G95: 0 | H95: 0 | I95: 4 | J95: 1 | K95: 25 | L95: 4 | M95: 0 | N95: 0 | O95: 4 | P95: 0 | Q95: 0 | R95: 3 | S95: 0 | T95: 0 | U95: 1 | V95: 25 | W95: 0 | X95: 0
D96: LAREDO | E96: 130106 | F96: 3 | G96: 0 | H96: 0 | I96: 3 | J96: 2 | K96: 66.66666667 | L96: 3 | M96: 1 | N96: 33.33333333 | O96: 3 | P96: 0 | Q96: 0 | R96: 3 | S96: 1 | T96: 33.33333333 | U96: 0 | V96: 0 | W96: 0 | X96: 0
D97: MOCHE | E97: 130107 | F97: 3 | G97: 0 | H97: 0 | I97: 3 | J97: 1 | K97: 33.33333333 | L97: 3 | M97: 1 | N97: 33.33333333 | O97: 3 | P97: 1 | Q97: 33.33333333 | R97: 2 | S97: 1 | T97: 50 | U97: 0 | V97: 0 | W97: 0 | X97: 0
D98: TRUJILLO | E98: 130101 | F98: 34 | G98: 10 | H98: 29.41176471 | I98: 24 | J98: 5 | K98: 20.83333333 | L98: 34 | M98: 1 | N98: 2.941176471 | O98: 34 | P98: 0 | Q98: 0 | R98: 30 | S98: 2 | T98: 6.666666667 | U98: 4 | V98: 11.76470588 | W98: 0 | X98: 0
D99: VICTOR LARCO HERRERA | E99: 130111 | F99: 1 | G99: 0 | H99: 0 | I99: 1 | J99: 1 | K99: 100 | L99: 1 | M99: 0 | N99: 0 | O99: 1 | P99: 0 | Q99: 0 | R99: 1 | S99: 0 | T99: 0 | U99: 0 | V99: 0 | W99: 0 | X99: 0
C100: VIRU | D100: CHAO | E100: 131202 | F100: 9 | G100: 2 | H100: 22.22222222 | I100: 7 | J100: 1 | K100: 14.28571429 | L100: 9 | M100: 1 | N100: 11.11111111 | O100: 9 | P100: 0 | Q100: 0 | R100: 8 | S100: 1 | T100: 12.5 | U100: 0 | V100: 0 | W100: 1 | X100: 11.11111111
D101: VIRU | E101: 131201 | F101: 9 | G101: 0 | H101: 0 | I101: 9 | J101: 2 | K101: 22.22222222 | L101: 9 | M101: 0 | N101: 0 | O101: 9 | P101: 1 | Q101: 11.11111111 | R101: 7 | S101: 0 | T101: 0 | U101: 0 | V101: 0 | W101: 1 | X101: 11.11111111
B102: LAMBAYEQUE | C102: CHICLAYO | D102: CHICLAYO | E102: 140101 | F102: 1 | G102: 0 | H102: 0 | I102: 1 | J102: 0 | K102: 0 | L102: 1 | M102: 0 | N102: 0 | O102: 1 | P102: 0 | Q102: 0 | R102: 1 | S102: 0 | T102: 0 | U102: 0 | V102: 0 | W102: 0 | X102: 0
D103: ETEN | E103: 140103 | F103: 1 | G103: 1 | H103: 100 | I103: 0 | J103: 0 | K103: 0 | L103: 1 | M103: 0 | N103: 0 | O103: 1 | P103: 0 | Q103: 0 | R103: 1 | S103: 0 | T103: 0 | U103: 0 | V103: 0 | W103: 0 | X103: 0
D104: ETEN PUERTO | E104: 140104 | F104: 1 | G104: 0 | H104: 0 | I104: 1 | J104: 1 | K104: 100 | L104: 1 | M104: 0 | N104: 0 | O104: 1 | P104: 0 | Q104: 0 | R104: 1 | S104: 0 | T104: 0 | U104: 0 | V104: 0 | W104: 0 | X104: 0
D105: JOSE LEONARDO ORTIZ | E105: 140105 | F105: 2 | G105: 0 | H105: 0 | I105: 2 | J105: 0 | K105: 0 | L105: 2 | M105: 0 | N105: 0 | O105: 2 | P105: 0 | Q105: 0 | R105: 2 | S105: 0 | T105: 0 | U105: 0 | V105: 0 | W105: 0 | X105: 0
D106: LA VICTORIA | E106: 140106 | F106: 2 | G106: 0 | H106: 0 | I106: 2 | J106: 0 | K106: 0 | L106: 2 | M106: 0 | N106: 0 | O106: 2 | P106: 0 | Q106: 0 | R106: 2 | S106: 0 | T106: 0 | U106: 0 | V106: 0 | W106: 0 | X106: 0
D107: PIMENTEL | E107: 140112 | F107: 1 | G107: 0 | H107: 0 | I107: 1 | J107: 0 | K107: 0 | L107: 1 | M107: 0 | N107: 0 | O107: 1 | P107: 0 | Q107: 0 | R107: 1 | S107: 0 | T107: 0 | U107: 0 | V107: 0 | W107: 0 | X107: 0
D108: POMALCA | E108: 140118 | F108: 1 | G108: 0 | H108: 0 | I108: 1 | J108: 1 | K108: 100 | L108: 1 | M108: 0 | N108: 0 | O108: 1 | P108: 0 | Q108: 0 | R108: 1 | S108: 0 | T108: 0 | U108: 0 | V108: 0 | W108: 0 | X108: 0
D109: REQUE | E109: 140113 | F109: 2 | G109: 1 | H109: 50 | I109: 1 | J109: 0 | K109: 0 | L109: 2 | M109: 0 | N109: 0 | O109: 2 | P109: 0 | Q109: 0 | R109: 2 | S109: 0 | T109: 0 | U109: 0 | V109: 0 | W109: 0 | X109: 0
C110: LAMBAYEQUE | D110: SAN JOSE | E110: 140311 | F110: 2 | G110: 0 | H110: 0 | I110: 2 | J110: 1 | K110: 50 | L110: 2 | M110: 0 | N110: 0 | O110: 2 | P110: 0 | Q110: 0 | R110: 2 | S110: 0 | T110: 0 | U110: 0 | V110: 0 | W110: 0 | X110: 0
B111: LIMA | C111: BARRANCA | D111: BARRANCA | E111: 150201 | F111: 5 | G111: 0 | H111: 0 | I111: 5 | J111: 1 | K111: 20 | L111: 5 | M111: 0 | N111: 0 | O111: 5 | P111: 0 | Q111: 0 | R111: 5 | S111: 1 | T111: 20 | U111: 0 | V111: 0 | W111: 0 | X111: 0
D112: SUPE | E112: 150204 | F112: 10 | G112: 0 | H112: 0 | I112: 10 | J112: 4 | K112: 40 | L112: 10 | M112: 0 | N112: 0 | O112: 10 | P112: 0 | Q112: 0 | R112: 8 | S112: 1 | T112: 12.5 | U112: 2 | V112: 20 | W112: 0 | X112: 0
D113: SUPE PUERTO | E113: 150205 | F113: 4 | G113: 1 | H113: 25 | I113: 3 | J113: 0 | K113: 0 | L113: 4 | M113: 0 | N113: 0 | O113: 4 | P113: 0 | Q113: 0 | R113: 4 | S113: 1 | T113: 25 | U113: 0 | V113: 0 | W113: 0 | X113: 0
C114: CAÑETE | D114: CHILCA | E114: 150505 | F114: 11 | G114: 0 | H114: 0 | I114: 11 | J114: 2 | K114: 18.18181818 | L114: 11 | M114: 0 | N114: 0 | O114: 11 | P114: 2 | Q114: 18.18181818 | R114: 9 | S114: 2 | T114: 22.22222222 | U114: 0 | V114: 0 | W114: 0 | X114: 0
D115: IMPERIAL | E115: 150507 | F115: 2 | G115: 0 | H115: 0 | I115: 2 | J115: 0 | K115: 0 | L115: 2 | M115: 0 | N115: 0 | O115: 2 | P115: 0 | Q115: 0 | R115: 2 | S115: 1 | T115: 50 | U115: 0 | V115: 0 | W115: 0 | X115: 0
D116: MALA | E116: 150509 | F116: 9 | G116: 0 | H116: 0 | I116: 9 | J116: 1 | K116: 11.11111111 | L116: 9 | M116: 0 | N116: 0 | O116: 9 | P116: 0 | Q116: 0 | R116: 9 | S116: 0 | T116: 0 | U116: 0 | V116: 0 | W116: 0 | X116: 0
C117: HUARAL | D117: AUCALLAMA | E117: 150604 | F117: 4 | G117: 0 | H117: 0 | I117: 4 | J117: 2 | K117: 50 | L117: 4 | M117: 0 | N117: 0 | O117: 4 | P117: 0 | Q117: 0 | R117: 4 | S117: 0 | T117: 0 | U117: 0 | V117: 0 | W117: 0 | X117: 0
D118: CHANCAY | E118: 150605 | F118: 23 | G118: 2 | H118: 8.695652174 | I118: 21 | J118: 7 | K118: 33.33333333 | L118: 23 | M118: 1 | N118: 4.347826087 | O118: 23 | P118: 0 | Q118: 0 | R118: 22 | S118: 5 | T118: 22.72727273 | U118: 0 | V118: 0 | W118: 1 | X118: 4.347826087
D119: HUARAL | E119: 150601 | F119: 11 | G119: 1 | H119: 9.090909091 | I119: 10 | J119: 3 | K119: 30 | L119: 11 | M119: 0 | N119: 0 | O119: 11 | P119: 0 | Q119: 0 | R119: 11 | S119: 2 | T119: 18.18181818 | U119: 0 | V119: 0 | W119: 0 | X119: 0
C120: HUAROCHIRI | D120: SANTA EULALIA | E120: 150728 | F120: 1 | G120: 0 | H120: 0 | I120: 1 | J120: 1 | K120: 100 | L120: 1 | M120: 0 | N120: 0 | O120: 1 | P120: 0 | Q120: 0 | R120: 1 | S120: 0 | T120: 0 | U120: 0 | V120: 0 | W120: 0 | X120: 0
C121: HUAURA | D121: HUACHO | E121: 150801 | F121: 12 | G121: 2 | H121: 16.66666667 | I121: 10 | J121: 2 | K121: 20 | L121: 12 | M121: 0 | N121: 0 | O121: 12 | P121: 0 | Q121: 0 | R121: 12 | S121: 4 | T121: 33.33333333 | U121: 0 | V121: 0 | W121: 0 | X121: 0
D122: HUALMAY | E122: 150805 | F122: 13 | G122: 1 | H122: 7.692307692 | I122: 12 | J122: 4 | K122: 33.33333333 | L122: 13 | M122: 1 | N122: 7.692307692 | O122: 13 | P122: 0 | Q122: 0 | R122: 12 | S122: 3 | T122: 25 | U122: 0 | V122: 0 | W122: 1 | X122: 7.692307692
D123: HUAURA | E123: 150806 | F123: 16 | G123: 5 | H123: 31.25 | I123: 11 | J123: 2 | K123: 18.18181818 | L123: 16 | M123: 0 | N123: 0 | O123: 16 | P123: 0 | Q123: 0 | R123: 12 | S123: 1 | T123: 8.333333333 | U123: 2 | V123: 12.5 | W123: 2 | X123: 12.5
D124: SANTA MARIA | E124: 150810 | F124: 14 | G124: 2 | H124: 14.28571429 | I124: 12 | J124: 2 | K124: 16.66666667 | L124: 14 | M124: 2 | N124: 14.28571429 | O124: 14 | P124: 2 | Q124: 14.28571429 | R124: 11 | S124: 1 | T124: 9.090909091 | U124: 1 | V124: 7.142857143 | W124: 0 | X124: 0
D125: VEGUETA | E125: 150812 | F125: 11 | G125: 0 | H125: 0 | I125: 11 | J125: 2 | K125: 18.18181818 | L125: 11 | M125: 0 | N125: 0 | O125: 11 | P125: 0 | Q125: 0 | R125: 8 | S125: 0 | T125: 0 | U125: 2 | V125: 18.18181818 | W125: 1 | X125: 9.090909091
C126: LIMA | D126: ANCON | E126: 150102 | F126: 12 | G126: 1 | H126: 8.333333333 | I126: 11 | J126: 3 | K126: 27.27272727 | L126: 12 | M126: 0 | N126: 0 | O126: 12 | P126: 0 | Q126: 0 | R126: 12 | S126: 1 | T126: 8.333333333 | U126: 0 | V126: 0 | W126: 0 | X126: 0
D127: ATE | E127: 150103 | F127: 95 | G127: 5 | H127: 5.263157895 | I127: 90 | J127: 28 | K127: 31.11111111 | L127: 95 | M127: 3 | N127: 3.157894737 | O127: 95 | P127: 3 | Q127: 3.157894737 | R127: 79 | S127: 7 | T127: 8.860759494 | U127: 11 | V127: 11.57894737 | W127: 2 | X127: 2.105263158
D128: CARABAYLLO | E128: 150106 | F128: 34 | G128: 5 | H128: 14.70588235 | I128: 29 | J128: 6 | K128: 20.68965517 | L128: 34 | M128: 1 | N128: 2.941176471 | O128: 34 | P128: 1 | Q128: 2.941176471 | R128: 31 | S128: 4 | T128: 12.90322581 | U128: 1 | V128: 2.941176471 | W128: 1 | X128: 2.941176471
D129: CHACLACAYO | E129: 150107 | F129: 3 | G129: 0 | H129: 0 | I129: 3 | J129: 1 | K129: 33.33333333 | L129: 3 | M129: 0 | N129: 0 | O129: 3 | P129: 0 | Q129: 0 | R129: 3 | S129: 1 | T129: 33.33333333 | U129: 0 | V129: 0 | W129: 0 | X129: 0
D130: CHORRILLOS | E130: 150108 | F130: 24 | G130: 2 | H130: 8.333333333 | I130: 22 | J130: 4 | K130: 18.18181818 | L130: 24 | M130: 2 | N130: 8.333333333 | O130: 24 | P130: 1 | Q130: 4.166666667 | R130: 23 | S130: 3 | T130: 13.04347826 | U130: 0 | V130: 0 | W130: 0 | X130: 0
D131: CIENEGUILLA | E131: 150109 | F131: 4 | G131: 1 | H131: 25 | I131: 3 | J131: 2 | K131: 66.66666667 | L131: 4 | M131: 0 | N131: 0 | O131: 4 | P131: 0 | Q131: 0 | R131: 4 | S131: 2 | T131: 50 | U131: 0 | V131: 0 | W131: 0 | X131: 0
D132: COMAS | E132: 150110 | F132: 120 | G132: 14 | H132: 11.66666667 | I132: 106 | J132: 19 | K132: 17.9245283 | L132: 120 | M132: 5 | N132: 4.166666667 | O132: 120 | P132: 14 | Q132: 11.66666667 | R132: 92 | S132: 18 | T132: 19.56521739 | U132: 11 | V132: 9.166666667 | W132: 3 | X132: 2.5
D133: EL AGUSTINO | E133: 150111 | F133: 15 | G133: 2 | H133: 13.33333333 | I133: 13 | J133: 3 | K133: 23.07692308 | L133: 15 | M133: 1 | N133: 6.666666667 | O133: 15 | P133: 1 | Q133: 6.666666667 | R133: 13 | S133: 3 | T133: 23.07692308 | U133: 1 | V133: 6.666666667 | W133: 0 | X133: 0
D134: INDEPENDENCIA | E134: 150112 | F134: 36 | G134: 4 | H134: 11.11111111 | I134: 32 | J134: 9 | K134: 28.125 | L134: 36 | M134: 0 | N134: 0 | O134: 36 | P134: 1 | Q134: 2.777777778 | R134: 29 | S134: 6 | T134: 20.68965517 | U134: 1 | V134: 2.777777778 | W134: 5 | X134: 13.88888889
D135: JESUS MARIA | E135: 150113 | F135: 8 | G135: 1 | H135: 12.5 | I135: 7 | J135: 2 | K135: 28.57142857 | L135: 8 | M135: 0 | N135: 0 | O135: 8 | P135: 0 | Q135: 0 | R135: 8 | S135: 1 | T135: 12.5 | U135: 0 | V135: 0 | W135: 0 | X135: 0
D136: LA MOLINA | E136: 150114 | F136: 20 | G136: 3 | H136: 15 | I136: 17 | J136: 2 | K136: 11.76470588 | L136: 20 | M136: 1 | N136: 5 | O136: 20 | P136: 1 | Q136: 5 | R136: 18 | S136: 1 | T136: 5.555555556 | U136: 0 | V136: 0 | W136: 1 | X136: 5
D137: LA VICTORIA | E137: 150115 | F137: 56 | G137: 4 | H137: 7.142857143 | I137: 52 | J137: 12 | K137: 23.07692308 | L137: 56 | M137: 1 | N137: 1.785714286 | O137: 56 | P137: 2 | Q137: 3.571428571 | R137: 51 | S137: 6 | T137: 11.76470588 | U137: 3 | V137: 5.357142857 | W137: 0 | X137: 0
D138: LIMA | E138: 150101 | F138: 116 | G138: 14 | H138: 12.06896552 | I138: 102 | J138: 22 | K138: 21.56862745 | L138: 116 | M138: 2 | N138: 1.724137931 | O138: 116 | P138: 1 | Q138: 0.8620689655 | R138: 109 | S138: 7 | T138: 6.422018349 | U138: 5 | V138: 4.310344828 | W138: 1 | X138: 0.8620689655
D139: LINCE | E139: 150116 | F139: 5 | G139: 0 | H139: 0 | I139: 5 | J139: 1 | K139: 20 | L139: 5 | M139: 0 | N139: 0 | O139: 5 | P139: 0 | Q139: 0 | R139: 5 | S139: 1 | T139: 20 | U139: 0 | V139: 0 | W139: 0 | X139: 0
D140: LOS OLIVOS | E140: 150117 | F140: 145 | G140: 20 | H140: 13.79310345 | I140: 125 | J140: 25 | K140: 20 | L140: 145 | M140: 6 | N140: 4.137931034 | O140: 145 | P140: 7 | Q140: 4.827586207 | R140: 121 | S140: 11 | T140: 9.090909091 | U140: 12 | V140: 8.275862069 | W140: 5 | X140: 3.448275862
D141: LURIGANCHO | E141: 150118 | F141: 59 | G141: 5 | H141: 8.474576271 | I141: 54 | J141: 11 | K141: 20.37037037 | L141: 59 | M141: 1 | N141: 1.694915254 | O141: 59 | P141: 1 | Q141: 1.694915254 | R141: 54 | S141: 9 | T141: 16.66666667 | U141: 3 | V141: 5.084745763 | W141: 1 | X141: 1.694915254
D142: LURIN | E142: 150119 | F142: 19 | G142: 2 | H142: 10.52631579 | I142: 17 | J142: 4 | K142: 23.52941176 | L142: 19 | M142: 0 | N142: 0 | O142: 19 | P142: 1 | Q142: 5.263157895 | R142: 17 | S142: 3 | T142: 17.64705882 | U142: 1 | V142: 5.263157895 | W142: 0 | X142: 0
D143: MAGDALENA DEL MAR | E143: 150120 | F143: 2 | G143: 0 | H143: 0 | I143: 2 | J143: 0 | K143: 0 | L143: 2 | M143: 0 | N143: 0 | O143: 2 | P143: 0 | Q143: 0 | R143: 2 | S143: 1 | T143: 50 | U143: 0 | V143: 0 | W143: 0 | X143: 0
D144: MIRAFLORES | E144: 150122 | F144: 8 | G144: 0 | H144: 0 | I144: 8 | J144: 1 | K144: 12.5 | L144: 8 | M144: 0 | N144: 0 | O144: 8 | P144: 0 | Q144: 0 | R144: 7 | S144: 1 | T144: 14.28571429 | U144: 1 | V144: 12.5 | W144: 0 | X144: 0
D145: PACHACAMAC | E145: 150123 | F145: 26 | G145: 2 | H145: 7.692307692 | I145: 24 | J145: 3 | K145: 12.5 | L145: 26 | M145: 0 | N145: 0 | O145: 26 | P145: 0 | Q145: 0 | R145: 22 | S145: 0 | T145: 0 | U145: 4 | V145: 15.38461538 | W145: 0 | X145: 0
D146: PUCUSANA | E146: 150124 | F146: 2 | G146: 0 | H146: 0 | I146: 2 | J146: 0 | K146: 0 | L146: 2 | M146: 0 | N146: 0 | O146: 2 | P146: 0 | Q146: 0 | R146: 2 | S146: 0 | T146: 0 | U146: 0 | V146: 0 | W146: 0 | X146: 0
D147: PUENTE PIEDRA | E147: 150125 | F147: 16 | G147: 1 | H147: 6.25 | I147: 15 | J147: 4 | K147: 26.66666667 | L147: 16 | M147: 0 | N147: 0 | O147: 16 | P147: 1 | Q147: 6.25 | R147: 11 | S147: 2 | T147: 18.18181818 | U147: 3 | V147: 18.75 | W147: 1 | X147: 6.25
D148: PUNTA NEGRA | E148: 150127 | F148: 3 | G148: 0 | H148: 0 | I148: 3 | J148: 1 | K148: 33.33333333 | L148: 3 | M148: 0 | N148: 0 | O148: 3 | P148: 0 | Q148: 0 | R148: 3 | S148: 0 | T148: 0 | U148: 0 | V148: 0 | W148: 0 | X148: 0
D149: RIMAC | E149: 150128 | F149: 39 | G149: 6 | H149: 15.38461538 | I149: 33 | J149: 7 | K149: 21.21212121 | L149: 39 | M149: 1 | N149: 2.564102564 | O149: 39 | P149: 1 | Q149: 2.564102564 | R149: 33 | S149: 8 | T149: 24.24242424 | U149: 4 | V149: 10.25641026 | W149: 1 | X149: 2.564102564
D150: SAN BARTOLO | E150: 150129 | F150: 4 | G150: 0 | H150: 0 | I150: 4 | J150: 0 | K150: 0 | L150: 4 | M150: 0 | N150: 0 | O150: 4 | P150: 0 | Q150: 0 | R150: 4 | S150: 1 | T150: 25 | U150: 0 | V150: 0 | W150: 0 | X150: 0
D151: SAN ISIDRO | E151: 150131 | F151: 6 | G151: 0 | H151: 0 | I151: 6 | J151: 2 | K151: 33.33333333 | L151: 6 | M151: 0 | N151: 0 | O151: 6 | P151: 0 | Q151: 0 | R151: 6 | S151: 1 | T151: 16.66666667 | U151: 0 | V151: 0 | W151: 0 | X151: 0
D152: SAN JUAN DE LURIGANCHO | E152: 150132 | F152: 138 | G152: 12 | H152: 8.695652174 | I152: 126 | J152: 29 | K152: 23.01587302 | L152: 138 | M152: 5 | N152: 3.623188406 | O152: 138 | P152: 10 | Q152: 7.246376812 | R152: 115 | S152: 16 | T152: 13.91304348 | U152: 11 | V152: 7.971014493 | W152: 2 | X152: 1.449275362
D153: SAN JUAN DE MIRAFLORES | E153: 150133 | F153: 69 | G153: 6 | H153: 8.695652174 | I153: 63 | J153: 13 | K153: 20.63492063 | L153: 69 | M153: 3 | N153: 4.347826087 | O153: 69 | P153: 6 | Q153: 8.695652174 | R153: 58 | S153: 11 | T153: 18.96551724 | U153: 3 | V153: 4.347826087 | W153: 2 | X153: 2.898550725
D154: SAN LUIS | E154: 150134 | F154: 1 | G154: 0 | H154: 0 | I154: 1 | J154: 1 | K154: 100 | L154: 1 | M154: 0 | N154: 0 | O154: 1 | P154: 0 | Q154: 0 | R154: 1 | S154: 1 | T154: 100 | U154: 0 | V154: 0 | W154: 0 | X154: 0
D155: SAN MARTIN DE PORRES | E155: 150135 | F155: 176 | G155: 26 | H155: 14.77272727 | I155: 150 | J155: 35 | K155: 23.33333333 | L155: 176 | M155: 7 | N155: 3.977272727 | O155: 176 | P155: 9 | Q155: 5.113636364 | R155: 144 | S155: 12 | T155: 8.333333333 | U155: 19 | V155: 10.79545455 | W155: 4 | X155: 2.272727273
D156: SAN MIGUEL | E156: 150136 | F156: 17 | G156: 1 | H156: 5.882352941 | I156: 16 | J156: 3 | K156: 18.75 | L156: 17 | M156: 0 | N156: 0 | O156: 17 | P156: 0 | Q156: 0 | R156: 16 | S156: 1 | T156: 6.25 | U156: 0 | V156: 0 | W156: 1 | X156: 5.882352941
D157: SANTA ANITA | E157: 150137 | F157: 160 | G157: 13 | H157: 8.125 | I157: 147 | J157: 27 | K157: 18.36734694 | L157: 160 | M157: 4 | N157: 2.5 | O157: 160 | P157: 18 | Q157: 11.25 | R157: 123 | S157: 13 | T157: 10.56910569 | U157: 11 | V157: 6.875 | W157: 8 | X157: 5
D158: SANTA ROSA | E158: 150139 | F158: 2 | G158: 0 | H158: 0 | I158: 2 | J158: 0 | K158: 0 | L158: 2 | M158: 0 | N158: 0 | O158: 2 | P158: 0 | Q158: 0 | R158: 2 | S158: 0 | T158: 0 | U158: 0 | V158: 0 | W158: 0 | X158: 0
D159: SANTIAGO DE SURCO | E159: 150140 | F159: 42 | G159: 3 | H159: 7.142857143 | I159: 39 | J159: 7 | K159: 17.94871795 | L159: 42 | M159: 2 | N159: 4.761904762 | O159: 42 | P159: 2 | Q159: 4.761904762 | R159: 35 | S159: 5 | T159: 14.28571429 | U159: 3 | V159: 7.142857143 | W159: 2 | X159: 4.761904762
D160: SURQUILLO | E160: 150141 | F160: 22 | G160: 2 | H160: 9.090909091 | I160: 20 | J160: 7 | K160: 35 | L160: 22 | M160: 2 | N160: 9.090909091 | O160: 22 | P160: 1 | Q160: 4.545454545 | R160: 21 | S160: 2 | T160: 9.523809524 | U160: 0 | V160: 0 | W160: 0 | X160: 0
D161: VILLA EL SALVADOR | E161: 150142 | F161: 56 | G161: 6 | H161: 10.71428571 | I161: 50 | J161: 12 | K161: 24 | L161: 56 | M161: 2 | N161: 3.571428571 | O161: 56 | P161: 3 | Q161: 5.357142857 | R161: 48 | S161: 5 | T161: 10.41666667 | U161: 5 | V161: 8.928571429 | W161: 0 | X161: 0
D162: VILLA MARIA DEL TRIUNFO | E162: 150143 | F162: 5 | G162: 1 | H162: 20 | I162: 4 | J162: 2 | K162: 50 | L162: 5 | M162: 0 | N162: 0 | O162: 5 | P162: 0 | Q162: 0 | R162: 5 | S162: 1 | T162: 20 | U162: 0 | V162: 0 | W162: 0 | X162: 0
C163: OYON | D163: PACHANGARA | E163: 150906 | F163: 1 | G163: 0 | H163: 0 | I163: 1 | J163: 0 | K163: 0 | L163: 1 | M163: 0 | N163: 0 | O163: 1 | P163: 0 | Q163: 0 | R163: 1 | S163: 0 | T163: 0 | U163: 0 | V163: 0 | W163: 0 | X163: 0
B164: LORETO | C164: MAYNAS | D164: IQUITOS | E164: 160101 | F164: 1 | G164: 0 | H164: 0 | I164: 1 | J164: 1 | K164: 100 | L164: 1 | M164: 0 | N164: 0 | O164: 1 | P164: 0 | Q164: 0 | R164: 1 | S164: 0 | T164: 0 | U164: 0 | V164: 0 | W164: 0 | X164: 0
B165: MADRE DE DIOS | C165: TAHUAMANU | D165: IÑAPARI | E165: 170301 | F165: 1 | G165: 0 | H165: 0 | I165: 1 | J165: 0 | K165: 0 | L165: 1 | M165: 0 | N165: 0 | O165: 1 | P165: 0 | Q165: 0 | R165: 1 | S165: 0 | T165: 0 | U165: 0 | V165: 0 | W165: 0 | X165: 0
B166: MOQUEGUA | C166: GENERAL SANCHEZ CERRO | D166: QUINISTAQUILLAS | E166: 180209 | F166: 1 | G166: 0 | H166: 0 | I166: 1 | J166: 0 | K166: 0 | L166: 1 | M166: 0 | N166: 0 | O166: 1 | P166: 0 | Q166: 0 | R166: 1 | S166: 0 | T166: 0 | U166: 0 | V166: 0 | W166: 0 | X166: 0
C167: ILO | D167: ILO | E167: 180301 | F167: 12 | G167: 0 | H167: 0 | I167: 12 | J167: 1 | K167: 8.333333333 | L167: 12 | M167: 0 | N167: 0 | O167: 12 | P167: 3 | Q167: 25 | R167: 8 | S167: 1 | T167: 12.5 | U167: 1 | V167: 8.333333333 | W167: 0 | X167: 0
C168: MARISCAL NIETO | D168: MOQUEGUA | E168: 180101 | F168: 11 | G168: 1 | H168: 9.090909091 | I168: 10 | J168: 1 | K168: 10 | L168: 11 | M168: 0 | N168: 0 | O168: 11 | P168: 0 | Q168: 0 | R168: 11 | S168: 0 | T168: 0 | U168: 0 | V168: 0 | W168: 0 | X168: 0
D169: SAMEGUA | E169: 180104 | F169: 2 | G169: 1 | H169: 50 | I169: 1 | J169: 0 | K169: 0 | L169: 2 | M169: 1 | N169: 50 | O169: 2 | P169: 1 | Q169: 50 | R169: 1 | S169: 1 | T169: 100 | U169: 0 | V169: 0 | W169: 0 | X169: 0
B170: PIURA | C170: MORROPON | D170: CHULUCANAS | E170: 200401 | F170: 3 | G170: 0 | H170: 0 | I170: 3 | J170: 0 | K170: 0 | L170: 3 | M170: 0 | N170: 0 | O170: 3 | P170: 0 | Q170: 0 | R170: 3 | S170: 0 | T170: 0 | U170: 0 | V170: 0 | W170: 0 | X170: 0
D171: LA MATANZA | E171: 200404 | F171: 1 | G171: 0 | H171: 0 | I171: 1 | J171: 0 | K171: 0 | L171: 1 | M171: 0 | N171: 0 | O171: 1 | P171: 0 | Q171: 0 | R171: 1 | S171: 0 | T171: 0 | U171: 0 | V171: 0 | W171: 0 | X171: 0
D172: MORROPON | E172: 200405 | F172: 1 | G172: 0 | H172: 0 | I172: 1 | J172: 1 | K172: 100 | L172: 1 | M172: 0 | N172: 0 | O172: 1 | P172: 0 | Q172: 0 | R172: 1 | S172: 0 | T172: 0 | U172: 0 | V172: 0 | W172: 0 | X172: 0
C173: PAITA | D173: COLAN | E173: 200504 | F173: 2 | G173: 0 | H173: 0 | I173: 2 | J173: 1 | K173: 50 | L173: 2 | M173: 0 | N173: 0 | O173: 2 | P173: 0 | Q173: 0 | R173: 1 | S173: 0 | T173: 0 | U173: 1 | V173: 50 | W173: 0 | X173: 0
D174: PAITA | E174: 200501 | F174: 14 | G174: 2 | H174: 14.28571429 | I174: 12 | J174: 0 | K174: 0 | L174: 14 | M174: 2 | N174: 14.28571429 | O174: 14 | P174: 2 | Q174: 14.28571429 | R174: 10 | S174: 1 | T174: 10 | U174: 1 | V174: 7.142857143 | W174: 1 | X174: 7.142857143
D175: VICHAYAL | E175: 200507 | F175: 4 | G175: 0 | H175: 0 | I175: 4 | J175: 0 | K175: 0 | L175: 4 | M175: 1 | N175: 25 | O175: 4 | P175: 1 | Q175: 25 | R175: 3 | S175: 0 | T175: 0 | U175: 0 | V175: 0 | W175: 0 | X175: 0
C176: PIURA | D176: CASTILLA | E176: 200104 | F176: 2 | G176: 0 | H176: 0 | I176: 2 | J176: 0 | K176: 0 | L176: 2 | M176: 0 | N176: 0 | O176: 2 | P176: 0 | Q176: 0 | R176: 1 | S176: 0 | T176: 0 | U176: 0 | V176: 0 | W176: 1 | X176: 50
D177: CATACAOS | E177: 200105 | F177: 1 | G177: 0 | H177: 0 | I177: 1 | J177: 0 | K177: 0 | L177: 1 | M177: 0 | N177: 0 | O177: 1 | P177: 0 | Q177: 0 | R177: 1 | S177: 0 | T177: 0 | U177: 0 | V177: 0 | W177: 0 | X177: 0
D178: CURA MORI | E178: 200107 | F178: 1 | G178: 0 | H178: 0 | I178: 1 | J178: 0 | K178: 0 | L178: 1 | M178: 0 | N178: 0 | O178: 1 | P178: 0 | Q178: 0 | R178: 1 | S178: 1 | T178: 100 | U178: 0 | V178: 0 | W178: 0 | X178: 0
D179: LA UNION | E179: 200110 | F179: 2 | G179: 0 | H179: 0 | I179: 2 | J179: 0 | K179: 0 | L179: 2 | M179: 0 | N179: 0 | O179: 2 | P179: 0 | Q179: 0 | R179: 2 | S179: 0 | T179: 0 | U179: 0 | V179: 0 | W179: 0 | X179: 0
D180: LAS LOMAS | E180: 200111 | F180: 1 | G180: 0 | H180: 0 | I180: 1 | J180: 0 | K180: 0 | L180: 1 | M180: 0 | N180: 0 | O180: 1 | P180: 0 | Q180: 0 | R180: 0 | S180: 0 | T180: 0 | U180: 1 | V180: 100 | W180: 0 | X180: 0
D181: PIURA | E181: 200101 | F181: 16 | G181: 3 | H181: 18.75 | I181: 13 | J181: 6 | K181: 46.15384615 | L181: 16 | M181: 1 | N181: 6.25 | O181: 16 | P181: 0 | Q181: 0 | R181: 16 | S181: 2 | T181: 12.5 | U181: 0 | V181: 0 | W181: 0 | X181: 0
D182: VEINTISEIS DE OCTUBRE | E182: 200115 | F182: 12 | G182: 0 | H182: 0 | I182: 12 | J182: 4 | K182: 33.33333333 | L182: 12 | M182: 0 | N182: 0 | O182: 12 | P182: 0 | Q182: 0 | R182: 12 | S182: 0 | T182: 0 | U182: 0 | V182: 0 | W182: 0 | X182: 0
C183: SECHURA | D183: SECHURA | E183: 200801 | F183: 11 | G183: 0 | H183: 0 | I183: 11 | J183: 6 | K183: 54.54545455 | L183: 11 | M183: 0 | N183: 0 | O183: 11 | P183: 0 | Q183: 0 | R183: 11 | S183: 1 | T183: 9.090909091 | U183: 0 | V183: 0 | W183: 0 | X183: 0
C184: SULLANA | D184: MIGUEL CHECA | E184: 200606 | F184: 1 | G184: 0 | H184: 0 | I184: 1 | J184: 0 | K184: 0 | L184: 1 | M184: 0 | N184: 0 | O184: 1 | P184: 0 | Q184: 0 | R184: 1 | S184: 0 | T184: 0 | U184: 0 | V184: 0 | W184: 0 | X184: 0
D185: QUERECOTILLO | E185: 200607 | F185: 3 | G185: 1 | H185: 33.33333333 | I185: 2 | J185: 0 | K185: 0 | L185: 3 | M185: 0 | N185: 0 | O185: 3 | P185: 0 | Q185: 0 | R185: 3 | S185: 0 | T185: 0 | U185: 0 | V185: 0 | W185: 0 | X185: 0
D186: SULLANA | E186: 200601 | F186: 5 | G186: 1 | H186: 20 | I186: 4 | J186: 1 | K186: 25 | L186: 5 | M186: 1 | N186: 20 | O186: 5 | P186: 1 | Q186: 20 | R186: 4 | S186: 0 | T186: 0 | U186: 0 | V186: 0 | W186: 0 | X186: 0
C187: TALARA | D187: LOS ORGANOS | E187: 200705 | F187: 4 | G187: 0 | H187: 0 | I187: 4 | J187: 2 | K187: 50 | L187: 4 | M187: 0 | N187: 0 | O187: 4 | P187: 0 | Q187: 0 | R187: 4 | S187: 0 | T187: 0 | U187: 0 | V187: 0 | W187: 0 | X187: 0
D188: MANCORA | E188: 200706 | F188: 8 | G188: 1 | H188: 12.5 | I188: 7 | J188: 1 | K188: 14.28571429 | L188: 8 | M188: 0 | N188: 0 | O188: 8 | P188: 1 | Q188: 12.5 | R188: 6 | S188: 0 | T188: 0 | U188: 0 | V188: 0 | W188: 1 | X188: 12.5
D189: PARIÑAS | E189: 200701 | F189: 3 | G189: 0 | H189: 0 | I189: 3 | J189: 0 | K189: 0 | L189: 3 | M189: 0 | N189: 0 | O189: 3 | P189: 0 | Q189: 0 | R189: 3 | S189: 0 | T189: 0 | U189: 0 | V189: 0 | W189: 0 | X189: 0
B190: PUNO | C190: PUNO | D190: PUNO | E190: 210101 | F190: 2 | G190: 1 | H190: 50 | I190: 1 | J190: 0 | K190: 0 | L190: 2 | M190: 0 | N190: 0 | O190: 2 | P190: 0 | Q190: 0 | R190: 2 | S190: 0 | T190: 0 | U190: 0 | V190: 0 | W190: 0 | X190: 0
B191: SAN MARTIN | C191: MOYOBAMBA | D191: MOYOBAMBA | E191: 220101 | F191: 3 | G191: 1 | H191: 33.33333333 | I191: 2 | J191: 0 | K191: 0 | L191: 3 | M191: 0 | N191: 0 | O191: 3 | P191: 0 | Q191: 0 | R191: 2 | S191: 0 | T191: 0 | U191: 0 | V191: 0 | W191: 1 | X191: 33.33333333
C192: RIOJA | D192: NUEVA CAJAMARCA | E192: 220804 | F192: 3 | G192: 0 | H192: 0 | I192: 3 | J192: 3 | K192: 100 | L192: 3 | M192: 0 | N192: 0 | O192: 3 | P192: 0 | Q192: 0 | R192: 3 | S192: 0 | T192: 0 | U192: 0 | V192: 0 | W192: 0 | X192: 0
C193: SAN MARTIN | D193: SAUCE | E193: 220913 | F193: 1 | G193: 0 | H193: 0 | I193: 1 | J193: 0 | K193: 0 | L193: 1 | M193: 0 | N193: 0 | O193: 1 | P193: 0 | Q193: 0 | R193: 1 | S193: 1 | T193: 100 | U193: 0 | V193: 0 | W193: 0 | X193: 0
D194: TARAPOTO | E194: 220901 | F194: 3 | G194: 0 | H194: 0 | I194: 3 | J194: 1 | K194: 33.33333333 | L194: 3 | M194: 0 | N194: 0 | O194: 3 | P194: 0 | Q194: 0 | R194: 3 | S194: 1 | T194: 33.33333333 | U194: 0 | V194: 0 | W194: 0 | X194: 0
C195: TOCACHE | D195: TOCACHE | E195: 221001 | F195: 1 | G195: 0 | H195: 0 | I195: 1 | J195: 0 | K195: 0 | L195: 1 | M195: 0 | N195: 0 | O195: 1 | P195: 0 | Q195: 0 | R195: 1 | S195: 0 | T195: 0 | U195: 0 | V195: 0 | W195: 0 | X195: 0
B196: TACNA | C196: JORGE BASADRE | D196: ITE | E196: 230303 | F196: 1 | G196: 0 | H196: 0 | I196: 1 | J196: 0 | K196: 0 | L196: 1 | M196: 0 | N196: 0 | O196: 1 | P196: 0 | Q196: 0 | R196: 1 | S196: 0 | T196: 0 | U196: 0 | V196: 0 | W196: 0 | X196: 0
C197: TACNA | D197: ALTO DE LA ALIANZA | E197: 230102 | F197: 2 | G197: 0 | H197: 0 | I197: 2 | J197: 0 | K197: 0 | L197: 2 | M197: 0 | N197: 0 | O197: 2 | P197: 0 | Q197: 0 | R197: 2 | S197: 0 | T197: 0 | U197: 0 | V197: 0 | W197: 0 | X197: 0
D198: CORONEL GREGORIO ALBARRACIN L. | E198: 230110 | F198: 3 | G198: 0 | H198: 0 | I198: 3 | J198: 1 | K198: 33.33333333 | L198: 3 | M198: 0 | N198: 0 | O198: 3 | P198: 1 | Q198: 33.33333333 | R198: 2 | S198: 0 | T198: 0 | U198: 0 | V198: 0 | W198: 0 | X198: 0
D199: LA YARADA LOS PALOS | E199: 230111 | F199: 1 | G199: 0 | H199: 0 | I199: 1 | J199: 0 | K199: 0 | L199: 1 | M199: 0 | N199: 0 | O199: 1 | P199: 0 | Q199: 0 | R199: 1 | S199: 0 | T199: 0 | U199: 0 | V199: 0 | W199: 0 | X199: 0
D200: SAMA | E200: 230109 | F200: 4 | G200: 0 | H200: 0 | I200: 4 | J200: 0 | K200: 0 | L200: 4 | M200: 0 | N200: 0 | O200: 4 | P200: 0 | Q200: 0 | R200: 3 | S200: 0 | T200: 0 | U200: 1 | V200: 25 | W200: 0 | X200: 0
D201: TACNA | E201: 230101 | F201: 8 | G201: 0 | H201: 0 | I201: 8 | J201: 2 | K201: 25 | L201: 8 | M201: 0 | N201: 0 | O201: 8 | P201: 0 | Q201: 0 | R201: 7 | S201: 0 | T201: 0 | U201: 0 | V201: 0 | W201: 1 | X201: 12.5
B202: TUMBES | C202: CONTRALMIRANTE VILLAR | D202: CANOAS DE PUNTA SAL | E202: 240203 | F202: 1 | G202: 1 | H202: 100 | I202: 0 | J202: 0 | K202: 0 | L202: 1 | M202: 0 | N202: 0 | O202: 1 | P202: 0 | Q202: 0 | R202: 1 | S202: 0 | T202: 0 | U202: 0 | V202: 0 | W202: 0 | X202: 0
... 15 more rows

Sheet Anemia 6-35m x DEP
B2: CUADRO N°07 PERÚ: ANEMIA EN NIÑOS EXTRANJEROS ENTRE 6 A 35 MESES QUE ACCEDIERON A LOS ESTABLECIMIENTOS DE SALUD, SEGÚN DEPARTAMENTO DEL ESTABLECIMIENTO DE SALUD
B3: =INICIO!C$8 -> PERIODO: ENERO - DICIEMBRE 2021
B5: DEPARTAMENTO | C5: N° DE EVALUADOS | D5: ANEMIA TOTAL | F5: ANEMIA LEVE | H5: ANEMIA MODERADA | J5: ANEMIA SEVERA
D6: N° DE CASOS | E6: % | F6: N° DE CASOS | G6: % | H6: N° DE CASOS | I6: % | J6: N° DE CASOS | K6: %
B7: AMAZONAS | C7: 2 | D7: 1 | E7: 50 | F7: 1 | G7: 50 | H7: 0 | I7: 0 | J7: 0 | K7: 0
B8: ANCASH | C8: 23 | D8: 11 | E8: 47.82608696 | F8: 8 | G8: 34.7826087 | H8: 3 | I8: 13.04347826 | J8: 0 | K8: 0
B9: APURIMAC | C9: (SD) | D9: (SD) | E9: (SD) | F9: (SD) | G9: (SD) | H9: (SD) | I9: (SD) | J9: (SD) | K9: (SD)
B10: AREQUIPA | C10: 11 | D10: 3 | E10: 27.27272727 | F10: 1 | G10: 9.090909091 | H10: 2 | I10: 18.18181818 | J10: 0 | K10: 0
B11: AYACUCHO | C11: 1 | D11: 0 | E11: 0 | F11: 0 | G11: 0 | H11: 0 | I11: 0 | J11: 0 | K11: 0
B12: CAJAMARCA | C12: 4 | D12: 3 | E12: 75 | F12: 2 | G12: 50 | H12: 1 | I12: 25 | J12: 0 | K12: 0
B13: CALLAO | C13: 22 | D13: 9 | E13: 40.90909091 | F13: 5 | G13: 22.72727273 | H13: 4 | I13: 18.18181818 | J13: 0 | K13: 0
B14: CUSCO | C14: 2 | D14: 1 | E14: 50 | F14: 1 | G14: 50 | H14: 0 | I14: 0 | J14: 0 | K14: 0
B15: HUANCAVELICA | C15: (SD) | D15: (SD) | E15: (SD) | F15: (SD) | G15: (SD) | H15: (SD) | I15: (SD) | J15: (SD) | K15: (SD)
B16: HUANUCO | C16: (SD) | D16: (SD) | E16: (SD) | F16: (SD) | G16: (SD) | H16: (SD) | I16: (SD) | J16: (SD) | K16: (SD)
B17: ICA | C17: 19 | D17: 4 | E17: 21.05263158 | F17: 3 | G17: 15.78947368 | H17: 1 | I17: 5.263157895 | J17: 0 | K17: 0
B18: JUNIN | C18: 3 | D18: 0 | E18: 0 | F18: 0 | G18: 0 | H18: 0 | I18: 0 | J18: 0 | K18: 0
B19: LA LIBERTAD | C19: 60 | D19: 19 | E19: 31.66666667 | F19: 13 | G19: 21.66666667 | H19: 6 | I19: 10 | J19: 0 | K19: 0
B20: LAMBAYEQUE | C20: 8 | D20: 1 | E20: 12.5 | F20: 1 | G20: 12.5 | H20: 0 | I20: 0 | J20: 0 | K20: 0
B21: LIMA | C21: 524 | D21: 123 | E21: 23.47328244 | F21: 89 | G21: 16.98473282 | H21: 34 | I21: 6.488549618 | J21: 0 | K21: 0
B22: LORETO | C22: (SD) | D22: (SD) | E22: (SD) | F22: (SD) | G22: (SD) | H22: (SD) | I22: (SD) | J22: (SD) | K22: (SD)
B23: MADRE DE DIOS | C23: (SD) | D23: (SD) | E23: (SD) | F23: (SD) | G23: (SD) | H23: (SD) | I23: (SD) | J23: (SD) | K23: (SD)
B24: MOQUEGUA | C24: 3 | D24: 0 | E24: 0 | F24: 0 | G24: 0 | H24: 0 | I24: 0 | J24: 0 | K24: 0
B25: PASCO | C25: (SD) | D25: (SD) | E25: (SD) | F25: (SD) | G25: (SD) | H25: (SD) | I25: (SD) | J25: (SD) | K25: (SD)
B26: PIURA | C26: 19 | D26: 1 | E26: 5.263157895 | F26: 1 | G26: 5.263157895 | H26: 0 | I26: 0 | J26: 0 | K26: 0
B27: PUNO | C27: (SD) | D27: (SD) | E27: (SD) | F27: (SD) | G27: (SD) | H27: (SD) | I27: (SD) | J27: (SD) | K27: (SD)
B28: SAN MARTIN | C28: 2 | D28: 2 | E28: 100 | F28: 2 | G28: 100 | H28: 0 | I28: 0 | J28: 0 | K28: 0
B29: TACNA | C29: 6 | D29: 1 | E29: 16.66666667 | F29: 0 | G29: 0 | H29: 1 | I29: 16.66666667 | J29: 0 | K29: 0
B30: TUMBES | C30: 22 | D30: 5 | E30: 22.72727273 | F30: 4 | G30: 18.18181818 | H30: 1 | I30: 4.545454545 | J30: 0 | K30: 0
B31: UCAYALI | C31: 1 | D31: 0 | E31: 0 | F31: 0 | G31: 0 | H31: 0 | I31: 0 | J31: 0 | K31: 0
B32: PERÚ | C32: =SUM(C7:C31) -> 732 | D32: =SUM(D7:D31) -> 184 | E32: =D32/C32*100 -> 25.13661202 | F32: =SUM(F7:F31) -> 131 | G32: =F32/C32*100 -> 17.89617486 | H32: =SUM(H7:H31) -> 53 | I32: =H32/C32*100 -> 7.240437158 | J32: =SUM(J7:J31) -> 0 | K32: =J32/C32*100 -> 0
B33: Fuente: Sistema de Información SIEN - HIS, 2021.
B34: Instituto Nacional de Salud / Centro Nacional de Alimentación y Nutrición / Dirección Ejecutiva de Vigilancia Alimentaria y Nutricional.
B35: (SD) Departamentos sin registro de NIÑOS EXTRANJEROS.

Sheet Anemia 6-35m x DIRESA
B2: CUADRO N°08 PERÚ: ANEMIA EN NIÑOS EXTRANJEROS ENTRE 6 A 35 MESES QUE ACCEDIERON A LOS ESTABLECIMIENTOS DE SALUD, SEGÚN DIRESA / GERESA / DIRIS
B3: =INICIO!C$8 -> PERIODO: ENERO - DICIEMBRE 2021
B5: DIRESA / GERESA / DIRIS | C5: N° DE EVALUADOS | D5: ANEMIA TOTAL | F5: ANEMIA LEVE | H5: ANEMIA MODERADA | J5: ANEMIA SEVERA
D6: N° DE CASOS | E6: % | F6: N° DE CASOS | G6: % | H6: N° DE CASOS | I6: % | J6: N° DE CASOS | K6: %
B7: AMAZONAS | C7: 2 | D7: 1 | E7: 50 | F7: 1 | G7: 50 | H7: 0 | I7: 0 | J7: 0 | K7: 0
B8: ANCASH | C8: 23 | D8: 11 | E8: 47.82608696 | F8: 8 | G8: 34.7826087 | H8: 3 | I8: 13.04347826 | J8: 0 | K8: 0
B9: APURIMAC | C9: (SD) | D9: (SD) | E9: (SD) | F9: (SD) | G9: (SD) | H9: (SD) | I9: (SD) | J9: (SD) | K9: (SD)
B10: AREQUIPA | C10: 11 | D10: 3 | E10: 27.27272727 | F10: 1 | G10: 9.090909091 | H10: 2 | I10: 18.18181818 | J10: 0 | K10: 0
B11: AYACUCHO | C11: 1 | D11: 0 | E11: 0 | F11: 0 | G11: 0 | H11: 0 | I11: 0 | J11: 0 | K11: 0
B12: CAJAMARCA | C12: 4 | D12: 3 | E12: 75 | F12: 2 | G12: 50 | H12: 1 | I12: 25 | J12: 0 | K12: 0
B13: CALLAO | C13: 22 | D13: 9 | E13: 40.90909091 | F13: 5 | G13: 22.72727273 | H13: 4 | I13: 18.18181818 | J13: 0 | K13: 0
B14: CUSCO | C14: 2 | D14: 1 | E14: 50 | F14: 1 | G14: 50 | H14: 0 | I14: 0 | J14: 0 | K14: 0
B15: HUANCAVELICA | C15: (SD) | D15: (SD) | E15: (SD) | F15: (SD) | G15: (SD) | H15: (SD) | I15: (SD) | J15: (SD) | K15: (SD)
B16: HUANUCO | C16: (SD) | D16: (SD) | E16: (SD) | F16: (SD) | G16: (SD) | H16: (SD) | I16: (SD) | J16: (SD) | K16: (SD)
B17: ICA | C17: 19 | D17: 4 | E17: 21.05263158 | F17: 3 | G17: 15.78947368 | H17: 1 | I17: 5.263157895 | J17: 0 | K17: 0
B18: JUNIN | C18: 3 | D18: 0 | E18: 0 | F18: 0 | G18: 0 | H18: 0 | I18: 0 | J18: 0 | K18: 0
B19: LA LIBERTAD | C19: 60 | D19: 19 | E19: 31.66666667 | F19: 13 | G19: 21.66666667 | H19: 6 | I19: 10 | J19: 0 | K19: 0
B20: LAMBAYEQUE | C20: 8 | D20: 1 | E20: 12.5 | F20: 1 | G20: 12.5 | H20: 0 | I20: 0 | J20: 0 | K20: 0
B21: LIMA DIRIS CENTRO | C21: 162 | D21: 33 | E21: 20.37037037 | F21: 22 | G21: 13.58024691 | H21: 11 | I21: 6.790123457 | J21: 0 | K21: 0
B22: LIMA DIRIS ESTE | C22: 54 | D22: 11 | E22: 20.37037037 | F22: 6 | G22: 11.11111111 | H22: 5 | I22: 9.259259259 | J22: 0 | K22: 0
B23: LIMA DIRIS NORTE | C23: 154 | D23: 41 | E23: 26.62337662 | F23: 33 | G23: 21.42857143 | H23: 8 | I23: 5.194805195 | J23: 0 | K23: 0
B24: LIMA DIRIS SUR | C24: 122 | D24: 32 | E24: 26.2295082 | F24: 24 | G24: 19.67213115 | H24: 8 | I24: 6.557377049 | J24: 0 | K24: 0
B25: LIMA PROVINCIAS | C25: 32 | D25: 6 | E25: 18.75 | F25: 4 | G25: 12.5 | H25: 2 | I25: 6.25 | J25: 0 | K25: 0
B26: LORETO | C26: (SD) | D26: (SD) | E26: (SD) | F26: (SD) | G26: (SD) | H26: (SD) | I26: (SD) | J26: (SD) | K26: (SD)
B27: MADRE DE DIOS | C27: (SD) | D27: (SD) | E27: (SD) | F27: (SD) | G27: (SD) | H27: (SD) | I27: (SD) | J27: (SD) | K27: (SD)
B28: MOQUEGUA | C28: 3 | D28: 0 | E28: 0 | F28: 0 | G28: 0 | H28: 0 | I28: 0 | J28: 0 | K28: 0
B29: PASCO | C29: (SD) | D29: (SD) | E29: (SD) | F29: (SD) | G29: (SD) | H29: (SD) | I29: (SD) | J29: (SD) | K29: (SD)
B30: PIURA | C30: 19 | D30: 1 | E30: 5.263157895 | F30: 1 | G30: 5.263157895 | H30: 0 | I30: 0 | J30: 0 | K30: 0
B31: PUNO | C31: (SD) | D31: (SD) | E31: (SD) | F31: (SD) | G31: (SD) | H31: (SD) | I31: (SD) | J31: (SD) | K31: (SD)
B32: SAN MARTIN | C32: 2 | D32: 2 | E32: 100 | F32: 2 | G32: 100 | H32: 0 | I32: 0 | J32: 0 | K32: 0
B33: TACNA | C33: 6 | D33: 1 | E33: 16.66666667 | F33: 0 | G33: 0 | H33: 1 | I33: 16.66666667 | J33: 0 | K33: 0
B34: TUMBES | C34: 22 | D34: 5 | E34: 22.72727273 | F34: 4 | G34: 18.18181818 | H34: 1 | I34: 4.545454545 | J34: 0 | K34: 0
B35: UCAYALI | C35: 1 | D35: 0 | E35: 0 | F35: 0 | G35: 0 | H35: 0 | I35: 0
B36: PERÚ | C36: =SUM(C7:C35) -> 732 | D36: =SUM(D7:D35) -> 184 | E36: =D36/C36*100 -> 25.13661202 | F36: =SUM(F7:F35) -> 131 | G36: =F36/C36*100 -> 17.89617486 | H36: =SUM(H7:H35) -> 53 | I36: =H36/C36*100 -> 7.240437158 | J36: =SUM(J7:J35) -> 0 | K36: =J36/C36*100 -> 0
B37: Fuente: Sistema de Información SIEN - HIS, 2021.
B38: Instituto Nacional de Salud / Centro Nacional de Alimentación y Nutrición / Dirección Ejecutiva de Vigilancia Alimentaria y Nutricional.
B39: (SD) Diresas sin registro de NIÑOS EXTRANJEROS.

Sheet Anemia 6-35m x DISTRITO
B2: CUADRO N°09 PERÚ: ANEMIA EN NIÑOS EXTRANJEROS ENTRE 6 A 35 MESES QUE ACCEDIERON A LOS ESTABLECIMIENTOS DE SALUD, SEGÚN DEPARTAMENTO, PROVINCIA Y DISTRITO DEL ESTABLECIMIENTO DE SALUD
B3: =INICIO!C$8 -> PERIODO: ENERO - DICIEMBRE 2021
B5: DEPARTAMENTO | C5: PROVINCIA | D5: DISTRITO | E5: UBIGEO | F5: N° DE EVALUADOS | G5: ANEMIA TOTAL | I5: ANEMIA LEVE | K5: ANEMIA MODERADA | M5: ANEMIA SEVERA
G6: N° DE CASOS | H6: % | I6: N° DE CASOS | J6: % | K6: N° DE CASOS | L6: % | M6: N° DE CASOS | N6: %
B7: AMAZONAS | C7: BAGUA | D7: BAGUA | E7: 010201 | F7: 1 | G7: 1 | H7: 100 | I7: 1 | J7: 100 | K7: 0 | L7: 0 | M7: 0 | N7: 0
C8: UTCUBAMBA | D8: CAJARURO | E8: 010702 | F8: 1 | G8: 0 | H8: 0 | I8: 0 | J8: 0 | K8: 0 | L8: 0 | M8: 0 | N8: 0
B9: ANCASH | C9: CASMA | D9: CASMA | E9: 020801 | G9: 0 | H9: 0 | M9: 0 | N9: 0
C10: HUARAZ | D10: INDEPENDENCIA | E10: 020105 | F10: 1 | G10: 0 | H10: 0 | I10: 0 | J10: 0 | K10: 0 | L10: 0 | M10: 0 | N10: 0
C11: HUARMEY | D11: HUARMEY | E11: 021101 | F11: 1 | G11: 0 | H11: 0 | I11: 0 | J11: 0 | K11: 0 | L11: 0 | M11: 0 | N11: 0
C12: SANTA | D12: CHIMBOTE | E12: 021801 | F12: 19 | G12: 11 | H12: 57.89473684 | I12: 8 | J12: 42.10526316 | K12: 3 | L12: 15.78947368 | M12: 0 | N12: 0
D13: NUEVO CHIMBOTE | E13: 021809 | F13: 2 | G13: 0 | H13: 0 | I13: 0 | J13: 0 | K13: 0 | L13: 0 | M13: 0 | N13: 0
D14: SANTA | E14: 021808 | G14: 0 | H14: 0 | M14: 0 | N14: 0
B15: AREQUIPA | C15: AREQUIPA | D15: ALTO SELVA ALEGRE | E15: 040102 | F15: 1 | G15: 0 | H15: 0 | I15: 0 | J15: 0 | K15: 0 | L15: 0 | M15: 0 | N15: 0
D16: CERRO COLORADO | E16: 040104 | F16: 3 | G16: 1 | H16: 33.33333333 | I16: 0 | J16: 0 | K16: 1 | L16: 33.33333333 | M16: 0 | N16: 0
D17: JACOBO HUNTER | E17: 040107 | F17: 1 | G17: 0 | H17: 0 | I17: 0 | J17: 0 | K17: 0 | L17: 0 | M17: 0 | N17: 0
D18: JOSE LUIS BUSTAMANTE Y RIVERO | E18: 040129 | F18: 1 | G18: 0 | H18: 0 | I18: 0 | J18: 0 | K18: 0 | L18: 0 | M18: 0 | N18: 0
D19: LA JOYA | E19: 040108 | G19: 0 | H19: 0 | M19: 0 | N19: 0
D20: MARIANO MELGAR | E20: 040109 | F20: 1 | G20: 1 | H20: 100 | I20: 0 | J20: 0 | K20: 1 | L20: 100 | M20: 0 | N20: 0
D21: PAUCARPATA | E21: 040112 | G21: 0 | H21: 0 | M21: 0 | N21: 0
D22: SABANDIA | E22: 040116 | G22: 0 | H22: 0 | M22: 0 | N22: 0
D23: SOCABAYA | E23: 040122 | F23: 2 | G23: 0 | H23: 0 | I23: 0 | J23: 0 | K23: 0 | L23: 0 | M23: 0 | N23: 0
D24: YANAHUARA | E24: 040126 | G24: 0 | H24: 0 | M24: 0 | N24: 0
C25: CARAVELI | D25: YAUCA | E25: 040313 | F25: 1 | G25: 1 | H25: 100 | I25: 1 | J25: 100 | K25: 0 | L25: 0 | M25: 0 | N25: 0
C26: ISLAY | D26: MOLLENDO | E26: 040701 | F26: 1 | G26: 0 | H26: 0 | I26: 0 | J26: 0 | K26: 0 | L26: 0 | M26: 0 | N26: 0
B27: AYACUCHO | C27: HUAMANGA | D27: JESUS NAZARENO | E27: 050115 | F27: 1 | G27: 0 | H27: 0 | I27: 0 | J27: 0 | K27: 0 | L27: 0 | M27: 0 | N27: 0
C28: HUANTA | D28: SIVIA | E28: 050407 | G28: 0 | H28: 0 | M28: 0 | N28: 0
B29: CAJAMARCA | C29: CAJABAMBA | D29: CAJABAMBA | E29: 060201 | F29: 1 | G29: 1 | H29: 100 | I29: 0 | J29: 0 | K29: 1 | L29: 100 | M29: 0 | N29: 0
C30: CAJAMARCA | D30: CAJAMARCA | E30: 060101 | F30: 1 | G30: 1 | H30: 100 | I30: 1 | J30: 100 | K30: 0 | L30: 0 | M30: 0 | N30: 0
C31: JAEN | D31: JAEN | E31: 060801 | F31: 1 | G31: 1 | H31: 100 | I31: 1 | J31: 100 | K31: 0 | L31: 0 | M31: 0 | N31: 0
C32: SAN IGNACIO | D32: SAN IGNACIO | E32: 060901 | F32: 1 | G32: 0 | H32: 0 | I32: 0 | J32: 0 | K32: 0 | L32: 0 | M32: 0 | N32: 0
B33: CALLAO | C33: CALLAO | D33: BELLAVISTA | E33: 070102 | G33: 0 | H33: 0 | M33: 0 | N33: 0
D34: CALLAO | E34: 070101 | F34: 15 | G34: 8 | H34: 53.33333333 | I34: 4 | J34: 26.66666667 | K34: 4 | L34: 26.66666667 | M34: 0 | N34: 0
D35: CARMEN DE LA LEGUA-REYNOSO | E35: 070103 | F35: 1 | G35: 0 | H35: 0 | I35: 0 | J35: 0 | K35: 0 | L35: 0 | M35: 0 | N35: 0
D36: LA PERLA | E36: 070104 | F36: 2 | G36: 0 | H36: 0 | I36: 0 | J36: 0 | K36: 0 | L36: 0 | M36: 0 | N36: 0
D37: VENTANILLA | E37: 070106 | F37: 4 | G37: 1 | H37: 25 | I37: 1 | J37: 25 | K37: 0 | L37: 0 | M37: 0 | N37: 0
B38: CUSCO | C38: CUSCO | D38: SAN JERONIMO | E38: 080104 | G38: 0 | H38: 0 | M38: 0 | N38: 0
D39: SANTIAGO | E39: 080106 | G39: 0 | H39: 0 | M39: 0 | N39: 0
D40: WANCHAQ | E40: 080108 | F40: 2 | G40: 1 | H40: 50 | I40: 1 | J40: 50 | K40: 0 | L40: 0 | M40: 0 | N40: 0
B41: HUANUCO | C41: HUANUCO | D41: AMARILIS | E41: 100102 | G41: 0 | H41: 0 | M41: 0 | N41: 0
D42: HUANUCO | E42: 100101 | G42: 0 | H42: 0 | M42: 0 | N42: 0
B43: ICA | C43: CHINCHA | D43: GROCIO PRADO | E43: 110206 | F43: 2 | G43: 0 | H43: 0 | I43: 0 | J43: 0 | K43: 0 | L43: 0 | M43: 0 | N43: 0
D44: PUEBLO NUEVO | E44: 110207 | G44: 0 | H44: 0 | M44: 0 | N44: 0
C45: ICA | D45: ICA | E45: 110101 | F45: 11 | G45: 4 | H45: 36.36363636 | I45: 3 | J45: 27.27272727 | K45: 1 | L45: 9.090909091 | M45: 0 | N45: 0
D46: SALAS | E46: 110108 | F46: 1 | G46: 0 | H46: 0 | I46: 0 | J46: 0 | K46: 0 | L46: 0 | M46: 0 | N46: 0
D47: SUBTANJALLA | E47: 110112 | G47: 0 | H47: 0 | M47: 0 | N47: 0
D48: TATE | E48: 110113 | G48: 0 | H48: 0 | M48: 0 | N48: 0
C49: NAZCA | D49: MARCONA | E49: 110304 | G49: 0 | H49: 0 | M49: 0 | N49: 0
D50: NAZCA | E50: 110301 | F50: 2 | G50: 0 | H50: 0 | I50: 0 | J50: 0 | K50: 0 | L50: 0 | M50: 0 | N50: 0
D51: VISTA ALEGRE | E51: 110305 | F51: 1 | G51: 0 | H51: 0 | I51: 0 | J51: 0 | K51: 0 | L51: 0 | M51: 0 | N51: 0
C52: PALPA | D52: PALPA | E52: 110401 | G52: 0 | H52: 0 | M52: 0 | N52: 0
C53: PISCO | D53: PISCO | E53: 110501 | F53: 1 | G53: 0 | H53: 0 | I53: 0 | J53: 0 | K53: 0 | L53: 0 | M53: 0 | N53: 0
D54: SAN ANDRES | E54: 110506 | F54: 1 | G54: 0 | H54: 0 | I54: 0 | J54: 0 | K54: 0 | L54: 0 | M54: 0 | N54: 0
B55: JUNIN | C55: CHANCHAMAYO | D55: CHANCHAMAYO | E55: 120301 | G55: 0 | H55: 0 | M55: 0 | N55: 0
D56: PICHANAQUI | E56: 120303 | G56: 0 | H56: 0 | M56: 0 | N56: 0
C57: CONCEPCION | D57: CONCEPCION | E57: 120201 | G57: 0 | H57: 0 | M57: 0 | N57: 0
C58: HUANCAYO | D58: EL TAMBO | E58: 120114 | F58: 1 | G58: 0 | H58: 0 | I58: 0 | J58: 0 | K58: 0 | L58: 0 | M58: 0 | N58: 0
D59: HUANCAYO | E59: 120101 | F59: 1 | G59: 0 | H59: 0 | I59: 0 | J59: 0 | K59: 0 | L59: 0 | M59: 0 | N59: 0
C60: JAUJA | D60: JAUJA | E60: 120401 | F60: 1 | G60: 0 | H60: 0 | I60: 0 | J60: 0 | K60: 0 | L60: 0 | M60: 0 | N60: 0
C61: TARMA | D61: TARMA | E61: 120701 | G61: 0 | H61: 0 | M61: 0 | N61: 0
B62: LA LIBERTAD | C62: ASCOPE | D62: CHOCOPE | E62: 130203 | F62: 1 | G62: 0 | H62: 0 | I62: 0 | J62: 0 | K62: 0 | L62: 0 | M62: 0 | N62: 0
D63: PAIJAN | E63: 130205 | G63: 0 | H63: 0 | M63: 0 | N63: 0
D64: RAZURI | E64: 130206 | F64: 1 | G64: 0 | H64: 0 | I64: 0 | J64: 0 | K64: 0 | L64: 0 | M64: 0 | N64: 0
C65: CHEPEN | D65: CHEPEN | E65: 130401 | F65: 2 | G65: 0 | H65: 0 | I65: 0 | J65: 0 | K65: 0 | L65: 0 | M65: 0 | N65: 0
D66: PACANGA | E66: 130402 | F66: 1 | G66: 0 | H66: 0 | I66: 0 | J66: 0 | K66: 0 | L66: 0 | M66: 0 | N66: 0
D67: PUEBLO NUEVO | E67: 130403 | F67: 1 | G67: 0 | H67: 0 | I67: 0 | J67: 0 | K67: 0 | L67: 0 | M67: 0 | N67: 0
C68: PACASMAYO | D68: GUADALUPE | E68: 130702 | F68: 7 | G68: 2 | H68: 28.57142857 | I68: 2 | J68: 28.57142857 | K68: 0 | L68: 0 | M68: 0 | N68: 0
D69: PACASMAYO | E69: 130704 | F69: 7 | G69: 1 | H69: 14.28571429 | I69: 0 | J69: 0 | K69: 1 | L69: 14.28571429 | M69: 0 | N69: 0
D70: SAN PEDRO DE LLOC | E70: 130701 | G70: 0 | H70: 0 | M70: 0 | N70: 0
C71: TRUJILLO | D71: FLORENCIA DE MORA | E71: 130103 | F71: 3 | G71: 0 | H71: 0 | I71: 0 | J71: 0 | K71: 0 | L71: 0 | M71: 0 | N71: 0
D72: HUANCHACO | E72: 130104 | F72: 1 | G72: 0 | H72: 0 | I72: 0 | J72: 0 | K72: 0 | L72: 0 | M72: 0 | N72: 0
D73: LA ESPERANZA | E73: 130105 | F73: 4 | G73: 1 | H73: 25 | I73: 0 | J73: 0 | K73: 1 | L73: 25 | M73: 0 | N73: 0
D74: MOCHE | E74: 130107 | F74: 5 | G74: 3 | H74: 60 | I74: 1 | J74: 20 | K74: 2 | L74: 40 | M74: 0 | N74: 0
D75: SALAVERRY | E75: 130109 | F75: 1 | G75: 0 | H75: 0 | I75: 0 | J75: 0 | K75: 0 | L75: 0 | M75: 0 | N75: 0
D76: TRUJILLO | E76: 130101 | F76: 17 | G76: 6 | H76: 35.29411765 | I76: 5 | J76: 29.41176471 | K76: 1 | L76: 5.882352941 | M76: 0 | N76: 0
D77: VICTOR LARCO HERRERA | E77: 130111 | F77: 3 | G77: 3 | H77: 100 | I77: 2 | J77: 66.66666667 | K77: 1 | L77: 33.33333333 | M77: 0 | N77: 0
C78: VIRU | D78: CHAO | E78: 131202 | F78: 4 | G78: 2 | H78: 50 | I78: 2 | J78: 50 | K78: 0 | L78: 0 | M78: 0 | N78: 0
D79: VIRU | E79: 131201 | F79: 2 | G79: 1 | H79: 50 | I79: 1 | J79: 50 | K79: 0 | L79: 0 | M79: 0 | N79: 0
B80: LAMBAYEQUE | C80: CHICLAYO | D80: CHICLAYO | E80: 140101 | F80: 1 | G80: 0 | H80: 0 | I80: 0 | J80: 0 | K80: 0 | L80: 0 | M80: 0 | N80: 0
D81: ETEN PUERTO | E81: 140104 | F81: 2 | G81: 0 | H81: 0 | I81: 0 | J81: 0 | K81: 0 | L81: 0 | M81: 0 | N81: 0
D82: JOSE LEONARDO ORTIZ | E82: 140105 | F82: 2 | G82: 1 | H82: 50 | I82: 1 | J82: 50 | K82: 0 | L82: 0 | M82: 0 | N82: 0
D83: LA VICTORIA | E83: 140106 | F83: 1 | G83: 0 | H83: 0 | I83: 0 | J83: 0 | K83: 0 | L83: 0 | M83: 0 | N83: 0
D84: REQUE | E84: 140113 | F84: 1 | G84: 0 | H84: 0 | I84: 0 | J84: 0 | K84: 0 | L84: 0 | M84: 0 | N84: 0
C85: LAMBAYEQUE | D85: SAN JOSE | E85: 140311 | F85: 1 | G85: 0 | H85: 0 | I85: 0 | J85: 0 | K85: 0 | L85: 0 | M85: 0 | N85: 0
B86: LIMA | C86: BARRANCA | D86: BARRANCA | E86: 150201 | F86: 3 | G86: 0 | H86: 0 | I86: 0 | J86: 0 | K86: 0 | L86: 0 | M86: 0 | N86: 0
D87: SUPE | E87: 150204 | G87: 0 | H87: 0 | M87: 0 | N87: 0
D88: SUPE PUERTO | E88: 150205 | F88: 1 | G88: 0 | H88: 0 | I88: 0 | J88: 0 | K88: 0 | L88: 0 | M88: 0 | N88: 0
C89: CAÑETE | D89: CHILCA | E89: 150505 | F89: 3 | G89: 3 | H89: 100 | I89: 1 | J89: 33.33333333 | K89: 2 | L89: 66.66666667 | M89: 0 | N89: 0
D90: IMPERIAL | E90: 150507 | G90: 0 | H90: 0 | M90: 0 | N90: 0
D91: MALA | E91: 150509 | F91: 2 | G91: 0 | H91: 0 | I91: 0 | J91: 0 | K91: 0 | L91: 0 | M91: 0 | N91: 0
C92: HUARAL | D92: AUCALLAMA | E92: 150604 | F92: 1 | G92: 0 | H92: 0 | I92: 0 | J92: 0 | K92: 0 | L92: 0 | M92: 0 | N92: 0
D93: CHANCAY | E93: 150605 | F93: 5 | G93: 0 | H93: 0 | I93: 0 | J93: 0 | K93: 0 | L93: 0 | M93: 0 | N93: 0
D94: HUARAL | E94: 150601 | F94: 5 | G94: 1 | H94: 20 | I94: 1 | J94: 20 | K94: 0 | L94: 0 | M94: 0 | N94: 0
C95: HUAROCHIRI | D95: SANTA EULALIA | E95: 150728 | G95: 0 | H95: 0 | M95: 0 | N95: 0
C96: HUAURA | D96: HUACHO | E96: 150801 | F96: 3 | G96: 0 | H96: 0 | I96: 0 | J96: 0 | K96: 0 | L96: 0 | M96: 0 | N96: 0
D97: HUALMAY | E97: 150805 | F97: 2 | G97: 0 | H97: 0 | I97: 0 | J97: 0 | K97: 0 | L97: 0 | M97: 0 | N97: 0
D98: HUAURA | E98: 150806 | F98: 1 | G98: 1 | H98: 100 | I98: 1 | J98: 100 | K98: 0 | L98: 0 | M98: 0 | N98: 0
D99: SANTA MARIA | E99: 150810 | F99: 4 | G99: 1 | H99: 25 | I99: 1 | J99: 25 | K99: 0 | L99: 0 | M99: 0 | N99: 0
D100: VEGUETA | E100: 150812 | F100: 2 | G100: 0 | H100: 0 | I100: 0 | J100: 0 | K100: 0 | L100: 0 | M100: 0 | N100: 0
C101: LIMA | D101: ANCON | E101: 150102 | F101: 1 | G101: 0 | H101: 0 | I101: 0 | J101: 0 | K101: 0 | L101: 0 | M101: 0 | N101: 0
D102: ATE | E102: 150103 | F102: 10 | G102: 2 | H102: 20 | I102: 1 | J102: 10 | K102: 1 | L102: 10 | M102: 0 | N102: 0
D103: BREÑA | E103: 150105 | G103: 0 | H103: 0 | M103: 0 | N103: 0
D104: CARABAYLLO | E104: 150106 | F104: 13 | G104: 3 | H104: 23.07692308 | I104: 2 | J104: 15.38461538 | K104: 1 | L104: 7.692307692 | M104: 0 | N104: 0
D105: CHACLACAYO | E105: 150107 | F105: 1 | G105: 0 | H105: 0 | I105: 0 | J105: 0 | K105: 0 | L105: 0 | M105: 0 | N105: 0
D106: CHORRILLOS | E106: 150108 | F106: 14 | G106: 7 | H106: 50 | I106: 3 | J106: 21.42857143 | K106: 4 | L106: 28.57142857 | M106: 0 | N106: 0
D107: CIENEGUILLA | E107: 150109 | G107: 0 | H107: 0 | M107: 0 | N107: 0
D108: COMAS | E108: 150110 | F108: 24 | G108: 6 | H108: 25 | I108: 6 | J108: 25 | K108: 0 | L108: 0 | M108: 0 | N108: 0
D109: EL AGUSTINO | E109: 150111 | F109: 14 | G109: 4 | H109: 28.57142857 | I109: 1 | J109: 7.142857143 | K109: 3 | L109: 21.42857143 | M109: 0 | N109: 0
D110: INDEPENDENCIA | E110: 150112 | F110: 8 | G110: 1 | H110: 12.5 | I110: 1 | J110: 12.5 | K110: 0 | L110: 0 | M110: 0 | N110: 0
D111: JESUS MARIA | E111: 150113 | G111: 0 | H111: 0 | M111: 0 | N111: 0
D112: LA MOLINA | E112: 150114 | F112: 5 | G112: 0 | H112: 0 | I112: 0 | J112: 0 | K112: 0 | L112: 0 | M112: 0 | N112: 0
D113: LA VICTORIA | E113: 150115 | F113: 21 | G113: 3 | H113: 14.28571429 | I113: 3 | J113: 14.28571429 | K113: 0 | L113: 0 | M113: 0 | N113: 0
D114: LIMA | E114: 150101 | F114: 40 | G114: 9 | H114: 22.5 | I114: 5 | J114: 12.5 | K114: 4 | L114: 10 | M114: 0 | N114: 0
D115: LINCE | E115: 150116 | F115: 4 | G115: 0 | H115: 0 | I115: 0 | J115: 0 | K115: 0 | L115: 0 | M115: 0 | N115: 0
D116: LOS OLIVOS | E116: 150117 | F116: 32 | G116: 5 | H116: 15.625 | I116: 4 | J116: 12.5 | K116: 1 | L116: 3.125 | M116: 0 | N116: 0
D117: LURIGANCHO | E117: 150118 | F117: 2 | G117: 1 | H117: 50 | I117: 1 | J117: 50 | K117: 0 | L117: 0 | M117: 0 | N117: 0
D118: LURIN | E118: 150119 | F118: 12 | G118: 3 | H118: 25 | I118: 3 | J118: 25 | K118: 0 | L118: 0 | M118: 0 | N118: 0
D119: MAGDALENA DEL MAR | E119: 150120 | G119: 0 | H119: 0 | M119: 0 | N119: 0
D120: MIRAFLORES | E120: 150122 | F120: 2 | G120: 1 | H120: 50 | I120: 1 | J120: 50 | K120: 0 | L120: 0 | M120: 0 | N120: 0
D121: PACHACAMAC | E121: 150123 | F121: 10 | G121: 2 | H121: 20 | I121: 1 | J121: 10 | K121: 1 | L121: 10 | M121: 0 | N121: 0
D122: PUENTE PIEDRA | E122: 150125 | F122: 4 | G122: 1 | H122: 25 | I122: 1 | J122: 25 | K122: 0 | L122: 0 | M122: 0 | N122: 0
D123: RIMAC | E123: 150128 | F123: 4 | G123: 2 | H123: 50 | I123: 2 | J123: 50 | K123: 0 | L123: 0 | M123: 0 | N123: 0
D124: SAN BARTOLO | E124: 150129 | F124: 1 | G124: 0 | H124: 0 | I124: 0 | J124: 0 | K124: 0 | L124: 0 | M124: 0 | N124: 0
D125: SAN BORJA | E125: 150130 | G125: 0 | H125: 0 | M125: 0 | N125: 0
D126: SAN ISIDRO | E126: 150131 | G126: 0 | H126: 0 | M126: 0 | N126: 0
D127: SAN JUAN DE LURIGANCHO | E127: 150132 | F127: 79 | G127: 15 | H127: 18.98734177 | I127: 10 | J127: 12.65822785 | K127: 5 | L127: 6.329113924 | M127: 0 | N127: 0
D128: SAN JUAN DE MIRAFLORES | E128: 150133 | F128: 24 | G128: 6 | H128: 25 | I128: 4 | J128: 16.66666667 | K128: 2 | L128: 8.333333333 | M128: 0 | N128: 0
D129: SAN LUIS | E129: 150134 | G129: 0 | H129: 0 | M129: 0 | N129: 0
D130: SAN MARTIN DE PORRES | E130: 150135 | F130: 68 | G130: 23 | H130: 33.82352941 | I130: 17 | J130: 25 | K130: 6 | L130: 8.823529412 | M130: 0 | N130: 0
D131: SAN MIGUEL | E131: 150136 | F131: 15 | G131: 4 | H131: 26.66666667 | I131: 2 | J131: 13.33333333 | K131: 2 | L131: 13.33333333 | M131: 0 | N131: 0
D132: SANTA ANITA | E132: 150137 | F132: 22 | G132: 4 | H132: 18.18181818 | I132: 3 | J132: 13.63636364 | K132: 1 | L132: 4.545454545 | M132: 0 | N132: 0
D133: SANTIAGO DE SURCO | E133: 150140 | F133: 40 | G133: 9 | H133: 22.5 | I133: 8 | J133: 20 | K133: 1 | L133: 2.5 | M133: 0 | N133: 0
D134: SURQUILLO | E134: 150141 | F134: 1 | G134: 1 | H134: 100 | I134: 1 | J134: 100 | K134: 0 | L134: 0 | M134: 0 | N134: 0
D135: VILLA EL SALVADOR | E135: 150142 | F135: 15 | G135: 4 | H135: 26.66666667 | I135: 4 | J135: 26.66666667 | K135: 0 | L135: 0 | M135: 0 | N135: 0
D136: VILLA MARIA DEL TRIUNFO | E136: 150143 | F136: 6 | G136: 1 | H136: 16.66666667 | I136: 1 | J136: 16.66666667 | K136: 0 | L136: 0 | M136: 0 | N136: 0
B137: MADRE DE DIOS | C137: TAMBOPATA | D137: TAMBOPATA | E137: 170101 | G137: 0 | H137: 0 | M137: 0 | N137: 0
B138: MOQUEGUA | C138: ILO | D138: ILO | E138: 180301 | F138: 1 | G138: 0 | H138: 0 | I138: 0 | J138: 0 | K138: 0 | L138: 0 | M138: 0 | N138: 0
C139: MARISCAL NIETO | D139: MOQUEGUA | E139: 180101 | F139: 2 | G139: 0 | H139: 0 | I139: 0 | J139: 0 | K139: 0 | L139: 0 | M139: 0 | N139: 0
D140: SAMEGUA | E140: 180104 | G140: 0 | H140: 0 | M140: 0 | N140: 0
B141: PIURA | C141: MORROPON | D141: CHULUCANAS | E141: 200401 | F141: 1 | G141: 1 | H141: 100 | I141: 1 | J141: 100 | K141: 0 | L141: 0 | M141: 0 | N141: 0
D142: LA MATANZA | E142: 200404 | G142: 0 | H142: 0 | M142: 0 | N142: 0
C143: PAITA | D143: PAITA | E143: 200501 | F143: 3 | G143: 0 | H143: 0 | I143: 0 | J143: 0 | K143: 0 | L143: 0 | M143: 0 | N143: 0
D144: VICHAYAL | E144: 200507 | F144: 1 | G144: 0 | H144: 0 | I144: 0 | J144: 0 | K144: 0 | L144: 0 | M144: 0 | N144: 0
C145: PIURA | D145: CASTILLA | E145: 200104 | G145: 0 | H145: 0 | M145: 0 | N145: 0
D146: PIURA | E146: 200101 | F146: 2 | G146: 0 | H146: 0 | I146: 0 | J146: 0 | K146: 0 | L146: 0 | M146: 0 | N146: 0
D147: VEINTISEIS DE OCTUBRE | E147: 200115 | G147: 0 | H147: 0 | M147: 0 | N147: 0
C148: SECHURA | D148: SECHURA | E148: 200801 | F148: 3 | G148: 0 | H148: 0 | I148: 0 | J148: 0 | K148: 0 | L148: 0 | M148: 0 | N148: 0
C149: SULLANA | D149: QUERECOTILLO | E149: 200607 | F149: 1 | G149: 0 | H149: 0 | I149: 0 | J149: 0 | K149: 0 | L149: 0 | M149: 0 | N149: 0
D150: SULLANA | E150: 200601 | F150: 1 | G150: 0 | H150: 0 | I150: 0 | J150: 0 | K150: 0 | L150: 0 | M150: 0 | N150: 0
C151: TALARA | D151: MANCORA | E151: 200706 | F151: 6 | G151: 0 | H151: 0 | I151: 0 | J151: 0 | K151: 0 | L151: 0 | M151: 0 | N151: 0
D152: PARIÑAS | E152: 200701 | F152: 1 | G152: 0 | H152: 0 | I152: 0 | J152: 0 | K152: 0 | L152: 0 | M152: 0 | N152: 0
B153: PUNO | C153: PUNO | D153: PUNO | E153: 210101 | G153: 0 | H153: 0 | M153: 0 | N153: 0
B154: SAN MARTIN | C154: MOYOBAMBA | D154: MOYOBAMBA | E154: 220101 | F154: 1 | G154: 1 | H154: 100 | I154: 1 | J154: 100 | K154: 0 | L154: 0 | M154: 0 | N154: 0
C155: RIOJA | D155: RIOJA | E155: 220801 | F155: 1 | G155: 1 | H155: 100 | I155: 1 | J155: 100 | K155: 0 | L155: 0 | M155: 0 | N155: 0
C156: TOCACHE | D156: TOCACHE | E156: 221001 | G156: 0 | H156: 0 | M156: 0 | N156: 0
B157: TACNA | C157: JORGE BASADRE | D157: ITE | E157: 230303 | F157: 2 | G157: 0 | H157: 0 | I157: 0 | J157: 0 | K157: 0 | L157: 0 | M157: 0 | N157: 0
C158: TACNA | D158: ALTO DE LA ALIANZA | E158: 230102 | F158: 1 | G158: 0 | H158: 0 | I158: 0 | J158: 0 | K158: 0 | L158: 0 | M158: 0 | N158: 0
D159: CIUDAD NUEVA | E159: 230104 | F159: 1 | G159: 0 | H159: 0 | I159: 0 | J159: 0 | K159: 0 | L159: 0 | M159: 0 | N159: 0
D160: CORONEL GREGORIO ALBARRACIN L. | E160: 230110 | F160: 2 | G160: 1 | H160: 50 | I160: 0 | J160: 0 | K160: 1 | L160: 50 | M160: 0 | N160: 0
D161: SAMA | E161: 230109 | G161: 0 | H161: 0 | M161: 0 | N161: 0
D162: TACNA | E162: 230101 | G162: 0 | H162: 0 | M162: 0 | N162: 0
B163: TUMBES | C163: CONTRALMIRANTE VILLAR | D163: CANOAS DE PUNTA SAL | E163: 240203 | F163: 1 | G163: 0 | H163: 0 | I163: 0 | J163: 0 | K163: 0 | L163: 0 | M163: 0 | N163: 0
D164: ZORRITOS | E164: 240201 | F164: 2 | G164: 0 | H164: 0 | I164: 0 | J164: 0 | K164: 0 | L164: 0 | M164: 0 | N164: 0
C165: TUMBES | D165: CORRALES | E165: 240102 | F165: 3 | G165: 0 | H165: 0 | I165: 0 | J165: 0 | K165: 0 | L165: 0 | M165: 0 | N165: 0
D166: LA CRUZ | E166: 240103 | F166: 2 | G166: 1 | H166: 50 | I166: 0 | J166: 0 | K166: 1 | L166: 50 | M166: 0 | N166: 0
D167: PAMPAS DE HOSPITAL | E167: 240104 | G167: 0 | H167: 0 | M167: 0 | N167: 0
D168: SAN JACINTO | E168: 240105 | F168: 1 | G168: 0 | H168: 0 | I168: 0 | J168: 0 | K168: 0 | L168: 0 | M168: 0 | N168: 0
D169: TUMBES | E169: 240101 | F169: 8 | G169: 3 | H169: 37.5 | I169: 3 | J169: 37.5 | K169: 0 | L169: 0 | M169: 0 | N169: 0
C170: ZARUMILLA | D170: PAPAYAL | E170: 240304 | F170: 1 | G170: 0 | H170: 0 | I170: 0 | J170: 0 | K170: 0 | L170: 0 | M170: 0 | N170: 0
D171: ZARUMILLA | E171: 240301 | F171: 4 | G171: 1 | H171: 25 | I171: 1 | J171: 25 | K171: 0 | L171: 0 | M171: 0 | N171: 0
B172: UCAYALI | C172: CORONEL PORTILLO | D172: CAMPOVERDE | E172: 250102 | F172: 1 | G172: 0 | H172: 0 | I172: 0 | J172: 0 | K172: 0 | L172: 0 | M172: 0 | N172: 0
B173: PERÚ | F173: =SUM(F7:F172) -> 732 | G173: =SUM(G7:G172) -> 184 | H173: =G173/F173*100 -> 25.13661202 | I173: =SUM(I7:I172) -> 131 | J173: =I173/F173*100 -> 17.89617486 | K173: =SUM(K7:K172) -> 53 | L173: =K173/F173*100 -> 7.240437158 | M173: =SUM(M7:M172) -> 0 | N173: =M173/F173*100 -> 0
B174: Fuente: Sistema de Información SIEN - HIS, 2021.
B175: Instituto Nacional de Salud / Centro Nacional de Alimentación y Nutrición / Dirección Ejecutiva de Vigilancia Alimentaria y Nutricional.

Sheet Anemia 6-59m x DEP
B2: CUADRO N°10 PERÚ: ANEMIA EN NIÑOS EXTRANJEROS ENTRE 6 A 59 MESES QUE ACCEDIERON A LOS ESTABLECIMIENTOS DE SALUD, SEGÚN DEPARTAMENTO DEL ESTABLECIMIENTO DE SALUD
B3: =INICIO!C$8 -> PERIODO: ENERO - DICIEMBRE 2021
B5: DEPARTAMENTO | C5: N° DE EVALUADOS | D5: ANEMIA TOTAL | F5: ANEMIA LEVE | H5: ANEMIA MODERADA | J5: ANEMIA SEVERA
D6: N° DE CASOS | E6: % | F6: N° DE CASOS | G6: % | H6: N° DE CASOS | I6: % | J6: N° DE CASOS | K6: %
B7: AMAZONAS | C7: 2 | D7: 1 | E7: 50 | F7: 1 | G7: 50 | H7: 0 | I7: 0 | J7: 0 | K7: 0
B8: ANCASH | C8: 37 | D8: 14 | E8: 37.83783784 | F8: 11 | G8: 29.72972973 | H8: 3 | I8: 8.108108108 | J8: 0 | K8: 0
B9: APURIMAC | C9: (SD) | D9: (SD) | E9: (SD) | F9: (SD) | G9: (SD) | H9: (SD) | I9: (SD) | J9: (SD) | K9: (SD)
B10: AREQUIPA | C10: 28 | D10: 3 | E10: 10.71428571 | F10: 1 | G10: 3.571428571 | H10: 2 | I10: 7.142857143 | J10: 0 | K10: 0
B11: AYACUCHO | C11: 2 | D11: 0 | E11: 0 | F11: 0 | G11: 0 | H11: 0 | I11: 0 | J11: 0 | K11: 0
B12: CAJAMARCA | C12: 6 | D12: 3 | E12: 50 | F12: 2 | G12: 33.33333333 | H12: 1 | I12: 16.66666667 | J12: 0 | K12: 0
B13: CALLAO | C13: 35 | D13: 11 | E13: 31.42857143 | F13: 7 | G13: 20 | H13: 4 | I13: 11.42857143 | J13: 0 | K13: 0
B14: CUSCO | C14: 4 | D14: 2 | E14: 50 | F14: 1 | G14: 25 | H14: 1 | I14: 25 | J14: 0 | K14: 0
B15: HUANCAVELICA | C15: (SD) | D15: (SD) | E15: (SD) | F15: (SD) | G15: (SD) | H15: (SD) | I15: (SD) | J15: (SD) | K15: (SD)
B16: HUANUCO | C16: 2 | D16: 1 | E16: 50 | F16: 1 | G16: 50 | H16: 0 | I16: 0 | J16: 0 | K16: 0
B17: ICA | C17: 31 | D17: 6 | E17: 19.35483871 | F17: 5 | G17: 16.12903226 | H17: 1 | I17: 3.225806452 | J17: 0 | K17: 0
B18: JUNIN | C18: 10 | D18: 1 | E18: 10 | F18: 0 | G18: 0 | H18: 1 | I18: 10 | J18: 0 | K18: 0
B19: LA LIBERTAD | C19: 85 | D19: 21 | E19: 24.70588235 | F19: 14 | G19: 16.47058824 | H19: 7 | I19: 8.235294118 | J19: 0 | K19: 0
B20: LAMBAYEQUE | C20: 10 | D20: 1 | E20: 10 | F20: 1 | G20: 10 | H20: 0 | I20: 0 | J20: 0 | K20: 0
B21: LIMA | C21: 915 | D21: 161 | E21: 17.59562842 | F21: 122 | G21: 13.33333333 | H21: 37 | I21: 4.043715847 | J21: 2 | K21: 0.218579235
B22: LORETO | C22: (SD) | D22: (SD) | E22: (SD) | F22: (SD) | G22: (SD) | H22: (SD) | I22: (SD) | J22: (SD) | K22: (SD)
B23: MADRE DE DIOS | C23: 2 | D23: 0 | E23: 0 | F23: 0 | G23: 0 | H23: 0 | I23: 0 | J23: 0 | K23: 0
B24: MOQUEGUA | C24: 9 | D24: 0 | E24: 0 | F24: 0 | G24: 0 | H24: 0 | I24: 0 | J24: 0 | K24: 0
B25: PASCO | C25: (SD) | D25: (SD) | E25: (SD) | F25: (SD) | G25: (SD) | H25: (SD) | I25: (SD) | J25: (SD) | K25: (SD)
B26: PIURA | C26: 39 | D26: 1 | E26: 2.564102564 | F26: 1 | G26: 2.564102564 | H26: 0 | I26: 0 | J26: 0 | K26: 0
B27: PUNO | C27: 1 | D27: 0 | E27: 0 | F27: 0 | G27: 0 | H27: 0 | I27: 0 | J27: 0 | K27: 0
B28: SAN MARTIN | C28: 5 | D28: 2 | E28: 40 | F28: 2 | G28: 40 | H28: 0 | I28: 0 | J28: 0 | K28: 0
B29: TACNA | C29: 15 | D29: 1 | E29: 6.666666667 | F29: 0 | G29: 0 | H29: 1 | I29: 6.666666667 | J29: 0 | K29: 0
B30: TUMBES | C30: 35 | D30: 6 | E30: 17.14285714 | F30: 5 | G30: 14.28571429 | H30: 1 | I30: 2.857142857 | J30: 0 | K30: 0
B31: UCAYALI | C31: 1 | D31: 0 | E31: 0 | F31: 0 | G31: 0 | H31: 0 | I31: 0 | J31: 0 | K31: 0
B32: PERÚ | C32: =SUM(C7:C31) -> 1274 | D32: =SUM(D7:D31) -> 235 | E32: =D32/C32*100 -> 18.44583987 | F32: =SUM(F7:F31) -> 174 | G32: =F32/C32*100 -> 13.6577708 | H32: =SUM(H7:H31) -> 59 | I32: =H32/C32*100 -> 4.631083203 | J32: =SUM(J7:J31) -> 2 | K32: =J32/C32*100 -> 0.1569858713
B33: Fuente: Sistema de Información SIEN - HIS, 2021.
B34: Instituto Nacional de Salud / Centro Nacional de Alimentación y Nutrición / Dirección Ejecutiva de Vigilancia Alimentaria y Nutricional.
B35: (SD) Departamentos sin registro de NIÑOS EXTRANJEROS.

Sheet Anemia 6-59m x DIRESA
B2: CUADRO N°11 PERÚ: ANEMIA EN NIÑOS EXTRANJEROS ENTRE 6 A 59 MESES QUE ACCEDIERON A LOS ESTABLECIMIENTOS DE SALUD, SEGÚN DIRESA / GERESA / DIRIS
B3: =INICIO!C$8 -> PERIODO: ENERO - DICIEMBRE 2021
B5: DIRESA / GERESA / DIRIS | C5: N° DE EVALUADOS | D5: ANEMIA TOTAL | F5: ANEMIA LEVE | H5: ANEMIA MODERADA | J5: ANEMIA SEVERA
D6: N° DE CASOS | E6: % | F6: N° DE CASOS | G6: % | H6: N° DE CASOS | I6: % | J6: N° DE CASOS | K6: %
B7: AMAZONAS | C7: 2 | D7: 1 | E7: 50 | F7: 1 | G7: 50 | H7: 0 | I7: 0 | J7: 0 | K7: 0
B8: ANCASH | C8: 37 | D8: 14 | E8: 37.83783784 | F8: 11 | G8: 29.72972973 | H8: 3 | I8: 8.108108108 | J8: 0 | K8: 0
B9: APURIMAC | C9: (SD) | D9: (SD) | E9: (SD) | F9: (SD) | G9: (SD) | H9: (SD) | I9: (SD) | J9: (SD) | K9: (SD)
B10: AREQUIPA | C10: 28 | D10: 3 | E10: 10.71428571 | F10: 1 | G10: 3.571428571 | H10: 2 | I10: 7.142857143 | J10: 0 | K10: 0
B11: AYACUCHO | C11: 2 | D11: 0 | E11: 0 | F11: 0 | G11: 0 | H11: 0 | I11: 0 | J11: 0 | K11: 0
B12: CAJAMARCA | C12: 6 | D12: 3 | E12: 50 | F12: 2 | G12: 33.33333333 | H12: 1 | I12: 16.66666667 | J12: 0 | K12: 0
B13: CALLAO | C13: 35 | D13: 11 | E13: 31.42857143 | F13: 7 | G13: 20 | H13: 4 | I13: 11.42857143 | J13: 0 | K13: 0
B14: CUSCO | C14: 4 | D14: 2 | E14: 50 | F14: 1 | G14: 25 | H14: 1 | I14: 25 | J14: 0 | K14: 0
B15: HUANCAVELICA | C15: (SD) | D15: (SD) | E15: (SD) | F15: (SD) | G15: (SD) | H15: (SD) | I15: (SD) | J15: (SD) | K15: (SD)
B16: HUANUCO | C16: 2 | D16: 1 | E16: 50 | F16: 1 | G16: 50 | H16: 0 | I16: 0 | J16: 0 | K16: 0
B17: ICA | C17: 31 | D17: 6 | E17: 19.35483871 | F17: 5 | G17: 16.12903226 | H17: 1 | I17: 3.225806452 | J17: 0 | K17: 0
B18: JUNIN | C18: 10 | D18: 1 | E18: 10 | F18: 0 | G18: 0 | H18: 1 | I18: 10 | J18: 0 | K18: 0
B19: LA LIBERTAD | C19: 85 | D19: 21 | E19: 24.70588235 | F19: 14 | G19: 16.47058824 | H19: 7 | I19: 8.235294118 | J19: 0 | K19: 0
B20: LAMBAYEQUE | C20: 10 | D20: 1 | E20: 10 | F20: 1 | G20: 10 | H20: 0 | I20: 0 | J20: 0 | K20: 0
B21: LIMA DIRIS CENTRO | C21: 329 | D21: 47 | E21: 14.28571429 | F21: 34 | G21: 10.3343465 | H21: 13 | I21: 3.951367781 | J21: 0 | K21: 0
B22: LIMA DIRIS ESTE | C22: 85 | D22: 14 | E22: 16.47058824 | F22: 9 | G22: 10.58823529 | H22: 5 | I22: 5.882352941 | J22: 0 | K22: 0
B23: LIMA DIRIS NORTE | C23: 228 | D23: 52 | E23: 22.80701754 | F23: 42 | G23: 18.42105263 | H23: 8 | I23: 3.50877193 | J23: 2 | K23: 0.8771929825
B24: LIMA DIRIS SUR | C24: 211 | D24: 41 | E24: 19.43127962 | F24: 32 | G24: 15.16587678 | H24: 9 | I24: 4.265402844 | J24: 0 | K24: 0
B25: LIMA PROVINCIAS | C25: 62 | D25: 7 | E25: 11.29032258 | F25: 5 | G25: 8.064516129 | H25: 2 | I25: 3.225806452 | J25: 0 | K25: 0
B26: LORETO | C26: (SD) | D26: (SD) | E26: (SD) | F26: (SD) | G26: (SD) | H26: (SD) | I26: (SD) | J26: (SD) | K26: (SD)
B27: MADRE DE DIOS | C27: 2 | D27: 0 | E27: 0 | F27: 0 | G27: 0 | H27: 0 | I27: 0 | J27: 0 | K27: 0
B28: MOQUEGUA | C28: 9 | D28: 0 | E28: 0 | F28: 0 | G28: 0 | H28: 0 | I28: 0 | J28: 0 | K28: 0
B29: PASCO | C29: (SD) | D29: (SD) | E29: (SD) | F29: (SD) | G29: (SD) | H29: (SD) | I29: (SD) | J29: (SD) | K29: (SD)
B30: PIURA | C30: 39 | D30: 1 | E30: 2.564102564 | F30: 1 | G30: 2.564102564 | H30: 0 | I30: 0 | J30: 0 | K30: 0
B31: PUNO | C31: 1 | D31: 0 | E31: 0 | F31: 0 | G31: 0 | H31: 0 | I31: 0 | J31: 0 | K31: 0
B32: SAN MARTIN | C32: 5 | D32: 2 | E32: 40 | F32: 2 | G32: 40 | H32: 0 | I32: 0 | J32: 0 | K32: 0
B33: TACNA | C33: 15 | D33: 1 | E33: 6.666666667 | F33: 0 | G33: 0 | H33: 1 | I33: 6.666666667 | J33: 0 | K33: 0
B34: TUMBES | C34: 35 | D34: 6 | E34: 17.14285714 | F34: 5 | G34: 14.28571429 | H34: 1 | I34: 2.857142857 | J34: 0 | K34: 0
B35: UCAYALI | C35: 1 | D35: 0 | E35: 0 | F35: 0 | G35: 0 | H35: 0 | I35: 0 | J35: 0 | K35: 0
B36: PERÚ | C36: =SUM(C7:C35) -> 1274 | D36: =SUM(D7:D35) -> 235 | E36: =D36/C36*100 -> 18.44583987 | F36: =SUM(F7:F35) -> 174 | G36: =F36/C36*100 -> 13.6577708 | H36: =SUM(H7:H35) -> 59 | I36: =H36/C36*100 -> 4.631083203 | J36: =SUM(J7:J35) -> 2 | K36: =J36/C36*100 -> 0.1569858713
B37: Fuente: Sistema de Información SIEN - HIS, 2021.
B38: Instituto Nacional de Salud / Centro Nacional de Alimentación y Nutrición / Dirección Ejecutiva de Vigilancia Alimentaria y Nutricional.
B39: (SD) Diresas sin registro de NIÑOS EXTRANJEROS.

Sheet Anemia 6-59m x DISTRITO
B2: CUADRO N°12 PERÚ: ANEMIA EN NIÑOS EXTRANJEROS ENTRE 6 A 59 MESES QUE ACCEDIERON A LOS ESTABLECIMIENTOS DE SALUD, SEGÚN DEPARTAMENTO, PROVINCIA Y DISTRITO DEL ESTABLECIMIENTO DE SALUD
B3: =INICIO!C$8 -> PERIODO: ENERO - DICIEMBRE 2021
B5: DEPARTAMENTO | C5: PROVINCIA | D5: DISTRITO | E5: UBIGEO | F5: N° DE EVALUADOS | G5: ANEMIA TOTAL | I5: ANEMIA LEVE | K5: ANEMIA MODERADA | M5: ANEMIA SEVERA
G6: N° DE CASOS | H6: % | I6: N° DE CASOS | J6: % | K6: N° DE CASOS | L6: % | M6: N° DE CASOS | N6: %
B7: AMAZONAS | C7: BAGUA | D7: BAGUA | E7: 010201 | F7: 1 | G7: 1 | H7: 100 | I7: 1 | J7: 100 | K7: 0 | L7: 0 | M7: 0 | N7: 0
C8: UTCUBAMBA | D8: CAJARURO | E8: 010702 | F8: 1 | G8: 0 | H8: 0 | I8: 0 | J8: 0 | K8: 0 | L8: 0 | M8: 0 | N8: 0
B9: ANCASH | C9: CASMA | D9: CASMA | E9: 020801 | F9: 1 | G9: 0 | H9: 0 | I9: 0 | J9: 0 | K9: 0 | L9: 0 | M9: 0 | N9: 0
C10: HUARAZ | D10: INDEPENDENCIA | E10: 020105 | F10: 1 | G10: 0 | H10: 0 | I10: 0 | J10: 0 | K10: 0 | L10: 0 | M10: 0 | N10: 0
C11: HUARMEY | D11: HUARMEY | E11: 021101 | F11: 1 | G11: 0 | H11: 0 | I11: 0 | J11: 0 | K11: 0 | L11: 0 | M11: 0 | N11: 0
C12: SANTA | D12: CHIMBOTE | E12: 021801 | F12: 29 | G12: 12 | H12: 41.37931034 | I12: 9 | J12: 31.03448276 | K12: 3 | L12: 10.34482759 | M12: 0 | N12: 0
D13: NUEVO CHIMBOTE | E13: 021809 | F13: 4 | G13: 2 | H13: 50 | I13: 2 | J13: 50 | K13: 0 | L13: 0 | M13: 0 | N13: 0
D14: SANTA | E14: 021808 | F14: 1 | G14: 0 | H14: 0 | I14: 0 | J14: 0 | K14: 0 | L14: 0 | M14: 0 | N14: 0
B15: AREQUIPA | C15: AREQUIPA | D15: ALTO SELVA ALEGRE | E15: 040102 | F15: 5 | G15: 0 | H15: 0 | I15: 0 | J15: 0 | K15: 0 | L15: 0 | M15: 0 | N15: 0
D16: CERRO COLORADO | E16: 040104 | F16: 5 | G16: 1 | H16: 20 | I16: 0 | J16: 0 | K16: 1 | L16: 20 | M16: 0 | N16: 0
D17: JACOBO HUNTER | E17: 040107 | F17: 2 | G17: 0 | H17: 0 | I17: 0 | J17: 0 | K17: 0 | L17: 0 | M17: 0 | N17: 0
D18: JOSE LUIS BUSTAMANTE Y RIVERO | E18: 040129 | F18: 3 | G18: 0 | H18: 0 | I18: 0 | J18: 0 | K18: 0 | L18: 0 | M18: 0 | N18: 0
D19: LA JOYA | E19: 040108 | F19: 1 | G19: 0 | H19: 0 | I19: 0 | J19: 0 | K19: 0 | L19: 0 | M19: 0 | N19: 0
D20: MARIANO MELGAR | E20: 040109 | F20: 3 | G20: 1 | H20: 33.33333333 | I20: 0 | J20: 0 | K20: 1 | L20: 33.33333333 | M20: 0 | N20: 0
D21: PAUCARPATA | E21: 040112 | F21: 2 | G21: 0 | H21: 0 | I21: 0 | J21: 0 | K21: 0 | L21: 0 | M21: 0 | N21: 0
D22: SABANDIA | E22: 040116 | F22: 1 | G22: 0 | H22: 0 | I22: 0 | J22: 0 | K22: 0 | L22: 0 | M22: 0 | N22: 0
D23: SOCABAYA | E23: 040122 | F23: 2 | G23: 0 | H23: 0 | I23: 0 | J23: 0 | K23: 0 | L23: 0 | M23: 0 | N23: 0
D24: YANAHUARA | E24: 040126 | F24: 2 | G24: 0 | H24: 0 | I24: 0 | J24: 0 | K24: 0 | L24: 0 | M24: 0 | N24: 0
C25: CARAVELI | D25: YAUCA | E25: 040313 | F25: 1 | G25: 1 | H25: 100 | I25: 1 | J25: 100 | K25: 0 | L25: 0 | M25: 0 | N25: 0
C26: ISLAY | D26: MOLLENDO | E26: 040701 | F26: 1 | G26: 0 | H26: 0 | I26: 0 | J26: 0 | K26: 0 | L26: 0 | M26: 0 | N26: 0
B27: AYACUCHO | C27: HUAMANGA | D27: JESUS NAZARENO | E27: 050115 | F27: 1 | G27: 0 | H27: 0 | I27: 0 | J27: 0 | K27: 0 | L27: 0 | M27: 0 | N27: 0
C28: HUANTA | D28: SIVIA | E28: 050407 | F28: 1 | G28: 0 | H28: 0 | I28: 0 | J28: 0 | K28: 0 | L28: 0 | M28: 0 | N28: 0
B29: CAJAMARCA | C29: CAJABAMBA | D29: CAJABAMBA | E29: 060201 | F29: 1 | G29: 1 | H29: 100 | I29: 0 | J29: 0 | K29: 1 | L29: 100 | M29: 0 | N29: 0
C30: CAJAMARCA | D30: CAJAMARCA | E30: 060101 | F30: 2 | G30: 1 | H30: 50 | I30: 1 | J30: 50 | K30: 0 | L30: 0 | M30: 0 | N30: 0
C31: JAEN | D31: JAEN | E31: 060801 | F31: 2 | G31: 1 | H31: 50 | I31: 1 | J31: 50 | K31: 0 | L31: 0 | M31: 0 | N31: 0
C32: SAN IGNACIO | D32: SAN IGNACIO | E32: 060901 | F32: 1 | G32: 0 | H32: 0 | I32: 0 | J32: 0 | K32: 0 | L32: 0 | M32: 0 | N32: 0
B33: CALLAO | C33: CALLAO | D33: BELLAVISTA | E33: 070102 | F33: 1 | G33: 0 | H33: 0 | I33: 0 | J33: 0 | K33: 0 | L33: 0 | M33: 0 | N33: 0
D34: CALLAO | E34: 070101 | F34: 22 | G34: 9 | H34: 40.90909091 | I34: 5 | J34: 22.72727273 | K34: 4 | L34: 18.18181818 | M34: 0 | N34: 0
D35: CARMEN DE LA LEGUA-REYNOSO | E35: 070103 | F35: 2 | G35: 0 | H35: 0 | I35: 0 | J35: 0 | K35: 0 | L35: 0 | M35: 0 | N35: 0
D36: LA PERLA | E36: 070104 | F36: 5 | G36: 1 | H36: 20 | I36: 1 | J36: 20 | K36: 0 | L36: 0 | M36: 0 | N36: 0
D37: VENTANILLA | E37: 070106 | F37: 5 | G37: 1 | H37: 20 | I37: 1 | J37: 20 | K37: 0 | L37: 0 | M37: 0 | N37: 0
B38: CUSCO | C38: CUSCO | D38: SAN JERONIMO | E38: 080104 | F38: 1 | G38: 1 | H38: 100 | I38: 0 | J38: 0 | K38: 1 | L38: 100 | M38: 0 | N38: 0
D39: SANTIAGO | E39: 080106 | F39: 1 | G39: 0 | H39: 0 | I39: 0 | J39: 0 | K39: 0 | L39: 0 | M39: 0 | N39: 0
D40: WANCHAQ | E40: 080108 | F40: 2 | G40: 1 | H40: 50 | I40: 1 | J40: 50 | K40: 0 | L40: 0 | M40: 0 | N40: 0
B41: HUANUCO | C41: HUANUCO | D41: AMARILIS | E41: 100102 | F41: 1 | G41: 0 | H41: 0 | I41: 0 | J41: 0 | K41: 0 | L41: 0 | M41: 0 | N41: 0
D42: HUANUCO | E42: 100101 | F42: 1 | G42: 1 | H42: 100 | I42: 1 | J42: 100 | K42: 0 | L42: 0 | M42: 0 | N42: 0
B43: ICA | C43: CHINCHA | D43: GROCIO PRADO | E43: 110206 | F43: 2 | G43: 0 | H43: 0 | I43: 0 | J43: 0 | K43: 0 | L43: 0 | M43: 0 | N43: 0
D44: PUEBLO NUEVO | E44: 110207 | F44: 1 | G44: 1 | H44: 100 | I44: 1 | J44: 100 | K44: 0 | L44: 0 | M44: 0 | N44: 0
C45: ICA | D45: ICA | E45: 110101 | F45: 13 | G45: 4 | H45: 30.76923077 | I45: 3 | J45: 23.07692308 | K45: 1 | L45: 7.692307692 | M45: 0 | N45: 0
D46: SALAS | E46: 110108 | F46: 1 | G46: 0 | H46: 0 | I46: 0 | J46: 0 | K46: 0 | L46: 0 | M46: 0 | N46: 0
D47: SUBTANJALLA | E47: 110112 | F47: 1 | G47: 0 | H47: 0 | I47: 0 | J47: 0 | K47: 0 | L47: 0 | M47: 0 | N47: 0
D48: TATE | E48: 110113 | F48: 1 | G48: 0 | H48: 0 | I48: 0 | J48: 0 | K48: 0 | L48: 0 | M48: 0 | N48: 0
C49: NAZCA | D49: MARCONA | E49: 110304 | F49: 2 | G49: 0 | H49: 0 | I49: 0 | J49: 0 | K49: 0 | L49: 0 | M49: 0 | N49: 0
D50: NAZCA | E50: 110301 | F50: 2 | G50: 0 | H50: 0 | I50: 0 | J50: 0 | K50: 0 | L50: 0 | M50: 0 | N50: 0
D51: VISTA ALEGRE | E51: 110305 | F51: 1 | G51: 0 | H51: 0 | I51: 0 | J51: 0 | K51: 0 | L51: 0 | M51: 0 | N51: 0
C52: PALPA | D52: PALPA | E52: 110401 | F52: 1 | G52: 0 | H52: 0 | I52: 0 | J52: 0 | K52: 0 | L52: 0 | M52: 0 | N52: 0
C53: PISCO | D53: PISCO | E53: 110501 | F53: 2 | G53: 0 | H53: 0 | I53: 0 | J53: 0 | K53: 0 | L53: 0 | M53: 0 | N53: 0
D54: SAN ANDRES | E54: 110506 | F54: 4 | G54: 1 | H54: 25 | I54: 1 | J54: 25 | K54: 0 | L54: 0 | M54: 0 | N54: 0
B55: JUNIN | C55: CHANCHAMAYO | D55: CHANCHAMAYO | E55: 120301 | F55: 1 | G55: 0 | H55: 0 | I55: 0 | J55: 0 | K55: 0 | L55: 0 | M55: 0 | N55: 0
D56: PICHANAQUI | E56: 120303 | F56: 1 | G56: 0 | H56: 0 | I56: 0 | J56: 0 | K56: 0 | L56: 0 | M56: 0 | N56: 0
C57: CONCEPCION | D57: CONCEPCION | E57: 120201 | F57: 1 | G57: 0 | H57: 0 | I57: 0 | J57: 0 | K57: 0 | L57: 0 | M57: 0 | N57: 0
C58: HUANCAYO | D58: EL TAMBO | E58: 120114 | F58: 3 | G58: 1 | H58: 33.33333333 | I58: 0 | J58: 0 | K58: 1 | L58: 33.33333333 | M58: 0 | N58: 0
D59: HUANCAYO | E59: 120101 | F59: 2 | G59: 0 | H59: 0 | I59: 0 | J59: 0 | K59: 0 | L59: 0 | M59: 0 | N59: 0
C60: JAUJA | D60: JAUJA | E60: 120401 | F60: 1 | G60: 0 | H60: 0 | I60: 0 | J60: 0 | K60: 0 | L60: 0 | M60: 0 | N60: 0
C61: TARMA | D61: TARMA | E61: 120701 | F61: 1 | G61: 0 | H61: 0 | I61: 0 | J61: 0 | K61: 0 | L61: 0 | M61: 0 | N61: 0
B62: LA LIBERTAD | C62: ASCOPE | D62: CHOCOPE | E62: 130203 | F62: 1 | G62: 0 | H62: 0 | I62: 0 | J62: 0 | K62: 0 | L62: 0 | M62: 0 | N62: 0
D63: PAIJAN | E63: 130205 | F63: 2 | G63: 0 | H63: 0 | I63: 0 | J63: 0 | K63: 0 | L63: 0 | M63: 0 | N63: 0
D64: RAZURI | E64: 130206 | F64: 4 | G64: 0 | H64: 0 | I64: 0 | J64: 0 | K64: 0 | L64: 0 | M64: 0 | N64: 0
C65: CHEPEN | D65: CHEPEN | E65: 130401 | F65: 3 | G65: 0 | H65: 0 | I65: 0 | J65: 0 | K65: 0 | L65: 0 | M65: 0 | N65: 0
D66: PACANGA | E66: 130402 | F66: 1 | G66: 0 | H66: 0 | I66: 0 | J66: 0 | K66: 0 | L66: 0 | M66: 0 | N66: 0
D67: PUEBLO NUEVO | E67: 130403 | F67: 1 | G67: 0 | H67: 0 | I67: 0 | J67: 0 | K67: 0 | L67: 0 | M67: 0 | N67: 0
C68: PACASMAYO | D68: GUADALUPE | E68: 130702 | F68: 8 | G68: 3 | H68: 37.5 | I68: 3 | J68: 37.5 | K68: 0 | L68: 0 | M68: 0 | N68: 0
D69: PACASMAYO | E69: 130704 | F69: 9 | G69: 1 | H69: 11.11111111 | I69: 0 | J69: 0 | K69: 1 | L69: 11.11111111 | M69: 0 | N69: 0
D70: SAN PEDRO DE LLOC | E70: 130701 | F70: 1 | G70: 0 | H70: 0 | I70: 0 | J70: 0 | K70: 0 | L70: 0 | M70: 0 | N70: 0
C71: TRUJILLO | D71: FLORENCIA DE MORA | E71: 130103 | F71: 4 | G71: 0 | H71: 0 | I71: 0 | J71: 0 | K71: 0 | L71: 0 | M71: 0 | N71: 0
D72: HUANCHACO | E72: 130104 | F72: 3 | G72: 0 | H72: 0 | I72: 0 | J72: 0 | K72: 0 | L72: 0 | M72: 0 | N72: 0
D73: LA ESPERANZA | E73: 130105 | F73: 6 | G73: 1 | H73: 16.66666667 | I73: 0 | J73: 0 | K73: 1 | L73: 16.66666667 | M73: 0 | N73: 0
D74: MOCHE | E74: 130107 | F74: 5 | G74: 3 | H74: 60 | I74: 1 | J74: 20 | K74: 2 | L74: 40 | M74: 0 | N74: 0
D75: SALAVERRY | E75: 130109 | F75: 1 | G75: 0 | H75: 0 | I75: 0 | J75: 0 | K75: 0 | L75: 0 | M75: 0 | N75: 0
D76: TRUJILLO | E76: 130101 | F76: 25 | G76: 6 | H76: 24 | I76: 5 | J76: 20 | K76: 1 | L76: 4 | M76: 0 | N76: 0
D77: VICTOR LARCO HERRERA | E77: 130111 | F77: 3 | G77: 3 | H77: 100 | I77: 2 | J77: 66.66666667 | K77: 1 | L77: 33.33333333 | M77: 0 | N77: 0
C78: VIRU | D78: CHAO | E78: 131202 | F78: 5 | G78: 2 | H78: 40 | I78: 2 | J78: 40 | K78: 0 | L78: 0 | M78: 0 | N78: 0
D79: VIRU | E79: 131201 | F79: 3 | G79: 2 | H79: 66.66666667 | I79: 1 | J79: 33.33333333 | K79: 1 | L79: 33.33333333 | M79: 0 | N79: 0
B80: LAMBAYEQUE | C80: CHICLAYO | D80: CHICLAYO | E80: 140101 | F80: 2 | G80: 0 | H80: 0 | I80: 0 | J80: 0 | K80: 0 | L80: 0 | M80: 0 | N80: 0
D81: ETEN PUERTO | E81: 140104 | F81: 2 | G81: 0 | H81: 0 | I81: 0 | J81: 0 | K81: 0 | L81: 0 | M81: 0 | N81: 0
D82: JOSE LEONARDO ORTIZ | E82: 140105 | F82: 3 | G82: 1 | H82: 33.33333333 | I82: 1 | J82: 33.33333333 | K82: 0 | L82: 0 | M82: 0 | N82: 0
D83: LA VICTORIA | E83: 140106 | F83: 1 | G83: 0 | H83: 0 | I83: 0 | J83: 0 | K83: 0 | L83: 0 | M83: 0 | N83: 0
D84: REQUE | E84: 140113 | F84: 1 | G84: 0 | H84: 0 | I84: 0 | J84: 0 | K84: 0 | L84: 0 | M84: 0 | N84: 0
C85: LAMBAYEQUE | D85: SAN JOSE | E85: 140311 | F85: 1 | G85: 0 | H85: 0 | I85: 0 | J85: 0 | K85: 0 | L85: 0 | M85: 0 | N85: 0
B86: LIMA | C86: BARRANCA | D86: BARRANCA | E86: 150201 | F86: 3 | G86: 0 | H86: 0 | I86: 0 | J86: 0 | K86: 0 | L86: 0 | M86: 0 | N86: 0
D87: SUPE | E87: 150204 | F87: 1 | G87: 0 | H87: 0 | I87: 0 | J87: 0 | K87: 0 | L87: 0 | M87: 0 | N87: 0
D88: SUPE PUERTO | E88: 150205 | F88: 2 | G88: 0 | H88: 0 | I88: 0 | J88: 0 | K88: 0 | L88: 0 | M88: 0 | N88: 0
C89: CAÑETE | D89: CHILCA | E89: 150505 | F89: 4 | G89: 4 | H89: 100 | I89: 2 | J89: 50 | K89: 2 | L89: 50 | M89: 0 | N89: 0
D90: IMPERIAL | E90: 150507 | F90: 1 | G90: 0 | H90: 0 | I90: 0 | J90: 0 | K90: 0 | L90: 0 | M90: 0 | N90: 0
D91: MALA | E91: 150509 | F91: 6 | G91: 0 | H91: 0 | I91: 0 | J91: 0 | K91: 0 | L91: 0 | M91: 0 | N91: 0
C92: HUARAL | D92: AUCALLAMA | E92: 150604 | F92: 3 | G92: 0 | H92: 0 | I92: 0 | J92: 0 | K92: 0 | L92: 0 | M92: 0 | N92: 0
D93: CHANCAY | E93: 150605 | F93: 16 | G93: 0 | H93: 0 | I93: 0 | J93: 0 | K93: 0 | L93: 0 | M93: 0 | N93: 0
D94: HUARAL | E94: 150601 | F94: 6 | G94: 1 | H94: 16.66666667 | I94: 1 | J94: 16.66666667 | K94: 0 | L94: 0 | M94: 0 | N94: 0
C95: HUAROCHIRI | D95: SANTA EULALIA | E95: 150728 | F95: 1 | G95: 0 | H95: 0 | I95: 0 | J95: 0 | K95: 0 | L95: 0 | M95: 0 | N95: 0
C96: HUAURA | D96: HUACHO | E96: 150801 | F96: 4 | G96: 0 | H96: 0 | I96: 0 | J96: 0 | K96: 0 | L96: 0 | M96: 0 | N96: 0
D97: HUALMAY | E97: 150805 | F97: 2 | G97: 0 | H97: 0 | I97: 0 | J97: 0 | K97: 0 | L97: 0 | M97: 0 | N97: 0
D98: HUAURA | E98: 150806 | F98: 5 | G98: 1 | H98: 20 | I98: 1 | J98: 20 | K98: 0 | L98: 0 | M98: 0 | N98: 0
D99: SANTA MARIA | E99: 150810 | F99: 5 | G99: 1 | H99: 20 | I99: 1 | J99: 20 | K99: 0 | L99: 0 | M99: 0 | N99: 0
D100: VEGUETA | E100: 150812 | F100: 3 | G100: 0 | H100: 0 | I100: 0 | J100: 0 | K100: 0 | L100: 0 | M100: 0 | N100: 0
C101: LIMA | D101: ANCON | E101: 150102 | F101: 1 | G101: 0 | H101: 0 | I101: 0 | J101: 0 | K101: 0 | L101: 0 | M101: 0 | N101: 0
D102: ATE | E102: 150103 | F102: 15 | G102: 4 | H102: 26.66666667 | I102: 3 | J102: 20 | K102: 1 | L102: 6.666666667 | M102: 0 | N102: 0
D103: BREÑA | E103: 150105 | F103: 7 | G103: 1 | H103: 14.28571429 | I103: 1 | J103: 14.28571429 | K103: 0 | L103: 0 | M103: 0 | N103: 0
D104: CARABAYLLO | E104: 150106 | F104: 17 | G104: 3 | H104: 17.64705882 | I104: 2 | J104: 11.76470588 | K104: 1 | L104: 5.882352941 | M104: 0 | N104: 0
D105: CHACLACAYO | E105: 150107 | F105: 2 | G105: 0 | H105: 0 | I105: 0 | J105: 0 | K105: 0 | L105: 0 | M105: 0 | N105: 0
D106: CHORRILLOS | E106: 150108 | F106: 26 | G106: 7 | H106: 26.92307692 | I106: 3 | J106: 11.53846154 | K106: 4 | L106: 15.38461538 | M106: 0 | N106: 0
D107: CIENEGUILLA | E107: 150109 | F107: 2 | G107: 0 | H107: 0 | I107: 0 | J107: 0 | K107: 0 | L107: 0 | M107: 0 | N107: 0
D108: COMAS | E108: 150110 | F108: 40 | G108: 7 | H108: 17.5 | I108: 7 | J108: 17.5 | K108: 0 | L108: 0 | M108: 0 | N108: 0
D109: EL AGUSTINO | E109: 150111 | F109: 17 | G109: 4 | H109: 23.52941176 | I109: 1 | J109: 5.882352941 | K109: 3 | L109: 17.64705882 | M109: 0 | N109: 0
D110: INDEPENDENCIA | E110: 150112 | F110: 14 | G110: 2 | H110: 14.28571429 | I110: 1 | J110: 7.142857143 | K110: 0 | L110: 0 | M110: 1 | N110: 7.142857143
D111: JESUS MARIA | E111: 150113 | F111: 4 | G111: 0 | H111: 0 | I111: 0 | J111: 0 | K111: 0 | L111: 0 | M111: 0 | N111: 0
D112: LA MOLINA | E112: 150114 | F112: 7 | G112: 0 | H112: 0 | I112: 0 | J112: 0 | K112: 0 | L112: 0 | M112: 0 | N112: 0
D113: LA VICTORIA | E113: 150115 | F113: 34 | G113: 4 | H113: 11.76470588 | I113: 4 | J113: 11.76470588 | K113: 0 | L113: 0 | M113: 0 | N113: 0
D114: LIMA | E114: 150101 | F114: 69 | G114: 12 | H114: 17.39130435 | I114: 7 | J114: 10.14492754 | K114: 5 | L114: 7.246376812 | M114: 0 | N114: 0
D115: LINCE | E115: 150116 | F115: 6 | G115: 0 | H115: 0 | I115: 0 | J115: 0 | K115: 0 | L115: 0 | M115: 0 | N115: 0
D116: LOS OLIVOS | E116: 150117 | F116: 42 | G116: 6 | H116: 14.28571429 | I116: 5 | J116: 11.9047619 | K116: 1 | L116: 2.380952381 | M116: 0 | N116: 0
D117: LURIGANCHO | E117: 150118 | F117: 10 | G117: 1 | H117: 10 | I117: 1 | J117: 10 | K117: 0 | L117: 0 | M117: 0 | N117: 0
D118: LURIN | E118: 150119 | F118: 14 | G118: 3 | H118: 21.42857143 | I118: 3 | J118: 21.42857143 | K118: 0 | L118: 0 | M118: 0 | N118: 0
D119: MAGDALENA DEL MAR | E119: 150120 | F119: 1 | G119: 0 | H119: 0 | I119: 0 | J119: 0 | K119: 0 | L119: 0 | M119: 0 | N119: 0
D120: MIRAFLORES | E120: 150122 | F120: 3 | G120: 1 | H120: 33.33333333 | I120: 1 | J120: 33.33333333 | K120: 0 | L120: 0 | M120: 0 | N120: 0
D121: PACHACAMAC | E121: 150123 | F121: 15 | G121: 3 | H121: 20 | I121: 2 | J121: 13.33333333 | K121: 1 | L121: 6.666666667 | M121: 0 | N121: 0
D122: PUENTE PIEDRA | E122: 150125 | F122: 6 | G122: 1 | H122: 16.66666667 | I122: 1 | J122: 16.66666667 | K122: 0 | L122: 0 | M122: 0 | N122: 0
D123: RIMAC | E123: 150128 | F123: 13 | G123: 4 | H123: 30.76923077 | I123: 4 | J123: 30.76923077 | K123: 0 | L123: 0 | M123: 0 | N123: 0
D124: SAN BARTOLO | E124: 150129 | F124: 1 | G124: 0 | H124: 0 | I124: 0 | J124: 0 | K124: 0 | L124: 0 | M124: 0 | N124: 0
D125: SAN BORJA | E125: 150130 | F125: 2 | G125: 0 | H125: 0 | I125: 0 | J125: 0 | K125: 0 | L125: 0 | M125: 0 | N125: 0
D126: SAN ISIDRO | E126: 150131 | F126: 2 | G126: 0 | H126: 0 | I126: 0 | J126: 0 | K126: 0 | L126: 0 | M126: 0 | N126: 0
D127: SAN JUAN DE LURIGANCHO | E127: 150132 | F127: 153 | G127: 19 | H127: 12.41830065 | I127: 13 | J127: 8.496732026 | K127: 6 | L127: 3.921568627 | M127: 0 | N127: 0
D128: SAN JUAN DE MIRAFLORES | E128: 150133 | F128: 43 | G128: 9 | H128: 20.93023256 | I128: 6 | J128: 13.95348837 | K128: 3 | L128: 6.976744186 | M128: 0 | N128: 0
D129: SAN LUIS | E129: 150134 | F129: 2 | G129: 0 | H129: 0 | I129: 0 | J129: 0 | K129: 0 | L129: 0 | M129: 0 | N129: 0
D130: SAN MARTIN DE PORRES | E130: 150135 | F130: 95 | G130: 29 | H130: 30.52631579 | I130: 22 | J130: 23.15789474 | K130: 6 | L130: 6.315789474 | M130: 1 | N130: 1.052631579
D131: SAN MIGUEL | E131: 150136 | F131: 37 | G131: 6 | H131: 16.21621622 | I131: 4 | J131: 10.81081081 | K131: 2 | L131: 5.405405405 | M131: 0 | N131: 0
D132: SANTA ANITA | E132: 150137 | F132: 32 | G132: 5 | H132: 15.625 | I132: 4 | J132: 12.5 | K132: 1 | L132: 3.125 | M132: 0 | N132: 0
D133: SANTIAGO DE SURCO | E133: 150140 | F133: 78 | G133: 14 | H133: 17.94871795 | I133: 13 | J133: 16.66666667 | K133: 1 | L133: 1.282051282 | M133: 0 | N133: 0
D134: SURQUILLO | E134: 150141 | F134: 9 | G134: 4 | H134: 44.44444444 | I134: 4 | J134: 44.44444444 | K134: 0 | L134: 0 | M134: 0 | N134: 0
D135: VILLA EL SALVADOR | E135: 150142 | F135: 21 | G135: 4 | H135: 19.04761905 | I135: 4 | J135: 19.04761905 | K135: 0 | L135: 0 | M135: 0 | N135: 0
D136: VILLA MARIA DEL TRIUNFO | E136: 150143 | F136: 13 | G136: 1 | H136: 7.692307692 | I136: 1 | J136: 7.692307692 | K136: 0 | L136: 0 | M136: 0 | N136: 0
B137: MADRE DE DIOS | C137: TAMBOPATA | D137: TAMBOPATA | E137: 170101 | F137: 2 | G137: 0 | H137: 0 | I137: 0 | J137: 0 | K137: 0 | L137: 0 | M137: 0 | N137: 0
B138: MOQUEGUA | C138: ILO | D138: ILO | E138: 180301 | F138: 5 | G138: 0 | H138: 0 | I138: 0 | J138: 0 | K138: 0 | L138: 0 | M138: 0 | N138: 0
C139: MARISCAL NIETO | D139: MOQUEGUA | E139: 180101 | F139: 3 | G139: 0 | H139: 0 | I139: 0 | J139: 0 | K139: 0 | L139: 0 | M139: 0 | N139: 0
D140: SAMEGUA | E140: 180104 | F140: 1 | G140: 0 | H140: 0 | I140: 0 | J140: 0 | K140: 0 | L140: 0 | M140: 0 | N140: 0
B141: PIURA | C141: MORROPON | D141: CHULUCANAS | E141: 200401 | F141: 3 | G141: 1 | H141: 33.33333333 | I141: 1 | J141: 33.33333333 | K141: 0 | L141: 0 | M141: 0 | N141: 0
D142: LA MATANZA | E142: 200404 | F142: 1 | G142: 0 | H142: 0 | I142: 0 | J142: 0 | K142: 0 | L142: 0 | M142: 0 | N142: 0
C143: PAITA | D143: PAITA | E143: 200501 | F143: 3 | G143: 0 | H143: 0 | I143: 0 | J143: 0 | K143: 0 | L143: 0 | M143: 0 | N143: 0
D144: VICHAYAL | E144: 200507 | F144: 2 | G144: 0 | H144: 0 | I144: 0 | J144: 0 | K144: 0 | L144: 0 | M144: 0 | N144: 0
C145: PIURA | D145: CASTILLA | E145: 200104 | F145: 1 | G145: 0 | H145: 0 | I145: 0 | J145: 0 | K145: 0 | L145: 0 | M145: 0 | N145: 0
D146: PIURA | E146: 200101 | F146: 7 | G146: 0 | H146: 0 | I146: 0 | J146: 0 | K146: 0 | L146: 0 | M146: 0 | N146: 0
D147: VEINTISEIS DE OCTUBRE | E147: 200115 | F147: 4 | G147: 0 | H147: 0 | I147: 0 | J147: 0 | K147: 0 | L147: 0 | M147: 0 | N147: 0
C148: SECHURA | D148: SECHURA | E148: 200801 | F148: 6 | G148: 0 | H148: 0 | I148: 0 | J148: 0 | K148: 0 | L148: 0 | M148: 0 | N148: 0
C149: SULLANA | D149: QUERECOTILLO | E149: 200607 | F149: 3 | G149: 0 | H149: 0 | I149: 0 | J149: 0 | K149: 0 | L149: 0 | M149: 0 | N149: 0
D150: SULLANA | E150: 200601 | F150: 1 | G150: 0 | H150: 0 | I150: 0 | J150: 0 | K150: 0 | L150: 0 | M150: 0 | N150: 0
C151: TALARA | D151: MANCORA | E151: 200706 | F151: 7 | G151: 0 | H151: 0 | I151: 0 | J151: 0 | K151: 0 | L151: 0 | M151: 0 | N151: 0
D152: PARIÑAS | E152: 200701 | F152: 1 | G152: 0 | H152: 0 | I152: 0 | J152: 0 | K152: 0 | L152: 0 | M152: 0 | N152: 0
B153: PUNO | C153: PUNO | D153: PUNO | E153: 210101 | F153: 1 | G153: 0 | H153: 0 | I153: 0 | J153: 0 | K153: 0 | L153: 0 | M153: 0 | N153: 0
B154: SAN MARTIN | C154: MOYOBAMBA | D154: MOYOBAMBA | E154: 220101 | F154: 3 | G154: 1 | H154: 33.33333333 | I154: 1 | J154: 33.33333333 | K154: 0 | L154: 0 | M154: 0 | N154: 0
C155: RIOJA | D155: RIOJA | E155: 220801 | F155: 1 | G155: 1 | H155: 100 | I155: 1 | J155: 100 | K155: 0 | L155: 0 | M155: 0 | N155: 0
C156: TOCACHE | D156: TOCACHE | E156: 221001 | F156: 1 | G156: 0 | H156: 0 | I156: 0 | J156: 0 | K156: 0 | L156: 0 | M156: 0 | N156: 0
B157: TACNA | C157: JORGE BASADRE | D157: ITE | E157: 230303 | F157: 2 | G157: 0 | H157: 0 | I157: 0 | J157: 0 | K157: 0 | L157: 0 | M157: 0 | N157: 0
C158: TACNA | D158: ALTO DE LA ALIANZA | E158: 230102 | F158: 1 | G158: 0 | H158: 0 | I158: 0 | J158: 0 | K158: 0 | L158: 0 | M158: 0 | N158: 0
D159: CIUDAD NUEVA | E159: 230104 | F159: 1 | G159: 0 | H159: 0 | I159: 0 | J159: 0 | K159: 0 | L159: 0 | M159: 0 | N159: 0
D160: CORONEL GREGORIO ALBARRACIN L. | E160: 230110 | F160: 3 | G160: 1 | H160: 33.33333333 | I160: 0 | J160: 0 | K160: 1 | L160: 33.33333333 | M160: 0 | N160: 0
D161: SAMA | E161: 230109 | F161: 2 | G161: 0 | H161: 0 | I161: 0 | J161: 0 | K161: 0 | L161: 0 | M161: 0 | N161: 0
D162: TACNA | E162: 230101 | F162: 6 | G162: 0 | H162: 0 | I162: 0 | J162: 0 | K162: 0 | L162: 0 | M162: 0 | N162: 0
B163: TUMBES | C163: CONTRALMIRANTE VILLAR | D163: CANOAS DE PUNTA SAL | E163: 240203 | F163: 2 | G163: 0 | H163: 0 | I163: 0 | J163: 0 | K163: 0 | L163: 0 | M163: 0 | N163: 0
D164: ZORRITOS | E164: 240201 | F164: 7 | G164: 1 | H164: 14.28571429 | I164: 1 | J164: 14.28571429 | K164: 0 | L164: 0 | M164: 0 | N164: 0
C165: TUMBES | D165: CORRALES | E165: 240102 | F165: 4 | G165: 0 | H165: 0 | I165: 0 | J165: 0 | K165: 0 | L165: 0 | M165: 0 | N165: 0
D166: LA CRUZ | E166: 240103 | F166: 2 | G166: 1 | H166: 50 | I166: 0 | J166: 0 | K166: 1 | L166: 50 | M166: 0 | N166: 0
D167: PAMPAS DE HOSPITAL | E167: 240104 | F167: 1 | G167: 0 | H167: 0 | I167: 0 | J167: 0 | K167: 0 | L167: 0 | M167: 0 | N167: 0
D168: SAN JACINTO | E168: 240105 | F168: 1 | G168: 0 | H168: 0 | I168: 0 | J168: 0 | K168: 0 | L168: 0 | M168: 0 | N168: 0
D169: TUMBES | E169: 240101 | F169: 11 | G169: 3 | H169: 27.27272727 | I169: 3 | J169: 27.27272727 | K169: 0 | L169: 0 | M169: 0 | N169: 0
C170: ZARUMILLA | D170: PAPAYAL | E170: 240304 | F170: 2 | G170: 0 | H170: 0 | I170: 0 | J170: 0 | K170: 0 | L170: 0 | M170: 0 | N170: 0
D171: ZARUMILLA | E171: 240301 | F171: 5 | G171: 1 | H171: 20 | I171: 1 | J171: 20 | K171: 0 | L171: 0 | M171: 0 | N171: 0
B172: UCAYALI | C172: CORONEL PORTILLO | D172: CAMPOVERDE | E172: 250102 | F172: 1 | G172: 0 | H172: 0 | I172: 0 | J172: 0 | K172: 0 | L172: 0 | M172: 0 | N172: 0
B173: PERÚ | F173: =SUM(F7:F172) -> 1274 | G173: =SUM(G7:G172) -> 235 | H173: =G173/F173*100 -> 18.44583987 | I173: =SUM(I7:I172) -> 174 | J173: =I173/F173*100 -> 13.6577708 | K173: =SUM(K7:K172) -> 59 | L173: =K173/F173*100 -> 4.631083203 | M173: =SUM(M7:M172) -> 2 | N173: =M173/F173*100 -> 0.1569858713
B174: Fuente: Sistema de Información SIEN - HIS, 2021.
B175: Instituto Nacional de Salud / Centro Nacional de Alimentación y Nutrición / Dirección Ejecutiva de Vigilancia Alimentaria y Nutricional.
